{"text_format":"1","workbook":"xlsx","n_sheets":58,"sheets":["INTRODUCTION","PARAMETRAGE","TEST MACROS","ACCUEIL","ETABLISSEMENT","CAPL ou CAPD","VALEUR du POINT","TELEPHONE","DEPARTEMENT","MEL","SITE DEPART","HTTP DEPART","REPRESENTANT","CAP","CAP 5","CAT B MT","CAT B EXTINCTION","END","RECAPITULATIF","GRILLE Cat B CN","IMP GRILLE Cat B CN","Cat B CN Echelon 2","Cat B CN Echelon 3","Cat B CN Echelon 4","Cat B CN Echelon 5","Cat B CN Echelon 6","Cat B CN Echelon 7","Cat B CN Echelon 8","GRILLE CAT B CS","IMP GRILLE CAT B CS","CAT B CS Echelon 2","CAT B CS Echelon 3","CAT B CS Echelon 4","CAT B CS Echelon 5","CAT B CS Echelon 6","CAT B CS Echelon 7","CAT B CS Echelon 8","GRILLE Cat B CN EXT","IMP GRILLE Cat B CN EXT","Cat B CN EXT Echelon 2","Cat B CN EXT Echelon 3","Cat B CN EXT Echelon 4","Cat B CN EXT Echelon 5","Cat B CN EXT Echelon 6","Cat B CN EXT Echelon 7","Cat B CN EXT Echelon 8","GRILLE Cat B CS EXT","IMP GRILLE Cat B CS EXT","Cat B CS EXT Echelon 2","Cat B CS EXT Echelon 3","Cat B CS EXT Echelon 4","Cat B CS EXT Echelon 5","Cat B CS EXT Echelon 6","Cat B CS EXT Echelon 7","Cat B CS EXT Echelon 8","CAT B SE","GRILLE Cat B SE1","GRILLE Cat B SE2"],"not_rendered":{"charts":0,"images":8,"macros":1,"external_links":0,"defined_names":30,"comments":0,"pivot_tables":0},"unopened":[],"bounds":{"document_bytes":16777216,"sheet_cells":100000,"rows_first":2000,"rows_last":500,"rows_between":2000,"halvings":0,"cell_chars":16384,"cell_head_chars":4096},"cells_cut":0,"cells_raw":0,"read":"whole","date_system":"1900"}

{"sheet":"INTRODUCTION","index":0,"n_rows":39,"n_cols":2,"rows_kept":39,"cut":false,"hidden":false,"merged":[[0,1,0,2],[8,1,8,2],[11,1,11,2],[9,1,9,2],[12,1,12,2],[10,1,10,2],[7,1,7,2],[4,1,4,2],[5,1,5,2],[6,1,6,2],[1,1,1,2],[2,1,2,2],[3,1,3,2],[13,1,13,2],[36,1,36,2],[38,1,38,2],[18,1,18,2],[25,1,25,2],[31,1,31,2],[32,1,32,2],[26,1,26,2],[27,1,27,2],[28,1,28,2],[29,1,29,2],[30,1,30,2]]}
[]
[null,"Ce logiciel permet d'éditer les courriers d'avancements d'échelons à envoyer aux"]
[null,"agents directement concernés en notant qu'une seule fois :"]
[null,"l'identité de l'agent et la date d'effet de son avancement d'échelon. "]
[]
[null,"C'est donc un gain de temps non négligeable dans la préparation très chronophage"]
[null,"des CAP et également une uniformisation de toutes les informations transmises"]
[null,"aux agents par tous les représentants SUD Santé des CAPL et CAPD."]
[]
[null,"1) ACTIVATION DES MACROS"]
[]
[null,"Pour fonctionner, ce logiciel nécéssite que les \" macros \" soient activées."]
[null,"Les \" macros \" permettent à partir d'un bouton (apparition de la petite main),"]
[null,"l'exécution d'une application donnée."]
[]
[null,"Pour vérifier si elles sont bien activées,"]
[null,"appuyez sur le bouton ci-contre :"]
[]
[null,"Cette page doit apparaître :"]
[]
[]
[null,"Appuyez alors dans cette page"]
[null,"sur ce bouton pour revenir"]
[null,"à l'INTRODUCTION :"]
[]
[null,"Si la page n'apparait pas, cela implique que les \" macros \" ne sont pas activées."]
[null,"Appuyez sur \" F1 \" de votre clavier pour accéder à la rubrique \" AIDE \""]
[null,"Notez : MACROS dans le moteur de recherche"]
[null,"Selectionnez : Activer ou désactiver les Macros"]
[null,"Suivez les recommandations pour les activer"]
[null,"\n\n\n"]
[null,"2) PARAMETRAGE DU LOGICIEL"]
[]
[null,"Pour votre 1ère utilisation de ce logiciel, vous devez"]
[null,"le paramatrer en cliquant sur ce bouton : "]
[]
[null,"3) COMMENTAIRES DIVERS …"]
[]
[null,"N'hésitez pas à nous faire parvenir vos commentaires sur ce Logiciel à l'adresse ci-jointe :\n\n                                                                          sudsante@ch-stmalo.fr"]

{"sheet":"PARAMETRAGE","index":1,"n_rows":17,"n_cols":2,"rows_kept":17,"cut":false,"hidden":false,"merged":[]}
[]
[null,"PARAMETRAGE"]
[]
[null,"Première utilisation :"]
[]
[null,"1) Téléchargez la dernière version mise à jour pour les grilles salariales sur notre site."]
[null,"http://www.sudsantesociaux35.org"]
[]
[null,"2) Personnalisez votre Logiciel en renseignant:"]
[]
[null,"      * Nom de l'Etablissement."]
[null,"      * Nom des représentants SUD Santé aux CAP."]
[null,"      * Renseignez \"Locale\" ou \"Départementale\""]
[null,"      * Renseignez \"vos numéros de téléphone\"."]
[null,"      * Renseignez \"votre département\"."]
[null,"      * Renseignez \"votre adresse mél\" et celle de \"votre site départemental\"."]
[null,"      * Renseignez \"l'année\" et \"la date de la CAP\"."]

{"sheet":"TEST MACROS","index":2,"n_rows":3,"n_cols":1,"rows_kept":3,"cut":false,"hidden":false,"merged":[]}
["Les \" macros \" sont activées "]
[]
["Pour retourner à l'introduction,\nappuyez sur le bouton ci-dessous :"]

{"sheet":"ACCUEIL","index":3,"n_rows":0,"n_cols":0,"rows_kept":0,"cut":false,"hidden":false,"merged":[]}

{"sheet":"ETABLISSEMENT","index":4,"n_rows":8,"n_cols":2,"rows_kept":8,"cut":false,"hidden":false,"merged":[]}
[]
[]
[]
[]
[]
[]
[]
[null,"Centre Hospitalier de Saint Malo"]

{"sheet":"CAPL ou CAPD","index":5,"n_rows":0,"n_cols":0,"rows_kept":0,"cut":false,"hidden":false,"merged":[]}

{"sheet":"VALEUR du POINT","index":6,"n_rows":11,"n_cols":5,"rows_kept":11,"cut":false,"hidden":false,"merged":[]}
[]
[]
[null,null,null,null,4.6859999999999999]
[]
[]
[]
[]
[]
[]
[]
[null,null,null,null,"2019-01-01"]

{"sheet":"TELEPHONE","index":7,"n_rows":10,"n_cols":5,"rows_kept":10,"cut":false,"hidden":false,"merged":[[9,4,9,5]]}
[]
[]
[null,null,null,null,2886]
[]
[]
[]
[]
[]
[]
[null,null,null,null,299212886]

{"sheet":"DEPARTEMENT","index":8,"n_rows":4,"n_cols":5,"rows_kept":4,"cut":false,"hidden":false,"merged":[]}
[]
[]
[]
[null,null,null,null,35]

{"sheet":"MEL","index":9,"n_rows":4,"n_cols":5,"rows_kept":4,"cut":false,"hidden":false,"merged":[]}
[]
[]
[]
[null,null,null,null,"sudsante@ch-stmalo.fr"]

{"sheet":"SITE DEPART","index":10,"n_rows":0,"n_cols":0,"rows_kept":0,"cut":false,"hidden":false,"merged":[]}

{"sheet":"HTTP DEPART","index":11,"n_rows":13,"n_cols":2,"rows_kept":13,"cut":false,"hidden":false,"merged":[]}
[]
[]
[]
[]
[]
[]
[]
[]
[]
[]
[]
[]
[null,"http://www.sudsantesociaux35.org"]

{"sheet":"REPRESENTANT","index":12,"n_rows":8,"n_cols":2,"rows_kept":8,"cut":false,"hidden":false,"merged":[]}
[]
[]
[]
[]
[]
[]
[]
[null,"Madame Françoise LAUTROU et Madame PERROT Anne"]

{"sheet":"CAP","index":13,"n_rows":11,"n_cols":5,"rows_kept":11,"cut":false,"hidden":false,"merged":[]}
[]
[]
[null,null,null,null,2019]
[]
[]
[]
[]
[]
[]
[]
[null,null,null,null,"2019-06-14"]

{"sheet":"CAP 5","index":14,"n_rows":0,"n_cols":0,"rows_kept":0,"cut":false,"hidden":false,"merged":[]}

{"sheet":"CAT B MT","index":15,"n_rows":2,"n_cols":2,"rows_kept":2,"cut":false,"hidden":false,"merged":[[1,1,1,10]]}
[]
[null,"Selectionnez le Grade concerné par l'avancement d'échelon"]

{"sheet":"CAT B EXTINCTION","index":16,"n_rows":2,"n_cols":2,"rows_kept":2,"cut":false,"hidden":false,"merged":[[1,1,1,10]]}
[]
[null,"Selectionnez le Grade concerné par l'avancement d'échelon"]

{"sheet":"END","index":17,"n_rows":0,"n_cols":0,"rows_kept":0,"cut":false,"hidden":false,"merged":[]}

{"sheet":"RECAPITULATIF","index":18,"n_rows":25,"n_cols":4,"rows_kept":25,"cut":false,"hidden":false,"merged":[[1,1,1,8],[10,1,10,2],[12,1,12,2],[14,1,14,2],[20,1,20,2],[24,1,24,2],[24,3,24,4],[22,2,22,4],[3,1,3,8],[6,1,6,2],[8,1,8,2],[4,1,4,8]]}
[]
[null,{"$f":"ETABLISSEMENT!B8","v":"Centre Hospitalier de Saint Malo"}]
[]
[null,"Nom du de la ou des Représentant-e-s"]
[null,{"$f":"REPRESENTANT!B8","v":"Madame Françoise LAUTROU et Madame PERROT Anne"}]
[]
[null,"CAP",null,"Locale"]
[]
[null,"Année",null,{"$f":"CAP!E3","v":2019}]
[]
[null,"Date de la CAP",null,{"$f":"CAP!E11","v":"2019-06-14"}]
[]
[null,"Valeur du Point",null,{"$f":"'VALEUR du POINT'!$E$3","v":4.6859999999999999}]
[]
[null,"Date de la\nvaleur du Point",null,{"$f":"'VALEUR du POINT'!E11","v":"2019-01-01"}]
[]
[null,"Poste",null,{"$f":"TELEPHONE!$E$3","v":2886}]
[]
[null,"Téléphone",null,{"$f":"TELEPHONE!$E$10","v":299212886}]
[]
[null,"Sud Santé Sociaux",null,{"$f":"DEPARTEMENT!E4","v":35}]
[]
[null,"Mél",{"$f":"MEL!E4","v":"sudsante@ch-stmalo.fr"}]
[]
[null,"Site Départemental Sud",null,{"$f":"'HTTP DEPART'!B13","v":"http://www.sudsantesociaux35.org"}]

{"sheet":"GRILLE Cat B CN","index":19,"n_rows":23,"n_cols":4,"rows_kept":23,"cut":false,"hidden":false,"merged":[[22,1,23,1],[22,2,23,2],[22,3,23,3],[18,1,19,1],[18,2,19,2],[18,3,19,3],[20,1,21,1],[20,2,21,2],[20,3,21,3],[14,1,15,1],[14,2,15,2],[14,3,15,3],[16,1,17,1],[16,2,17,2],[16,3,17,3],[10,1,11,1],[10,2,11,2],[10,3,11,3],[12,1,13,1],[12,2,13,2],[12,3,13,3],[1,1,5,3],[6,1,7,1],[6,2,7,2],[6,3,7,3],[8,1,9,1],[8,2,9,2],[8,3,9,3]]}
[]
[null,"Catégorie B              Classe Normale\n\nPréparateur en pharmacie Hospitalière,\nTechnicien de laboratoire médical,\nDiététicien"]
[]
[]
[]
[]
[null,"Echelon","Durée\n(en mois)","Indice\nMajoré"]
[]
[null,1,24,356]
[]
[null,2,36,371]
[]
[null,3,36,389]
[]
[null,4,48,409]
[]
[null,5,48,429]
[]
[null,6,48,462]
[]
[null,7,48,495]
[]
[null,8,48,534]

{"sheet":"IMP GRILLE Cat B CN","index":20,"n_rows":6,"n_cols":2,"rows_kept":6,"cut":false,"hidden":false,"merged":[[3,1,3,9],[5,1,5,9],[1,1,1,9]]}
[]
[null,"1) Imprimez autant de feuilles que d'agents concernés."]
[]
[null,"2) Pliez en 3 au niveau du repère, deux petits traits noirs."]
[]
[null,"3) Inserrez ce courrier dans une enveloppe 110 X 220 à fenêtre."]

{"sheet":"Cat B CN Echelon 2","index":21,"n_rows":72,"n_cols":20,"rows_kept":72,"cut":false,"hidden":false,"merged":[[62,0,62,16],[21,0,21,14],[35,0,35,2],[57,0,57,16],[59,0,59,16],[23,10,23,12],[23,13,23,16],[53,10,53,14],[54,0,54,11],[54,12,54,13],[35,8,35,9],[53,8,53,9],[23,0,23,4],[23,5,23,8],[48,0,48,5],[48,6,48,8],[32,11,32,12],[15,0,15,14],[32,0,32,4],[32,5,32,6],[8,12,9,14],[12,12,12,14],[52,17,53,17],[54,17,55,17],[56,17,57,17],[40,19,41,19],[42,17,43,17],[42,19,43,19],[44,17,45,17],[44,18,45,18],[48,18,49,18],[48,19,49,19],[56,18,57,18],[56,19,57,19],[46,18,47,18],[52,19,53,19],[54,18,55,18],[54,19,55,19],[1,6,1,16],[40,18,41,18],[26,5,27,17],[2,12,2,16],[45,5,45,7],[39,0,39,7],[39,8,39,9],[39,10,39,13],[40,17,41,17],[42,0,42,12],[45,2,45,3],[42,18,43,18],[19,0,19,3],[32,7,32,10],[2,6,2,11],[17,0,17,16],[71,0,71,4],[71,5,71,12],[70,0,70,1],[69,1,69,4],[35,17,39,19],[44,19,45,19],[46,19,47,19],[70,2,70,7],[50,18,51,18],[46,17,47,17],[48,17,49,17],[50,17,51,17],[64,0,64,3],[53,0,53,7],[50,19,51,19],[52,18,53,18]]}
[]
[null,null,null,null,null,null,"Commission Administrative"]
[null,null,null,null,null,null,"Paritaire",null,null,null,null,null,{"$f":"RECAPITULATIF!D7","v":"Locale"}]
[]
[]
[]
[]
[]
[null,null,null,null,null,null,null,null,null,null,null,null,"Mme, Mr :"]
[]
[null,null,null,null,null,null,null,null,null,null,null,null,"Grade :"]
[]
[null,null,null,null,null,null,null,null,null,null,null,null,"Service :"]
[]
[]
["Votre ou vos représentant-e-s du personnel"]
[]
[{"$f":"RECAPITULATIF!B5","v":"Madame Françoise LAUTROU et Madame PERROT Anne"}]
[]
["SUD Santé Sociaux",null,null,null,{"$f":"RECAPITULATIF!D21","v":35},"du:"]
[]
[{"$f":"RECAPITULATIF!B2","v":"Centre Hospitalier de Saint Malo"}]
[]
["siégeant auprès de la CAP",null,null,null,null,{"$f":"RECAPITULATIF!D7","v":"Locale"},null,null,null,"du :",{"$f":"RECAPITULATIF!D11","v":"2019-06-14"},null,null,"vous informe de votre :"]
[]
[]
[null,null,null,null,null,"AVANCEMENT D’ECHELON"]
[]
[]
[]
[]
[]
["Vous passez à l’échelon :",null,null,null,null,{"$f":"'GRILLE Cat B CN'!B11","v":2},null,"Indice Majoré :",null,null,null,{"$f":"'GRILLE Cat B CN'!D11","v":371}]
[]
[]
["Date d'effet :",null,null,null,null,"/",null,"/",{"$f":"RECAPITULATIF!D9","v":2019},null,null,null,null,null,null,null,null,{"$f":"'GRILLE Cat B CN'!B2","v":"Catégorie B              Classe Normale\n\nPréparateur en pharmacie Hospitalière,\nTechnicien de laboratoire médical,\nDiététicien"}]
[]
[]
[]
["Ce qui représente un gain mensuel de :",null,null,null,null,null,null,null,{"$f":"'GRILLE Cat B CN'!D11-'GRILLE Cat B CN'!D9","v":15},null,"points d'indice."]
[null,null,null,null,null,null,null,null,null,null,null,null,null,null,null,null,null,{"$f":"'GRILLE Cat B CN'!B7","v":"Echelon"},{"$f":"'GRILLE Cat B CN'!C7","v":"Durée\n(en mois)"},{"$f":"'GRILLE Cat B CN'!D7","v":"Indice\nMajoré"}]
[]
["Pour information, la valeur brute du point d'indice",null,null,null,null,null,null,null,null,null,null,null,null,null,null,null,null,{"$f":"'GRILLE Cat B CN'!B9","v":1},{"$f":"'GRILLE Cat B CN'!C9","v":24},{"$f":"'GRILLE Cat B CN'!D9","v":356}]
[]
[null,null,null,null,null,null,null,null,null,null,null,null,null,null,null,null,null,{"$f":"'GRILLE Cat B CN'!B11","v":2},{"$f":"'GRILLE Cat B CN'!C11","v":36},{"$f":"'GRILLE Cat B CN'!D11","v":371}]
["est de",null,{"$f":"RECAPITULATIF!D13","v":4.6859999999999999},null,"au",{"$f":"RECAPITULATIF!D15","v":"2019-01-01"}]
[null,null,null,null,null,null,null,null,null,null,null,null,null,null,null,null,null,{"$f":"'GRILLE Cat B CN'!B13","v":3},{"$f":"'GRILLE Cat B CN'!C13","v":36},{"$f":"'GRILLE Cat B CN'!D13","v":389}]
[]
["Soit un gain net mensuel de :",null,null,null,null,null,{"$f":"I40*C46*0.8315","v":58.446134999999991},null,null,null,null,null,null,null,null,null,null,{"$f":"'GRILLE Cat B CN'!B15","v":4},{"$f":"'GRILLE Cat B CN'!C15","v":48},{"$f":"'GRILLE Cat B CN'!D15","v":409}]
[]
[null,null,null,null,null,null,null,null,null,null,null,null,null,null,null,null,null,{"$f":"'GRILLE Cat B CN'!B17","v":5},{"$f":"'GRILLE Cat B CN'!C17","v":48},{"$f":"'GRILLE Cat B CN'!D17","v":429}]
[]
[null,null,null,null,null,null,null,null,null,null,null,null,null,null,null,null,null,{"$f":"'GRILLE Cat B CN'!B19","v":6},{"$f":"'GRILLE Cat B CN'!C19","v":48},{"$f":"'GRILLE Cat B CN'!D19","v":462}]
["Vos représentant-e-s SUD Santé Sociaux ",null,null,null,null,null,null,null,{"$f":"RECAPITULATIF!D21","v":35},null,"sont à votre disposition"]
["pour tous renseignements complémentaires au poste :",null,null,null,null,null,null,null,null,null,null,null,{"$f":"RECAPITULATIF!D17","v":2886},null,null,null,null,{"$f":"'GRILLE Cat B CN'!B21","v":7},{"$f":"'GRILLE Cat B CN'!C21","v":48},{"$f":"'GRILLE Cat B CN'!D21","v":495}]
[]
[null,null,null,null,null,null,null,null,null,null,null,null,null,null,null,null,null,{"$f":"'GRILLE Cat B CN'!B23","v":8},{"$f":"'GRILLE Cat B CN'!C23","v":48},{"$f":"'GRILLE Cat B CN'!D23","v":534}]
[]
[null,null,null,null,null,null,null,null,null,null,null,null,null,null,null,null,null,{"$f":"'GRILLE Cat B CN'!B25","v":0},{"$f":"'GRILLE Cat B CN'!C25","v":0},{"$f":"'GRILLE Cat B CN'!D25","v":0}]
["Recevez toutes nos salutations."]
[null,null,null,null,null,null,null,null,null,null,null,null,null,null,null,null,null,{"$f":"'GRILLE Cat B CN'!B27","v":0},{"$f":"'GRILLE Cat B CN'!C27","v":0},{"$f":"'GRILLE Cat B CN'!D27","v":0}]
[]
[{"$f":"RECAPITULATIF!B5","v":"Madame Françoise LAUTROU et Madame PERROT Anne"}]
[]
["SUD Santé Sociaux",null,null,null,{"$f":"RECAPITULATIF!D21","v":35}]
[]
[]
[]
[]
["Tél :",{"$f":"RECAPITULATIF!D19","v":299212886}]
["Mél :",null,{"$f":"RECAPITULATIF!C23","v":"sudsante@ch-stmalo.fr"}]
[{"$f":"RECAPITULATIF!B25","v":"Site Départemental Sud"},null,null,null,null,{"$f":"RECAPITULATIF!D25","v":"http://www.sudsantesociaux35.org"}]

{"sheet":"Cat B CN Echelon 3","index":22,"n_rows":72,"n_cols":20,"rows_kept":72,"cut":false,"hidden":false,"merged":[[15,0,15,14],[1,6,1,16],[2,6,2,11],[2,12,2,16],[8,12,9,14],[12,12,12,14],[17,0,17,16],[19,0,19,3],[21,0,21,14],[23,0,23,4],[23,5,23,8],[23,10,23,12],[23,13,23,16],[35,0,35,2],[35,8,35,9],[35,17,39,19],[39,0,39,7],[39,8,39,9],[39,10,39,13],[26,5,27,17],[32,0,32,4],[32,5,32,6],[32,7,32,10],[32,11,32,12],[40,17,41,17],[40,18,41,18],[40,19,41,19],[42,0,42,12],[42,17,43,17],[42,18,43,18],[42,19,43,19],[45,2,45,3],[45,5,45,7],[50,17,51,17],[50,18,51,18],[50,19,51,19],[44,17,45,17],[44,18,45,18],[44,19,45,19],[48,19,49,19],[48,18,49,18],[48,17,49,17],[46,19,47,19],[46,18,47,18],[46,17,47,17],[48,0,48,5],[48,6,48,8],[56,17,57,17],[56,18,57,18],[56,19,57,19],[57,0,57,16],[52,17,53,17],[52,18,53,18],[52,19,53,19],[53,0,53,7],[53,8,53,9],[53,10,53,14],[54,0,54,11],[54,12,54,13],[54,17,55,17],[54,18,55,18],[54,19,55,19],[71,0,71,4],[71,5,71,12],[59,0,59,16],[62,0,62,16],[64,0,64,3],[69,1,69,4],[70,0,70,1],[70,2,70,7]]}
[]
[null,null,null,null,null,null,"Commission Administrative"]
[null,null,null,null,null,null,"Paritaire",null,null,null,null,null,{"$f":"RECAPITULATIF!D7","v":"Locale"}]
[]
[]
[]
[]
[]
[null,null,null,null,null,null,null,null,null,null,null,null,"Mme, Mr :"]
[]
[null,null,null,null,null,null,null,null,null,null,null,null,"Grade :"]
[]
[null,null,null,null,null,null,null,null,null,null,null,null,"Service :"]
[]
[]
["Votre ou vos représentant-e-s du personnel"]
[]
[{"$f":"RECAPITULATIF!B5","v":"Madame Françoise LAUTROU et Madame PERROT Anne"}]
[]
["SUD Santé Sociaux",null,null,null,{"$f":"RECAPITULATIF!D21","v":35},"du:"]
[]
[{"$f":"RECAPITULATIF!B2","v":"Centre Hospitalier de Saint Malo"}]
[]
["siégeant auprès de la CAP",null,null,null,null,{"$f":"RECAPITULATIF!D7","v":"Locale"},null,null,null,"du :",{"$f":"RECAPITULATIF!D11","v":"2019-06-14"},null,null,"vous informe de votre :"]
[]
[]
[null,null,null,null,null,"AVANCEMENT D’ECHELON"]
[]
[]
[]
[]
[]
["Vous passez à l’échelon :",null,null,null,null,{"$f":"'GRILLE Cat B CN'!B13","v":3},null,"Indice Majoré :",null,null,null,{"$f":"'GRILLE Cat B CN'!D13","v":389}]
[]
[]
["Date d'effet :",null,null,null,null,"/",null,"/",{"$f":"RECAPITULATIF!D9","v":2019},null,null,null,null,null,null,null,null,{"$f":"'GRILLE Cat B CN'!B2","v":"Catégorie B              Classe Normale\n\nPréparateur en pharmacie Hospitalière,\nTechnicien de laboratoire médical,\nDiététicien"}]
[]
[]
[]
["Ce qui représente un gain mensuel de :",null,null,null,null,null,null,null,{"$f":"'GRILLE Cat B CN'!D13-'GRILLE Cat B CN'!D11","v":18},null,"points d'indice."]
[null,null,null,null,null,null,null,null,null,null,null,null,null,null,null,null,null,{"$f":"'GRILLE Cat B CN'!B7","v":"Echelon"},{"$f":"'GRILLE Cat B CN'!C7","v":"Durée\n(en mois)"},{"$f":"'GRILLE Cat B CN'!D7","v":"Indice\nMajoré"}]
[]
["Pour information, la valeur brute du point d'indice",null,null,null,null,null,null,null,null,null,null,null,null,null,null,null,null,{"$f":"'GRILLE Cat B CN'!B9","v":1},{"$f":"'GRILLE Cat B CN'!C9","v":24},{"$f":"'GRILLE Cat B CN'!D9","v":356}]
[]
[null,null,null,null,null,null,null,null,null,null,null,null,null,null,null,null,null,{"$f":"'GRILLE Cat B CN'!B11","v":2},{"$f":"'GRILLE Cat B CN'!C11","v":36},{"$f":"'GRILLE Cat B CN'!D11","v":371}]
["est de",null,{"$f":"RECAPITULATIF!D13","v":4.6859999999999999},null,"au",{"$f":"RECAPITULATIF!D15","v":"2019-01-01"}]
[null,null,null,null,null,null,null,null,null,null,null,null,null,null,null,null,null,{"$f":"'GRILLE Cat B CN'!B13","v":3},{"$f":"'GRILLE Cat B CN'!C13","v":36},{"$f":"'GRILLE Cat B CN'!D13","v":389}]
[]
["Soit un gain net mensuel de :",null,null,null,null,null,{"$f":"I40*C46*0.8315","v":70.135362000000001},null,null,null,null,null,null,null,null,null,null,{"$f":"'GRILLE Cat B CN'!B15","v":4},{"$f":"'GRILLE Cat B CN'!C15","v":48},{"$f":"'GRILLE Cat B CN'!D15","v":409}]
[]
[null,null,null,null,null,null,null,null,null,null,null,null,null,null,null,null,null,{"$f":"'GRILLE Cat B CN'!B17","v":5},{"$f":"'GRILLE Cat B CN'!C17","v":48},{"$f":"'GRILLE Cat B CN'!D17","v":429}]
[]
[null,null,null,null,null,null,null,null,null,null,null,null,null,null,null,null,null,{"$f":"'GRILLE Cat B CN'!B19","v":6},{"$f":"'GRILLE Cat B CN'!C19","v":48},{"$f":"'GRILLE Cat B CN'!D19","v":462}]
["Vos représentant-e-s SUD Santé Sociaux ",null,null,null,null,null,null,null,{"$f":"RECAPITULATIF!D21","v":35},null,"sont à votre disposition"]
["pour tous renseignements complémentaires au poste :",null,null,null,null,null,null,null,null,null,null,null,{"$f":"RECAPITULATIF!D17","v":2886},null,null,null,null,{"$f":"'GRILLE Cat B CN'!B21","v":7},{"$f":"'GRILLE Cat B CN'!C21","v":48},{"$f":"'GRILLE Cat B CN'!D21","v":495}]
[]
[null,null,null,null,null,null,null,null,null,null,null,null,null,null,null,null,null,{"$f":"'GRILLE Cat B CN'!B23","v":8},{"$f":"'GRILLE Cat B CN'!C23","v":48},{"$f":"'GRILLE Cat B CN'!D23","v":534}]
[]
[null,null,null,null,null,null,null,null,null,null,null,null,null,null,null,null,null,{"$f":"'GRILLE Cat B CN'!B25","v":0},{"$f":"'GRILLE Cat B CN'!C25","v":0},{"$f":"'GRILLE Cat B CN'!D25","v":0}]
["Recevez toutes nos salutations."]
[null,null,null,null,null,null,null,null,null,null,null,null,null,null,null,null,null,{"$f":"'GRILLE Cat B CN'!B27","v":0},{"$f":"'GRILLE Cat B CN'!C27","v":0},{"$f":"'GRILLE Cat B CN'!D27","v":0}]
[]
[{"$f":"RECAPITULATIF!B5","v":"Madame Françoise LAUTROU et Madame PERROT Anne"}]
[]
["SUD Santé Sociaux",null,null,null,{"$f":"RECAPITULATIF!D21","v":35}]
[]
[]
[]
[]
["Tél :",{"$f":"RECAPITULATIF!D19","v":299212886}]
["Mél :",null,{"$f":"RECAPITULATIF!C23","v":"sudsante@ch-stmalo.fr"}]
[{"$f":"RECAPITULATIF!B25","v":"Site Départemental Sud"},null,null,null,null,{"$f":"RECAPITULATIF!D25","v":"http://www.sudsantesociaux35.org"}]

{"sheet":"Cat B CN Echelon 4","index":23,"n_rows":72,"n_cols":20,"rows_kept":72,"cut":false,"hidden":false,"merged":[[15,0,15,14],[1,6,1,16],[2,6,2,11],[2,12,2,16],[8,12,9,14],[12,12,12,14],[17,0,17,16],[19,0,19,3],[21,0,21,14],[23,0,23,4],[23,5,23,8],[23,10,23,12],[23,13,23,16],[35,0,35,2],[35,8,35,9],[35,17,39,19],[39,0,39,7],[39,8,39,9],[39,10,39,13],[26,5,27,17],[32,0,32,4],[32,5,32,6],[32,7,32,10],[32,11,32,12],[40,17,41,17],[40,18,41,18],[40,19,41,19],[42,0,42,12],[42,17,43,17],[42,18,43,18],[42,19,43,19],[45,2,45,3],[45,5,45,7],[46,17,47,17],[46,18,47,18],[46,19,47,19],[50,17,51,17],[50,18,51,18],[50,19,51,19],[44,17,45,17],[44,18,45,18],[44,19,45,19],[48,0,48,5],[48,6,48,8],[48,17,49,17],[48,18,49,18],[48,19,49,19],[56,17,57,17],[56,18,57,18],[56,19,57,19],[57,0,57,16],[52,17,53,17],[52,18,53,18],[52,19,53,19],[53,0,53,7],[53,8,53,9],[53,10,53,14],[54,0,54,11],[54,12,54,13],[54,17,55,17],[54,18,55,18],[54,19,55,19],[71,0,71,4],[71,5,71,12],[59,0,59,16],[62,0,62,16],[64,0,64,3],[69,1,69,4],[70,0,70,1],[70,2,70,7]]}
[]
[null,null,null,null,null,null,"Commission Administrative"]
[null,null,null,null,null,null,"Paritaire",null,null,null,null,null,{"$f":"RECAPITULATIF!D7","v":"Locale"}]
[]
[]
[]
[]
[]
[null,null,null,null,null,null,null,null,null,null,null,null,"Mme, Mr :"]
[]
[null,null,null,null,null,null,null,null,null,null,null,null,"Grade :"]
[]
[null,null,null,null,null,null,null,null,null,null,null,null,"Service :"]
[]
[]
["Votre ou vos représentant-e-s du personnel"]
[]
[{"$f":"RECAPITULATIF!B5","v":"Madame Françoise LAUTROU et Madame PERROT Anne"}]
[]
["SUD Santé Sociaux",null,null,null,{"$f":"RECAPITULATIF!D21","v":35},"du:"]
[]
[{"$f":"RECAPITULATIF!B2","v":"Centre Hospitalier de Saint Malo"}]
[]
["siégeant auprès de la CAP",null,null,null,null,{"$f":"RECAPITULATIF!D7","v":"Locale"},null,null,null,"du :",{"$f":"RECAPITULATIF!D11","v":"2019-06-14"},null,null,"vous informe de votre :"]
[]
[]
[null,null,null,null,null,"AVANCEMENT D’ECHELON"]
[]
[]
[]
[]
[]
["Vous passez à l’échelon :",null,null,null,null,{"$f":"'GRILLE Cat B CN'!B15","v":4},null,"Indice Majoré :",null,null,null,{"$f":"'GRILLE Cat B CN'!D15","v":409}]
[]
[]
["Date d'effet :",null,null,null,null,"/",null,"/",{"$f":"RECAPITULATIF!D9","v":2019},null,null,null,null,null,null,null,null,{"$f":"'GRILLE Cat B CN'!B2","v":"Catégorie B              Classe Normale\n\nPréparateur en pharmacie Hospitalière,\nTechnicien de laboratoire médical,\nDiététicien"}]
[]
[]
[]
["Ce qui représente un gain mensuel de :",null,null,null,null,null,null,null,{"$f":"'GRILLE Cat B CN'!D15-'GRILLE Cat B CN'!D13","v":20},null,"points d'indice."]
[null,null,null,null,null,null,null,null,null,null,null,null,null,null,null,null,null,{"$f":"'GRILLE Cat B CN'!B7","v":"Echelon"},{"$f":"'GRILLE Cat B CN'!C7","v":"Durée\n(en mois)"},{"$f":"'GRILLE Cat B CN'!D7","v":"Indice\nMajoré"}]
[]
["Pour information, la valeur brute du point d'indice",null,null,null,null,null,null,null,null,null,null,null,null,null,null,null,null,{"$f":"'GRILLE Cat B CN'!B9","v":1},{"$f":"'GRILLE Cat B CN'!C9","v":24},{"$f":"'GRILLE Cat B CN'!D9","v":356}]
[]
[null,null,null,null,null,null,null,null,null,null,null,null,null,null,null,null,null,{"$f":"'GRILLE Cat B CN'!B11","v":2},{"$f":"'GRILLE Cat B CN'!C11","v":36},{"$f":"'GRILLE Cat B CN'!D11","v":371}]
["est de",null,{"$f":"RECAPITULATIF!D13","v":4.6859999999999999},null,"au",{"$f":"RECAPITULATIF!D15","v":"2019-01-01"}]
[null,null,null,null,null,null,null,null,null,null,null,null,null,null,null,null,null,{"$f":"'GRILLE Cat B CN'!B13","v":3},{"$f":"'GRILLE Cat B CN'!C13","v":36},{"$f":"'GRILLE Cat B CN'!D13","v":389}]
[]
["Soit un gain net mensuel de :",null,null,null,null,null,{"$f":"I40*C46*0.8315","v":77.928179999999998},null,null,null,null,null,null,null,null,null,null,{"$f":"'GRILLE Cat B CN'!B15","v":4},{"$f":"'GRILLE Cat B CN'!C15","v":48},{"$f":"'GRILLE Cat B CN'!D15","v":409}]
[]
[null,null,null,null,null,null,null,null,null,null,null,null,null,null,null,null,null,{"$f":"'GRILLE Cat B CN'!B17","v":5},{"$f":"'GRILLE Cat B CN'!C17","v":48},{"$f":"'GRILLE Cat B CN'!D17","v":429}]
[]
[null,null,null,null,null,null,null,null,null,null,null,null,null,null,null,null,null,{"$f":"'GRILLE Cat B CN'!B19","v":6},{"$f":"'GRILLE Cat B CN'!C19","v":48},{"$f":"'GRILLE Cat B CN'!D19","v":462}]
["Vos représentant-e-s SUD Santé Sociaux ",null,null,null,null,null,null,null,{"$f":"RECAPITULATIF!D21","v":35},null,"sont à votre disposition"]
["pour tous renseignements complémentaires au poste :",null,null,null,null,null,null,null,null,null,null,null,{"$f":"RECAPITULATIF!D17","v":2886},null,null,null,null,{"$f":"'GRILLE Cat B CN'!B21","v":7},{"$f":"'GRILLE Cat B CN'!C21","v":48},{"$f":"'GRILLE Cat B CN'!D21","v":495}]
[]
[null,null,null,null,null,null,null,null,null,null,null,null,null,null,null,null,null,{"$f":"'GRILLE Cat B CN'!B23","v":8},{"$f":"'GRILLE Cat B CN'!C23","v":48},{"$f":"'GRILLE Cat B CN'!D23","v":534}]
[]
[null,null,null,null,null,null,null,null,null,null,null,null,null,null,null,null,null,{"$f":"'GRILLE Cat B CN'!B25","v":0},{"$f":"'GRILLE Cat B CN'!C25","v":0},{"$f":"'GRILLE Cat B CN'!D25","v":0}]
["Recevez toutes nos salutations."]
[null,null,null,null,null,null,null,null,null,null,null,null,null,null,null,null,null,{"$f":"'GRILLE Cat B CN'!B27","v":0},{"$f":"'GRILLE Cat B CN'!C27","v":0},{"$f":"'GRILLE Cat B CN'!D27","v":0}]
[]
[{"$f":"RECAPITULATIF!B5","v":"Madame Françoise LAUTROU et Madame PERROT Anne"}]
[]
["SUD Santé Sociaux",null,null,null,{"$f":"RECAPITULATIF!D21","v":35}]
[]
[]
[]
[]
["Tél :",{"$f":"RECAPITULATIF!D19","v":299212886}]
["Mél :",null,{"$f":"RECAPITULATIF!C23","v":"sudsante@ch-stmalo.fr"}]
[{"$f":"RECAPITULATIF!B25","v":"Site Départemental Sud"},null,null,null,null,{"$f":"RECAPITULATIF!D25","v":"http://www.sudsantesociaux35.org"}]

{"sheet":"Cat B CN Echelon 5","index":24,"n_rows":72,"n_cols":20,"rows_kept":72,"cut":false,"hidden":false,"merged":[[15,0,15,14],[1,6,1,16],[2,6,2,11],[2,12,2,16],[8,12,9,14],[12,12,12,14],[17,0,17,16],[19,0,19,3],[21,0,21,14],[23,0,23,4],[23,5,23,8],[23,10,23,12],[23,13,23,16],[35,0,35,2],[35,8,35,9],[35,17,39,19],[39,0,39,7],[39,8,39,9],[39,10,39,13],[26,5,27,17],[32,0,32,4],[32,5,32,6],[32,7,32,10],[32,11,32,12],[40,17,41,17],[40,18,41,18],[40,19,41,19],[42,0,42,12],[42,17,43,17],[42,18,43,18],[42,19,43,19],[45,2,45,3],[45,5,45,7],[46,17,47,17],[46,18,47,18],[46,19,47,19],[50,17,51,17],[50,18,51,18],[50,19,51,19],[44,17,45,17],[44,18,45,18],[44,19,45,19],[48,0,48,5],[48,6,48,8],[48,17,49,17],[48,18,49,18],[48,19,49,19],[56,17,57,17],[56,18,57,18],[56,19,57,19],[57,0,57,16],[52,17,53,17],[52,18,53,18],[52,19,53,19],[53,0,53,7],[53,8,53,9],[53,10,53,14],[54,0,54,11],[54,12,54,13],[54,17,55,17],[54,18,55,18],[54,19,55,19],[71,0,71,4],[71,5,71,12],[59,0,59,16],[62,0,62,16],[64,0,64,3],[69,1,69,4],[70,0,70,1],[70,2,70,7]]}
[]
[null,null,null,null,null,null,"Commission Administrative"]
[null,null,null,null,null,null,"Paritaire",null,null,null,null,null,{"$f":"RECAPITULATIF!D7","v":"Locale"}]
[]
[]
[]
[]
[]
[null,null,null,null,null,null,null,null,null,null,null,null,"Mme, Mr :"]
[]
[null,null,null,null,null,null,null,null,null,null,null,null,"Grade :"]
[]
[null,null,null,null,null,null,null,null,null,null,null,null,"Service :"]
[]
[]
["Votre ou vos représentant-e-s du personnel"]
[]
[{"$f":"RECAPITULATIF!B5","v":"Madame Françoise LAUTROU et Madame PERROT Anne"}]
[]
["SUD Santé Sociaux",null,null,null,{"$f":"RECAPITULATIF!D21","v":35},"du:"]
[]
[{"$f":"RECAPITULATIF!B2","v":"Centre Hospitalier de Saint Malo"}]
[]
["siégeant auprès de la CAP",null,null,null,null,{"$f":"RECAPITULATIF!D7","v":"Locale"},null,null,null,"du :",{"$f":"RECAPITULATIF!D11","v":"2019-06-14"},null,null,"vous informe de votre :"]
[]
[]
[null,null,null,null,null,"AVANCEMENT D’ECHELON"]
[]
[]
[]
[]
[]
["Vous passez à l’échelon :",null,null,null,null,{"$f":"'GRILLE CAT B CS'!B17","v":5},null,"Indice Majoré :",null,null,null,{"$f":"'GRILLE Cat B CN'!D17","v":429}]
[]
[]
["Date d'effet :",null,null,null,null,"/",null,"/",{"$f":"RECAPITULATIF!D9","v":2019},null,null,null,null,null,null,null,null,{"$f":"'GRILLE Cat B CN'!B2","v":"Catégorie B              Classe Normale\n\nPréparateur en pharmacie Hospitalière,\nTechnicien de laboratoire médical,\nDiététicien"}]
[]
[]
[]
["Ce qui représente un gain mensuel de :",null,null,null,null,null,null,null,{"$f":"'GRILLE CAT B CS'!D17-'GRILLE CAT B CS'!D15","v":24},null,"points d'indice."]
[null,null,null,null,null,null,null,null,null,null,null,null,null,null,null,null,null,{"$f":"'GRILLE CAT B CS'!B7","v":"Echelon"},{"$f":"'GRILLE CAT B CS'!C7","v":"Durée\n(en mois)"},{"$f":"'GRILLE CAT B CS'!D7","v":"Indice Majoré"}]
[]
["Pour information, la valeur brute du point d'indice",null,null,null,null,null,null,null,null,null,null,null,null,null,null,null,null,{"$f":"'GRILLE Cat B CN'!B9","v":1},{"$f":"'GRILLE Cat B CN'!C9","v":24},{"$f":"'GRILLE Cat B CN'!D9","v":356}]
[]
[null,null,null,null,null,null,null,null,null,null,null,null,null,null,null,null,null,{"$f":"'GRILLE Cat B CN'!B11","v":2},{"$f":"'GRILLE Cat B CN'!C11","v":36},{"$f":"'GRILLE Cat B CN'!D11","v":371}]
["est de",null,{"$f":"RECAPITULATIF!D13","v":4.6859999999999999},null,"au",{"$f":"RECAPITULATIF!D15","v":"2019-01-01"}]
[null,null,null,null,null,null,null,null,null,null,null,null,null,null,null,null,null,{"$f":"'GRILLE Cat B CN'!B13","v":3},{"$f":"'GRILLE Cat B CN'!C13","v":36},{"$f":"'GRILLE Cat B CN'!D13","v":389}]
[]
["Soit un gain net mensuel de :",null,null,null,null,null,{"$f":"I40*C46*0.8315","v":93.513816000000006},null,null,null,null,null,null,null,null,null,null,{"$f":"'GRILLE Cat B CN'!B15","v":4},{"$f":"'GRILLE Cat B CN'!C15","v":48},{"$f":"'GRILLE Cat B CN'!D15","v":409}]
[]
[null,null,null,null,null,null,null,null,null,null,null,null,null,null,null,null,null,{"$f":"'GRILLE Cat B CN'!B17","v":5},{"$f":"'GRILLE Cat B CN'!C17","v":48},{"$f":"'GRILLE Cat B CN'!D17","v":429}]
[]
[null,null,null,null,null,null,null,null,null,null,null,null,null,null,null,null,null,{"$f":"'GRILLE Cat B CN'!B19","v":6},{"$f":"'GRILLE Cat B CN'!C19","v":48},{"$f":"'GRILLE Cat B CN'!D19","v":462}]
["Vos représentant-e-s SUD Santé Sociaux ",null,null,null,null,null,null,null,{"$f":"RECAPITULATIF!D21","v":35},null,"sont à votre disposition"]
["pour tous renseignements complémentaires au poste :",null,null,null,null,null,null,null,null,null,null,null,{"$f":"RECAPITULATIF!D17","v":2886},null,null,null,null,{"$f":"'GRILLE Cat B CN'!B21","v":7},{"$f":"'GRILLE Cat B CN'!C21","v":48},{"$f":"'GRILLE Cat B CN'!D21","v":495}]
[]
[null,null,null,null,null,null,null,null,null,null,null,null,null,null,null,null,null,{"$f":"'GRILLE Cat B CN'!B23","v":8},{"$f":"'GRILLE Cat B CN'!C23","v":48},{"$f":"'GRILLE Cat B CN'!D23","v":534}]
[]
[null,null,null,null,null,null,null,null,null,null,null,null,null,null,null,null,null,{"$f":"'GRILLE Cat B CN'!B25","v":0},{"$f":"'GRILLE Cat B CN'!C25","v":0},{"$f":"'GRILLE Cat B CN'!D25","v":0}]
["Recevez toutes nos salutations."]
[null,null,null,null,null,null,null,null,null,null,null,null,null,null,null,null,null,{"$f":"'GRILLE Cat B CN'!B27","v":0},{"$f":"'GRILLE Cat B CN'!C27","v":0},{"$f":"'GRILLE Cat B CN'!D27","v":0}]
[]
[{"$f":"RECAPITULATIF!B5","v":"Madame Françoise LAUTROU et Madame PERROT Anne"}]
[]
["SUD Santé Sociaux",null,null,null,{"$f":"RECAPITULATIF!D21","v":35}]
[]
[]
[]
[]
["Tél :",{"$f":"RECAPITULATIF!D19","v":299212886}]
["Mél :",null,{"$f":"RECAPITULATIF!C23","v":"sudsante@ch-stmalo.fr"}]
[{"$f":"RECAPITULATIF!B25","v":"Site Départemental Sud"},null,null,null,null,{"$f":"RECAPITULATIF!D25","v":"http://www.sudsantesociaux35.org"}]

{"sheet":"Cat B CN Echelon 6","index":25,"n_rows":72,"n_cols":20,"rows_kept":72,"cut":false,"hidden":false,"merged":[[15,0,15,14],[1,6,1,16],[2,6,2,11],[2,12,2,16],[8,12,9,14],[12,12,12,14],[17,0,17,16],[19,0,19,3],[21,0,21,14],[23,0,23,4],[23,5,23,8],[23,10,23,12],[23,13,23,16],[35,0,35,2],[35,8,35,9],[35,17,39,19],[39,0,39,7],[39,8,39,9],[39,10,39,13],[26,5,27,17],[32,0,32,4],[32,5,32,6],[32,7,32,10],[32,11,32,12],[40,17,41,17],[40,18,41,18],[40,19,41,19],[42,0,42,12],[42,17,43,17],[42,18,43,18],[42,19,43,19],[45,2,45,3],[45,5,45,7],[46,17,47,17],[46,18,47,18],[46,19,47,19],[50,17,51,17],[50,18,51,18],[50,19,51,19],[44,17,45,17],[44,18,45,18],[44,19,45,19],[48,0,48,5],[48,6,48,8],[48,17,49,17],[48,18,49,18],[48,19,49,19],[56,17,57,17],[56,18,57,18],[56,19,57,19],[57,0,57,16],[52,17,53,17],[52,18,53,18],[52,19,53,19],[53,0,53,7],[53,8,53,9],[53,10,53,14],[54,0,54,11],[54,12,54,13],[54,17,55,17],[54,18,55,18],[54,19,55,19],[71,0,71,4],[71,5,71,12],[59,0,59,16],[62,0,62,16],[64,0,64,3],[69,1,69,4],[70,0,70,1],[70,2,70,7]]}
[]
[null,null,null,null,null,null,"Commission Administrative"]
[null,null,null,null,null,null,"Paritaire",null,null,null,null,null,{"$f":"RECAPITULATIF!D7","v":"Locale"}]
[]
[]
[]
[]
[]
[null,null,null,null,null,null,null,null,null,null,null,null,"Mme, Mr :"]
[]
[null,null,null,null,null,null,null,null,null,null,null,null,"Grade :"]
[]
[null,null,null,null,null,null,null,null,null,null,null,null,"Service :"]
[]
[]
["Votre ou vos représentant-e-s du personnel"]
[]
[{"$f":"RECAPITULATIF!B5","v":"Madame Françoise LAUTROU et Madame PERROT Anne"}]
[]
["SUD Santé Sociaux",null,null,null,{"$f":"RECAPITULATIF!D21","v":35},"du:"]
[]
[{"$f":"RECAPITULATIF!B2","v":"Centre Hospitalier de Saint Malo"}]
[]
["siégeant auprès de la CAP",null,null,null,null,{"$f":"RECAPITULATIF!D7","v":"Locale"},null,null,null,"du :",{"$f":"RECAPITULATIF!D11","v":"2019-06-14"},null,null,"vous informe de votre :"]
[]
[]
[null,null,null,null,null,"AVANCEMENT D’ECHELON"]
[]
[]
[]
[]
[]
["Vous passez à l’échelon :",null,null,null,null,{"$f":"'GRILLE Cat B CN'!B19","v":6},null,"Indice Majoré :",null,null,null,{"$f":"'GRILLE Cat B CN'!D19","v":462}]
[]
[]
["Date d'effet :",null,null,null,null,"/",null,"/",{"$f":"RECAPITULATIF!D9","v":2019},null,null,null,null,null,null,null,null,{"$f":"'GRILLE Cat B CN'!B2","v":"Catégorie B              Classe Normale\n\nPréparateur en pharmacie Hospitalière,\nTechnicien de laboratoire médical,\nDiététicien"}]
[]
[]
[]
["Ce qui représente un gain mensuel de :",null,null,null,null,null,null,null,{"$f":"'GRILLE Cat B CN'!D19-'GRILLE Cat B CN'!D17","v":33},null,"points d'indice."]
[null,null,null,null,null,null,null,null,null,null,null,null,null,null,null,null,null,{"$f":"'GRILLE Cat B CN'!B7","v":"Echelon"},{"$f":"'GRILLE Cat B CN'!C7","v":"Durée\n(en mois)"},{"$f":"'GRILLE Cat B CN'!D7","v":"Indice\nMajoré"}]
[]
["Pour information, la valeur brute du point d'indice",null,null,null,null,null,null,null,null,null,null,null,null,null,null,null,null,{"$f":"'GRILLE Cat B CN'!B9","v":1},{"$f":"'GRILLE Cat B CN'!C9","v":24},{"$f":"'GRILLE Cat B CN'!D9","v":356}]
[]
[null,null,null,null,null,null,null,null,null,null,null,null,null,null,null,null,null,{"$f":"'GRILLE Cat B CN'!B11","v":2},{"$f":"'GRILLE Cat B CN'!C11","v":36},{"$f":"'GRILLE Cat B CN'!D11","v":371}]
["est de",null,{"$f":"RECAPITULATIF!D13","v":4.6859999999999999},null,"au",{"$f":"RECAPITULATIF!D15","v":"2019-01-01"}]
[null,null,null,null,null,null,null,null,null,null,null,null,null,null,null,null,null,{"$f":"'GRILLE Cat B CN'!B13","v":3},{"$f":"'GRILLE Cat B CN'!C13","v":36},{"$f":"'GRILLE Cat B CN'!D13","v":389}]
[]
["Soit un gain net mensuel de :",null,null,null,null,null,{"$f":"I40*C46*0.8315","v":128.58149700000001},null,null,null,null,null,null,null,null,null,null,{"$f":"'GRILLE Cat B CN'!B15","v":4},{"$f":"'GRILLE Cat B CN'!C15","v":48},{"$f":"'GRILLE Cat B CN'!D15","v":409}]
[]
[null,null,null,null,null,null,null,null,null,null,null,null,null,null,null,null,null,{"$f":"'GRILLE Cat B CN'!B17","v":5},{"$f":"'GRILLE Cat B CN'!C17","v":48},{"$f":"'GRILLE Cat B CN'!D17","v":429}]
[]
[null,null,null,null,null,null,null,null,null,null,null,null,null,null,null,null,null,{"$f":"'GRILLE Cat B CN'!B19","v":6},{"$f":"'GRILLE Cat B CN'!C19","v":48},{"$f":"'GRILLE Cat B CN'!D19","v":462}]
["Vos représentant-e-s SUD Santé Sociaux ",null,null,null,null,null,null,null,{"$f":"RECAPITULATIF!D21","v":35},null,"sont à votre disposition"]
["pour tous renseignements complémentaires au poste :",null,null,null,null,null,null,null,null,null,null,null,{"$f":"RECAPITULATIF!D17","v":2886},null,null,null,null,{"$f":"'GRILLE Cat B CN'!B21","v":7},{"$f":"'GRILLE Cat B CN'!C21","v":48},{"$f":"'GRILLE Cat B CN'!D21","v":495}]
[]
[null,null,null,null,null,null,null,null,null,null,null,null,null,null,null,null,null,{"$f":"'GRILLE Cat B CN'!B23","v":8},{"$f":"'GRILLE Cat B CN'!C23","v":48},{"$f":"'GRILLE Cat B CN'!D23","v":534}]
[]
[null,null,null,null,null,null,null,null,null,null,null,null,null,null,null,null,null,{"$f":"'GRILLE Cat B CN'!B25","v":0},{"$f":"'GRILLE Cat B CN'!C25","v":0},{"$f":"'GRILLE Cat B CN'!D25","v":0}]
["Recevez toutes nos salutations."]
[null,null,null,null,null,null,null,null,null,null,null,null,null,null,null,null,null,{"$f":"'GRILLE Cat B CN'!B27","v":0},{"$f":"'GRILLE Cat B CN'!C27","v":0},{"$f":"'GRILLE Cat B CN'!D27","v":0}]
[]
[{"$f":"RECAPITULATIF!B5","v":"Madame Françoise LAUTROU et Madame PERROT Anne"}]
[]
["SUD Santé Sociaux",null,null,null,{"$f":"RECAPITULATIF!D21","v":35}]
[]
[]
[]
[]
["Tél :",{"$f":"RECAPITULATIF!D19","v":299212886}]
["Mél :",null,{"$f":"RECAPITULATIF!C23","v":"sudsante@ch-stmalo.fr"}]
[{"$f":"RECAPITULATIF!B25","v":"Site Départemental Sud"},null,null,null,null,{"$f":"RECAPITULATIF!D25","v":"http://www.sudsantesociaux35.org"}]

{"sheet":"Cat B CN Echelon 7","index":26,"n_rows":72,"n_cols":20,"rows_kept":72,"cut":false,"hidden":false,"merged":[[15,0,15,14],[1,6,1,16],[2,6,2,11],[2,12,2,16],[8,12,9,14],[12,12,12,14],[17,0,17,16],[19,0,19,3],[21,0,21,14],[23,0,23,4],[23,5,23,8],[23,10,23,12],[23,13,23,16],[35,0,35,2],[35,8,35,9],[35,17,39,19],[39,0,39,7],[39,8,39,9],[39,10,39,13],[26,5,27,17],[32,0,32,4],[32,5,32,6],[32,7,32,10],[32,11,32,12],[40,17,41,17],[40,18,41,18],[40,19,41,19],[42,0,42,12],[42,17,43,17],[42,18,43,18],[42,19,43,19],[45,2,45,3],[45,5,45,7],[46,17,47,17],[46,18,47,18],[46,19,47,19],[50,17,51,17],[50,18,51,18],[50,19,51,19],[44,17,45,17],[44,18,45,18],[44,19,45,19],[48,0,48,5],[48,6,48,8],[48,17,49,17],[48,18,49,18],[48,19,49,19],[56,17,57,17],[56,18,57,18],[56,19,57,19],[57,0,57,16],[52,17,53,17],[52,18,53,18],[52,19,53,19],[53,0,53,7],[53,8,53,9],[53,10,53,14],[54,0,54,11],[54,12,54,13],[54,17,55,17],[54,18,55,18],[54,19,55,19],[71,0,71,4],[71,5,71,12],[59,0,59,16],[62,0,62,16],[64,0,64,3],[69,1,69,4],[70,0,70,1],[70,2,70,7]]}
[]
[null,null,null,null,null,null,"Commission Administrative"]
[null,null,null,null,null,null,"Paritaire",null,null,null,null,null,{"$f":"RECAPITULATIF!D7","v":"Locale"}]
[]
[]
[]
[]
[]
[null,null,null,null,null,null,null,null,null,null,null,null,"Mme, Mr :"]
[]
[null,null,null,null,null,null,null,null,null,null,null,null,"Grade :"]
[]
[null,null,null,null,null,null,null,null,null,null,null,null,"Service :"]
[]
[]
["Votre ou vos représentant-e-s du personnel"]
[]
[{"$f":"RECAPITULATIF!B5","v":"Madame Françoise LAUTROU et Madame PERROT Anne"}]
[]
["SUD Santé Sociaux",null,null,null,{"$f":"RECAPITULATIF!D21","v":35},"du:"]
[]
[{"$f":"RECAPITULATIF!B2","v":"Centre Hospitalier de Saint Malo"}]
[]
["siégeant auprès de la CAP",null,null,null,null,{"$f":"RECAPITULATIF!D7","v":"Locale"},null,null,null,"du :",{"$f":"RECAPITULATIF!D11","v":"2019-06-14"},null,null,"vous informe de votre :"]
[]
[]
[null,null,null,null,null,"AVANCEMENT D’ECHELON"]
[]
[]
[]
[]
[]
["Vous passez à l’échelon :",null,null,null,null,{"$f":"'GRILLE Cat B CN'!B21","v":7},null,"Indice Majoré :",null,null,null,{"$f":"'GRILLE Cat B CN'!D21","v":495}]
[]
[]
["Date d'effet :",null,null,null,null,"/",null,"/",{"$f":"RECAPITULATIF!D9","v":2019},null,null,null,null,null,null,null,null,{"$f":"'GRILLE Cat B CN'!B2","v":"Catégorie B              Classe Normale\n\nPréparateur en pharmacie Hospitalière,\nTechnicien de laboratoire médical,\nDiététicien"}]
[]
[]
[]
["Ce qui représente un gain mensuel de :",null,null,null,null,null,null,null,{"$f":"'GRILLE Cat B CN'!D21-'GRILLE Cat B CN'!D19","v":33},null,"points d'indice."]
[null,null,null,null,null,null,null,null,null,null,null,null,null,null,null,null,null,{"$f":"'GRILLE Cat B CN'!B7","v":"Echelon"},{"$f":"'GRILLE Cat B CN'!C7","v":"Durée\n(en mois)"},{"$f":"'GRILLE Cat B CN'!D7","v":"Indice\nMajoré"}]
[]
["Pour information, la valeur brute du point d'indice",null,null,null,null,null,null,null,null,null,null,null,null,null,null,null,null,{"$f":"'GRILLE Cat B CN'!B9","v":1},{"$f":"'GRILLE Cat B CN'!C9","v":24},{"$f":"'GRILLE Cat B CN'!D9","v":356}]
[]
[null,null,null,null,null,null,null,null,null,null,null,null,null,null,null,null,null,{"$f":"'GRILLE Cat B CN'!B11","v":2},{"$f":"'GRILLE Cat B CN'!C11","v":36},{"$f":"'GRILLE Cat B CN'!D11","v":371}]
["est de",null,{"$f":"RECAPITULATIF!D13","v":4.6859999999999999},null,"au",{"$f":"RECAPITULATIF!D15","v":"2019-01-01"}]
[null,null,null,null,null,null,null,null,null,null,null,null,null,null,null,null,null,{"$f":"'GRILLE Cat B CN'!B13","v":3},{"$f":"'GRILLE Cat B CN'!C13","v":36},{"$f":"'GRILLE Cat B CN'!D13","v":389}]
[]
["Soit un gain net mensuel de :",null,null,null,null,null,{"$f":"I40*C46*0.8315","v":128.58149700000001},null,null,null,null,null,null,null,null,null,null,{"$f":"'GRILLE Cat B CN'!B15","v":4},{"$f":"'GRILLE Cat B CN'!C15","v":48},{"$f":"'GRILLE Cat B CN'!D15","v":409}]
[]
[null,null,null,null,null,null,null,null,null,null,null,null,null,null,null,null,null,{"$f":"'GRILLE Cat B CN'!B17","v":5},{"$f":"'GRILLE Cat B CN'!C17","v":48},{"$f":"'GRILLE Cat B CN'!D17","v":429}]
[]
[null,null,null,null,null,null,null,null,null,null,null,null,null,null,null,null,null,{"$f":"'GRILLE Cat B CN'!B19","v":6},{"$f":"'GRILLE Cat B CN'!C19","v":48},{"$f":"'GRILLE Cat B CN'!D19","v":462}]
["Vos représentant-e-s SUD Santé Sociaux ",null,null,null,null,null,null,null,{"$f":"RECAPITULATIF!D21","v":35},null,"sont à votre disposition"]
["pour tous renseignements complémentaires au poste :",null,null,null,null,null,null,null,null,null,null,null,{"$f":"RECAPITULATIF!D17","v":2886},null,null,null,null,{"$f":"'GRILLE Cat B CN'!B21","v":7},{"$f":"'GRILLE Cat B CN'!C21","v":48},{"$f":"'GRILLE Cat B CN'!D21","v":495}]
[]
[null,null,null,null,null,null,null,null,null,null,null,null,null,null,null,null,null,{"$f":"'GRILLE Cat B CN'!B23","v":8},{"$f":"'GRILLE Cat B CN'!C23","v":48},{"$f":"'GRILLE Cat B CN'!D23","v":534}]
[]
[null,null,null,null,null,null,null,null,null,null,null,null,null,null,null,null,null,{"$f":"'GRILLE Cat B CN'!B25","v":0},{"$f":"'GRILLE Cat B CN'!C25","v":0},{"$f":"'GRILLE Cat B CN'!D25","v":0}]
["Recevez toutes nos salutations."]
[null,null,null,null,null,null,null,null,null,null,null,null,null,null,null,null,null,{"$f":"'GRILLE Cat B CN'!B27","v":0},{"$f":"'GRILLE Cat B CN'!C27","v":0},{"$f":"'GRILLE Cat B CN'!D27","v":0}]
[]
[{"$f":"RECAPITULATIF!B5","v":"Madame Françoise LAUTROU et Madame PERROT Anne"}]
[]
["SUD Santé Sociaux",null,null,null,{"$f":"RECAPITULATIF!D21","v":35}]
[]
[]
[]
[]
["Tél :",{"$f":"RECAPITULATIF!D19","v":299212886}]
["Mél :",null,{"$f":"RECAPITULATIF!C23","v":"sudsante@ch-stmalo.fr"}]
[{"$f":"RECAPITULATIF!B25","v":"Site Départemental Sud"},null,null,null,null,{"$f":"RECAPITULATIF!D25","v":"http://www.sudsantesociaux35.org"}]

{"sheet":"Cat B CN Echelon 8","index":27,"n_rows":72,"n_cols":20,"rows_kept":72,"cut":false,"hidden":false,"merged":[[15,0,15,14],[1,6,1,16],[2,6,2,11],[2,12,2,16],[8,12,9,14],[12,12,12,14],[17,0,17,16],[19,0,19,3],[21,0,21,14],[23,0,23,4],[23,5,23,8],[23,10,23,12],[23,13,23,16],[35,0,35,2],[35,8,35,9],[35,17,39,19],[39,0,39,7],[39,8,39,9],[39,10,39,13],[26,5,27,17],[32,0,32,4],[32,5,32,6],[32,7,32,10],[32,11,32,12],[40,17,41,17],[40,18,41,18],[40,19,41,19],[42,0,42,12],[42,17,43,17],[42,18,43,18],[42,19,43,19],[45,2,45,3],[45,5,45,7],[46,17,47,17],[46,18,47,18],[46,19,47,19],[50,17,51,17],[50,18,51,18],[50,19,51,19],[44,17,45,17],[44,18,45,18],[44,19,45,19],[48,0,48,5],[48,6,48,8],[48,17,49,17],[48,18,49,18],[48,19,49,19],[56,17,57,17],[56,18,57,18],[56,19,57,19],[57,0,57,16],[52,17,53,17],[52,18,53,18],[52,19,53,19],[53,0,53,7],[53,8,53,9],[53,10,53,14],[54,0,54,11],[54,12,54,13],[54,17,55,17],[54,18,55,18],[54,19,55,19],[71,0,71,4],[71,5,71,12],[59,0,59,16],[62,0,62,16],[64,0,64,3],[69,1,69,4],[70,0,70,1],[70,2,70,7]]}
[]
[null,null,null,null,null,null,"Commission Administrative"]
[null,null,null,null,null,null,"Paritaire",null,null,null,null,null,{"$f":"RECAPITULATIF!D7","v":"Locale"}]
[]
[]
[]
[]
[]
[null,null,null,null,null,null,null,null,null,null,null,null,"Mme, Mr :"]
[]
[null,null,null,null,null,null,null,null,null,null,null,null,"Grade :"]
[]
[null,null,null,null,null,null,null,null,null,null,null,null,"Service :"]
[]
[]
["Votre ou vos représentant-e-s du personnel"]
[]
[{"$f":"RECAPITULATIF!B5","v":"Madame Françoise LAUTROU et Madame PERROT Anne"}]
[]
["SUD Santé Sociaux",null,null,null,{"$f":"RECAPITULATIF!D21","v":35},"du:"]
[]
[{"$f":"RECAPITULATIF!B2","v":"Centre Hospitalier de Saint Malo"}]
[]
["siégeant auprès de la CAP",null,null,null,null,{"$f":"RECAPITULATIF!D7","v":"Locale"},null,null,null,"du :",{"$f":"RECAPITULATIF!D11","v":"2019-06-14"},null,null,"vous informe de votre :"]
[]
[]
[null,null,null,null,null,"AVANCEMENT D’ECHELON"]
[]
[]
[]
[]
[]
["Vous passez à l’échelon :",null,null,null,null,{"$f":"'GRILLE Cat B CN'!B23","v":8},null,"Indice Majoré :",null,null,null,{"$f":"'GRILLE Cat B CN'!D23","v":534}]
[]
[]
["Date d'effet :",null,null,null,null,"/",null,"/",{"$f":"RECAPITULATIF!D9","v":2019},null,null,null,null,null,null,null,null,{"$f":"'GRILLE Cat B CN'!B2","v":"Catégorie B              Classe Normale\n\nPréparateur en pharmacie Hospitalière,\nTechnicien de laboratoire médical,\nDiététicien"}]
[]
[]
[]
["Ce qui représente un gain mensuel de :",null,null,null,null,null,null,null,{"$f":"'GRILLE Cat B CN'!D23-'GRILLE Cat B CN'!D21","v":39},null,"points d'indice."]
[null,null,null,null,null,null,null,null,null,null,null,null,null,null,null,null,null,{"$f":"'GRILLE Cat B CN'!B7","v":"Echelon"},{"$f":"'GRILLE Cat B CN'!C7","v":"Durée\n(en mois)"},{"$f":"'GRILLE Cat B CN'!D7","v":"Indice\nMajoré"}]
[]
["Pour information, la valeur brute du point d'indice",null,null,null,null,null,null,null,null,null,null,null,null,null,null,null,null,{"$f":"'GRILLE Cat B CN'!B9","v":1},{"$f":"'GRILLE Cat B CN'!C9","v":24},{"$f":"'GRILLE Cat B CN'!D9","v":356}]
[]
[null,null,null,null,null,null,null,null,null,null,null,null,null,null,null,null,null,{"$f":"'GRILLE Cat B CN'!B11","v":2},{"$f":"'GRILLE Cat B CN'!C11","v":36},{"$f":"'GRILLE Cat B CN'!D11","v":371}]
["est de",null,{"$f":"RECAPITULATIF!D13","v":4.6859999999999999},null,"au",{"$f":"RECAPITULATIF!D15","v":"2019-01-01"}]
[null,null,null,null,null,null,null,null,null,null,null,null,null,null,null,null,null,{"$f":"'GRILLE Cat B CN'!B13","v":3},{"$f":"'GRILLE Cat B CN'!C13","v":36},{"$f":"'GRILLE Cat B CN'!D13","v":389}]
[]
["Soit un gain net mensuel de :",null,null,null,null,null,{"$f":"I40*C46*0.8315","v":151.95995099999999},null,null,null,null,null,null,null,null,null,null,{"$f":"'GRILLE Cat B CN'!B15","v":4},{"$f":"'GRILLE Cat B CN'!C15","v":48},{"$f":"'GRILLE Cat B CN'!D15","v":409}]
[]
[null,null,null,null,null,null,null,null,null,null,null,null,null,null,null,null,null,{"$f":"'GRILLE Cat B CN'!B17","v":5},{"$f":"'GRILLE Cat B CN'!C17","v":48},{"$f":"'GRILLE Cat B CN'!D17","v":429}]
[]
[null,null,null,null,null,null,null,null,null,null,null,null,null,null,null,null,null,{"$f":"'GRILLE Cat B CN'!B19","v":6},{"$f":"'GRILLE Cat B CN'!C19","v":48},{"$f":"'GRILLE Cat B CN'!D19","v":462}]
["Vos représentant-e-s SUD Santé Sociaux ",null,null,null,null,null,null,null,{"$f":"RECAPITULATIF!D21","v":35},null,"sont à votre disposition"]
["pour tous renseignements complémentaires au poste :",null,null,null,null,null,null,null,null,null,null,null,{"$f":"RECAPITULATIF!D17","v":2886},null,null,null,null,{"$f":"'GRILLE Cat B CN'!B21","v":7},{"$f":"'GRILLE Cat B CN'!C21","v":48},{"$f":"'GRILLE Cat B CN'!D21","v":495}]
[]
[null,null,null,null,null,null,null,null,null,null,null,null,null,null,null,null,null,{"$f":"'GRILLE Cat B CN'!B23","v":8},{"$f":"'GRILLE Cat B CN'!C23","v":48},{"$f":"'GRILLE Cat B CN'!D23","v":534}]
[]
[null,null,null,null,null,null,null,null,null,null,null,null,null,null,null,null,null,{"$f":"'GRILLE Cat B CN'!B25","v":0},{"$f":"'GRILLE Cat B CN'!C25","v":0},{"$f":"'GRILLE Cat B CN'!D25","v":0}]
["Recevez toutes nos salutations."]
[null,null,null,null,null,null,null,null,null,null,null,null,null,null,null,null,null,{"$f":"'GRILLE Cat B CN'!B27","v":0},{"$f":"'GRILLE Cat B CN'!C27","v":0},{"$f":"'GRILLE Cat B CN'!D27","v":0}]
[]
[{"$f":"RECAPITULATIF!B5","v":"Madame Françoise LAUTROU et Madame PERROT Anne"}]
[]
["SUD Santé Sociaux",null,null,null,{"$f":"RECAPITULATIF!D21","v":35}]
[]
[]
[]
[]
["Tél :",{"$f":"RECAPITULATIF!D19","v":299212886}]
["Mél :",null,{"$f":"RECAPITULATIF!C23","v":"sudsante@ch-stmalo.fr"}]
[{"$f":"RECAPITULATIF!B25","v":"Site Départemental Sud"},null,null,null,null,{"$f":"RECAPITULATIF!D25","v":"http://www.sudsantesociaux35.org"}]

{"sheet":"GRILLE CAT B CS","index":28,"n_rows":23,"n_cols":4,"rows_kept":23,"cut":false,"hidden":false,"merged":[[1,1,5,3],[6,1,7,1],[6,2,7,2],[6,3,7,3],[8,1,9,1],[8,2,9,2],[8,3,9,3],[10,1,11,1],[10,2,11,2],[10,3,11,3],[12,1,13,1],[12,2,13,2],[12,3,13,3],[14,1,15,1],[14,2,15,2],[14,3,15,3],[16,1,17,1],[16,2,17,2],[16,3,17,3],[22,1,23,1],[22,2,23,2],[22,3,23,3],[18,1,19,1],[18,2,19,2],[18,3,19,3],[20,1,21,1],[20,2,21,2],[20,3,21,3]]}
[]
[null,"Catégorie B              Classe Supérieure\n\nPréparateur en pharmacie Hospitalière,\nTechnicien de laboratoire médical,\nDiététicien"]
[]
[]
[]
[]
[null,"Echelon","Durée\n(en mois)","Indice Majoré"]
[]
[null,1,12,445]
[]
[null,2,24,461]
[]
[null,3,36,485]
[]
[null,4,36,510]
[]
[null,5,48,534]
[]
[null,6,48,555]
[]
[null,7,48,569]
[]
[null,8,null,587]

{"sheet":"IMP GRILLE CAT B CS","index":29,"n_rows":6,"n_cols":2,"rows_kept":6,"cut":false,"hidden":false,"merged":[[1,1,1,9],[3,1,3,9],[5,1,5,9]]}
[]
[null,"1) Imprimez autant de feuilles que d'agents concernés."]
[]
[null,"2) Pliez en 3 au niveau du repère, deux petits traits noirs."]
[]
[null,"3) Inserrez ce courrier dans une enveloppe 110 X 220 à fenêtre."]

{"sheet":"CAT B CS Echelon 2","index":30,"n_rows":72,"n_cols":20,"rows_kept":72,"cut":false,"hidden":false,"merged":[[15,0,15,14],[1,6,1,16],[2,6,2,11],[2,12,2,16],[8,12,9,14],[12,12,12,14],[17,0,17,16],[19,0,19,3],[21,0,21,14],[23,0,23,4],[23,5,23,8],[23,10,23,12],[23,13,23,16],[35,0,35,2],[35,8,35,9],[35,17,39,19],[39,0,39,7],[39,8,39,9],[39,10,39,13],[26,5,27,17],[32,0,32,4],[32,5,32,6],[32,7,32,10],[32,11,32,12],[40,17,41,17],[40,18,41,18],[40,19,41,19],[42,0,42,12],[42,17,43,17],[42,18,43,18],[42,19,43,19],[45,2,45,3],[45,5,45,7],[46,17,47,17],[46,18,47,18],[46,19,47,19],[50,17,51,17],[50,18,51,18],[50,19,51,19],[44,17,45,17],[44,18,45,18],[44,19,45,19],[48,0,48,5],[48,6,48,8],[48,17,49,17],[48,18,49,18],[48,19,49,19],[56,17,57,17],[56,18,57,18],[56,19,57,19],[57,0,57,16],[52,17,53,17],[52,18,53,18],[52,19,53,19],[53,0,53,7],[53,8,53,9],[53,10,53,14],[54,0,54,11],[54,12,54,13],[54,17,55,17],[54,18,55,18],[54,19,55,19],[71,0,71,4],[71,5,71,12],[59,0,59,16],[62,0,62,16],[64,0,64,3],[69,1,69,4],[70,0,70,1],[70,2,70,7]]}
[]
[null,null,null,null,null,null,"Commission Administrative"]
[null,null,null,null,null,null,"Paritaire",null,null,null,null,null,{"$f":"RECAPITULATIF!D7","v":"Locale"}]
[]
[]
[]
[]
[]
[null,null,null,null,null,null,null,null,null,null,null,null,"Mme, Mr :"]
[]
[null,null,null,null,null,null,null,null,null,null,null,null,"Grade :"]
[]
[null,null,null,null,null,null,null,null,null,null,null,null,"Service :"]
[]
[]
["Votre ou vos représentant-e-s du personnel"]
[]
[{"$f":"RECAPITULATIF!B5","v":"Madame Françoise LAUTROU et Madame PERROT Anne"}]
[]
["SUD Santé Sociaux",null,null,null,{"$f":"RECAPITULATIF!D21","v":35},"du:"]
[]
[{"$f":"RECAPITULATIF!B2","v":"Centre Hospitalier de Saint Malo"}]
[]
["siégeant auprès de la CAP",null,null,null,null,{"$f":"RECAPITULATIF!D7","v":"Locale"},null,null,null,"du :",{"$f":"RECAPITULATIF!D11","v":"2019-06-14"},null,null,"vous informe de votre :"]
[]
[]
[null,null,null,null,null,"AVANCEMENT D’ECHELON"]
[]
[]
[]
[]
[]
["Vous passez à l’échelon :",null,null,null,null,{"$f":"'GRILLE CAT B CS'!B11","v":2},null,"Indice Majoré :",null,null,null,{"$f":"'GRILLE CAT B CS'!D11","v":461}]
[]
[]
["Date d'effet :",null,null,null,null,"/",null,"/",{"$f":"RECAPITULATIF!D9","v":2019},null,null,null,null,null,null,null,null,{"$f":"'GRILLE CAT B CS'!B2","v":"Catégorie B              Classe Supérieure\n\nPréparateur en pharmacie Hospitalière,\nTechnicien de laboratoire médical,\nDiététicien"}]
[]
[]
[]
["Ce qui représente un gain mensuel de :",null,null,null,null,null,null,null,{"$f":"'GRILLE CAT B CS'!D11-'GRILLE CAT B CS'!D9","v":16},null,"points d'indice."]
[null,null,null,null,null,null,null,null,null,null,null,null,null,null,null,null,null,{"$f":"'GRILLE CAT B CS'!B7","v":"Echelon"},{"$f":"'GRILLE CAT B CS'!C7","v":"Durée\n(en mois)"},{"$f":"'GRILLE CAT B CS'!D7","v":"Indice Majoré"}]
[]
["Pour information, la valeur brute du point d'indice",null,null,null,null,null,null,null,null,null,null,null,null,null,null,null,null,{"$f":"'GRILLE CAT B CS'!B9","v":1},{"$f":"'GRILLE CAT B CS'!C9","v":12},{"$f":"'GRILLE CAT B CS'!D9","v":445}]
[]
[null,null,null,null,null,null,null,null,null,null,null,null,null,null,null,null,null,{"$f":"'GRILLE CAT B CS'!B11","v":2},{"$f":"'GRILLE CAT B CS'!C11","v":24},{"$f":"'GRILLE CAT B CS'!D11","v":461}]
["est de",null,{"$f":"RECAPITULATIF!D13","v":4.6859999999999999},null,"au",{"$f":"RECAPITULATIF!D15","v":"2019-01-01"}]
[null,null,null,null,null,null,null,null,null,null,null,null,null,null,null,null,null,{"$f":"'GRILLE CAT B CS'!B13","v":3},{"$f":"'GRILLE CAT B CS'!C13","v":36},{"$f":"'GRILLE CAT B CS'!D13","v":485}]
[]
["Soit un gain net mensuel de :",null,null,null,null,null,{"$f":"I40*C46*0.8315","v":62.342544000000004},null,null,null,null,null,null,null,null,null,null,{"$f":"'GRILLE CAT B CS'!B15","v":4},{"$f":"'GRILLE CAT B CS'!C15","v":36},{"$f":"'GRILLE CAT B CS'!D15","v":510}]
[]
[null,null,null,null,null,null,null,null,null,null,null,null,null,null,null,null,null,{"$f":"'GRILLE CAT B CS'!B17","v":5},{"$f":"'GRILLE CAT B CS'!C17","v":48},{"$f":"'GRILLE CAT B CS'!D17","v":534}]
[]
[null,null,null,null,null,null,null,null,null,null,null,null,null,null,null,null,null,{"$f":"'GRILLE CAT B CS'!B19","v":6},{"$f":"'GRILLE CAT B CS'!C19","v":48},{"$f":"'GRILLE CAT B CS'!D19","v":555}]
["Vos représentant-e-s SUD Santé Sociaux ",null,null,null,null,null,null,null,{"$f":"RECAPITULATIF!D21","v":35},null,"sont à votre disposition"]
["pour tous renseignements complémentaires au poste :",null,null,null,null,null,null,null,null,null,null,null,{"$f":"RECAPITULATIF!D17","v":2886},null,null,null,null,{"$f":"'GRILLE CAT B CS'!B21","v":7},{"$f":"'GRILLE CAT B CS'!C21","v":48},{"$f":"'GRILLE CAT B CS'!D21","v":569}]
[]
[null,null,null,null,null,null,null,null,null,null,null,null,null,null,null,null,null,{"$f":"'GRILLE CAT B CS'!B23","v":8},{"$f":"'GRILLE CAT B CS'!C23","v":0},{"$f":"'GRILLE CAT B CS'!D23","v":587}]
[]
[null,null,null,null,null,null,null,null,null,null,null,null,null,null,null,null,null,{"$f":"'GRILLE CAT B CS'!B25","v":0},{"$f":"'GRILLE CAT B CS'!C25","v":0},{"$f":"'GRILLE CAT B CS'!D25","v":0}]
["Recevez toutes nos salutations."]
[null,null,null,null,null,null,null,null,null,null,null,null,null,null,null,null,null,{"$f":"'GRILLE CAT B CS'!B27","v":0},{"$f":"'GRILLE CAT B CS'!C27","v":0},{"$f":"'GRILLE CAT B CS'!D27","v":0}]
[]
[{"$f":"RECAPITULATIF!B5","v":"Madame Françoise LAUTROU et Madame PERROT Anne"}]
[]
["SUD Santé Sociaux",null,null,null,{"$f":"RECAPITULATIF!D21","v":35}]
[]
[]
[]
[]
["Tél :",{"$f":"RECAPITULATIF!D19","v":299212886}]
["Mél :",null,{"$f":"RECAPITULATIF!C23","v":"sudsante@ch-stmalo.fr"}]
[{"$f":"RECAPITULATIF!B25","v":"Site Départemental Sud"},null,null,null,null,{"$f":"RECAPITULATIF!D25","v":"http://www.sudsantesociaux35.org"}]

{"sheet":"CAT B CS Echelon 3","index":31,"n_rows":72,"n_cols":20,"rows_kept":72,"cut":false,"hidden":false,"merged":[[15,0,15,14],[1,6,1,16],[2,6,2,11],[2,12,2,16],[8,12,9,14],[12,12,12,14],[17,0,17,16],[19,0,19,3],[21,0,21,14],[23,0,23,4],[23,5,23,8],[23,10,23,12],[23,13,23,16],[35,0,35,2],[35,8,35,9],[35,17,39,19],[39,0,39,7],[39,8,39,9],[39,10,39,13],[26,5,27,17],[32,0,32,4],[32,5,32,6],[32,7,32,10],[32,11,32,12],[40,17,41,17],[40,18,41,18],[40,19,41,19],[42,0,42,12],[42,17,43,17],[42,18,43,18],[42,19,43,19],[45,2,45,3],[45,5,45,7],[46,17,47,17],[46,18,47,18],[46,19,47,19],[50,17,51,17],[50,18,51,18],[50,19,51,19],[44,17,45,17],[44,18,45,18],[44,19,45,19],[48,0,48,5],[48,6,48,8],[48,17,49,17],[48,18,49,18],[48,19,49,19],[56,17,57,17],[56,18,57,18],[56,19,57,19],[57,0,57,16],[52,17,53,17],[52,18,53,18],[52,19,53,19],[53,0,53,7],[53,8,53,9],[53,10,53,14],[54,0,54,11],[54,12,54,13],[54,17,55,17],[54,18,55,18],[54,19,55,19],[71,0,71,4],[71,5,71,12],[59,0,59,16],[62,0,62,16],[64,0,64,3],[69,1,69,4],[70,0,70,1],[70,2,70,7]]}
[]
[null,null,null,null,null,null,"Commission Administrative"]
[null,null,null,null,null,null,"Paritaire",null,null,null,null,null,{"$f":"RECAPITULATIF!D7","v":"Locale"}]
[]
[]
[]
[]
[]
[null,null,null,null,null,null,null,null,null,null,null,null,"Mme, Mr :"]
[]
[null,null,null,null,null,null,null,null,null,null,null,null,"Grade :"]
[]
[null,null,null,null,null,null,null,null,null,null,null,null,"Service :"]
[]
[]
["Votre ou vos représentant-e-s du personnel"]
[]
[{"$f":"RECAPITULATIF!B5","v":"Madame Françoise LAUTROU et Madame PERROT Anne"}]
[]
["SUD Santé Sociaux",null,null,null,{"$f":"RECAPITULATIF!D21","v":35},"du:"]
[]
[{"$f":"RECAPITULATIF!B2","v":"Centre Hospitalier de Saint Malo"}]
[]
["siégeant auprès de la CAP",null,null,null,null,{"$f":"RECAPITULATIF!D7","v":"Locale"},null,null,null,"du :",{"$f":"RECAPITULATIF!D11","v":"2019-06-14"},null,null,"vous informe de votre :"]
[]
[]
[null,null,null,null,null,"AVANCEMENT D’ECHELON"]
[]
[]
[]
[]
[]
["Vous passez à l’échelon :",null,null,null,null,{"$f":"'GRILLE CAT B CS'!B13","v":3},null,"Indice Majoré :",null,null,null,{"$f":"'GRILLE CAT B CS'!D13","v":485}]
[]
[]
["Date d'effet :",null,null,null,null,"/",null,"/",{"$f":"RECAPITULATIF!D9","v":2019},null,null,null,null,null,null,null,null,{"$f":"'GRILLE CAT B CS'!B2","v":"Catégorie B              Classe Supérieure\n\nPréparateur en pharmacie Hospitalière,\nTechnicien de laboratoire médical,\nDiététicien"}]
[]
[]
[]
["Ce qui représente un gain mensuel de :",null,null,null,null,null,null,null,{"$f":"'GRILLE CAT B CS'!D13-'GRILLE CAT B CS'!D11","v":24},null,"points d'indice."]
[null,null,null,null,null,null,null,null,null,null,null,null,null,null,null,null,null,{"$f":"'GRILLE CAT B CS'!B7","v":"Echelon"},{"$f":"'GRILLE CAT B CS'!C7","v":"Durée\n(en mois)"},{"$f":"'GRILLE CAT B CS'!D7","v":"Indice Majoré"}]
[]
["Pour information, la valeur brute du point d'indice",null,null,null,null,null,null,null,null,null,null,null,null,null,null,null,null,{"$f":"'GRILLE CAT B CS'!B9","v":1},{"$f":"'GRILLE CAT B CS'!C9","v":12},{"$f":"'GRILLE CAT B CS'!D9","v":445}]
[]
[null,null,null,null,null,null,null,null,null,null,null,null,null,null,null,null,null,{"$f":"'GRILLE CAT B CS'!B11","v":2},{"$f":"'GRILLE CAT B CS'!C11","v":24},{"$f":"'GRILLE CAT B CS'!D11","v":461}]
["est de",null,{"$f":"RECAPITULATIF!D13","v":4.6859999999999999},null,"au",{"$f":"RECAPITULATIF!D15","v":"2019-01-01"}]
[null,null,null,null,null,null,null,null,null,null,null,null,null,null,null,null,null,{"$f":"'GRILLE CAT B CS'!B13","v":3},{"$f":"'GRILLE CAT B CS'!C13","v":36},{"$f":"'GRILLE CAT B CS'!D13","v":485}]
[]
["Soit un gain net mensuel de :",null,null,null,null,null,{"$f":"I40*C46*0.8315","v":93.513816000000006},null,null,null,null,null,null,null,null,null,null,{"$f":"'GRILLE CAT B CS'!B15","v":4},{"$f":"'GRILLE CAT B CS'!C15","v":36},{"$f":"'GRILLE CAT B CS'!D15","v":510}]
[]
[null,null,null,null,null,null,null,null,null,null,null,null,null,null,null,null,null,{"$f":"'GRILLE CAT B CS'!B17","v":5},{"$f":"'GRILLE CAT B CS'!C17","v":48},{"$f":"'GRILLE CAT B CS'!D17","v":534}]
[]
[null,null,null,null,null,null,null,null,null,null,null,null,null,null,null,null,null,{"$f":"'GRILLE CAT B CS'!B19","v":6},{"$f":"'GRILLE CAT B CS'!C19","v":48},{"$f":"'GRILLE CAT B CS'!D19","v":555}]
["Vos représentant-e-s SUD Santé Sociaux ",null,null,null,null,null,null,null,{"$f":"RECAPITULATIF!D21","v":35},null,"sont à votre disposition"]
["pour tous renseignements complémentaires au poste :",null,null,null,null,null,null,null,null,null,null,null,{"$f":"RECAPITULATIF!D17","v":2886},null,null,null,null,{"$f":"'GRILLE CAT B CS'!B21","v":7},{"$f":"'GRILLE CAT B CS'!C21","v":48},{"$f":"'GRILLE CAT B CS'!D21","v":569}]
[]
[null,null,null,null,null,null,null,null,null,null,null,null,null,null,null,null,null,{"$f":"'GRILLE CAT B CS'!B23","v":8},{"$f":"'GRILLE CAT B CS'!C23","v":0},{"$f":"'GRILLE CAT B CS'!D23","v":587}]
[]
[null,null,null,null,null,null,null,null,null,null,null,null,null,null,null,null,null,{"$f":"'GRILLE CAT B CS'!B25","v":0},{"$f":"'GRILLE CAT B CS'!C25","v":0},{"$f":"'GRILLE CAT B CS'!D25","v":0}]
["Recevez toutes nos salutations."]
[null,null,null,null,null,null,null,null,null,null,null,null,null,null,null,null,null,{"$f":"'GRILLE CAT B CS'!B27","v":0},{"$f":"'GRILLE CAT B CS'!C27","v":0},{"$f":"'GRILLE CAT B CS'!D27","v":0}]
[]
[{"$f":"RECAPITULATIF!B5","v":"Madame Françoise LAUTROU et Madame PERROT Anne"}]
[]
["SUD Santé Sociaux",null,null,null,{"$f":"RECAPITULATIF!D21","v":35}]
[]
[]
[]
[]
["Tél :",{"$f":"RECAPITULATIF!D19","v":299212886}]
["Mél :",null,{"$f":"RECAPITULATIF!C23","v":"sudsante@ch-stmalo.fr"}]
[{"$f":"RECAPITULATIF!B25","v":"Site Départemental Sud"},null,null,null,null,{"$f":"RECAPITULATIF!D25","v":"http://www.sudsantesociaux35.org"}]

{"sheet":"CAT B CS Echelon 4","index":32,"n_rows":72,"n_cols":20,"rows_kept":72,"cut":false,"hidden":false,"merged":[[15,0,15,14],[1,6,1,16],[2,6,2,11],[2,12,2,16],[8,12,9,14],[12,12,12,14],[17,0,17,16],[19,0,19,3],[21,0,21,14],[23,0,23,4],[23,5,23,8],[23,10,23,12],[23,13,23,16],[35,0,35,2],[35,8,35,9],[35,17,39,19],[39,0,39,7],[39,8,39,9],[39,10,39,13],[26,5,27,17],[32,0,32,4],[32,5,32,6],[32,7,32,10],[32,11,32,12],[40,17,41,17],[40,18,41,18],[40,19,41,19],[42,0,42,12],[42,17,43,17],[42,18,43,18],[42,19,43,19],[45,2,45,3],[45,5,45,7],[46,17,47,17],[46,18,47,18],[46,19,47,19],[50,17,51,17],[50,18,51,18],[50,19,51,19],[44,17,45,17],[44,18,45,18],[44,19,45,19],[48,0,48,5],[48,6,48,8],[48,17,49,17],[48,18,49,18],[48,19,49,19],[56,17,57,17],[56,18,57,18],[56,19,57,19],[57,0,57,16],[52,17,53,17],[52,18,53,18],[52,19,53,19],[53,0,53,7],[53,8,53,9],[53,10,53,14],[54,0,54,11],[54,12,54,13],[54,17,55,17],[54,18,55,18],[54,19,55,19],[71,0,71,4],[71,5,71,12],[59,0,59,16],[62,0,62,16],[64,0,64,3],[69,1,69,4],[70,0,70,1],[70,2,70,7]]}
[]
[null,null,null,null,null,null,"Commission Administrative"]
[null,null,null,null,null,null,"Paritaire",null,null,null,null,null,{"$f":"RECAPITULATIF!D7","v":"Locale"}]
[]
[]
[]
[]
[]
[null,null,null,null,null,null,null,null,null,null,null,null,"Mme, Mr :"]
[]
[null,null,null,null,null,null,null,null,null,null,null,null,"Grade :"]
[]
[null,null,null,null,null,null,null,null,null,null,null,null,"Service :"]
[]
[]
["Votre ou vos représentant-e-s du personnel"]
[]
[{"$f":"RECAPITULATIF!B5","v":"Madame Françoise LAUTROU et Madame PERROT Anne"}]
[]
["SUD Santé Sociaux",null,null,null,{"$f":"RECAPITULATIF!D21","v":35},"du:"]
[]
[{"$f":"RECAPITULATIF!B2","v":"Centre Hospitalier de Saint Malo"}]
[]
["siégeant auprès de la CAP",null,null,null,null,{"$f":"RECAPITULATIF!D7","v":"Locale"},null,null,null,"du :",{"$f":"RECAPITULATIF!D11","v":"2019-06-14"},null,null,"vous informe de votre :"]
[]
[]
[null,null,null,null,null,"AVANCEMENT D’ECHELON"]
[]
[]
[]
[]
[]
["Vous passez à l’échelon :",null,null,null,null,{"$f":"'GRILLE CAT B CS'!B15","v":4},null,"Indice Majoré :",null,null,null,{"$f":"'GRILLE CAT B CS'!D15","v":510}]
[]
[]
["Date d'effet :",null,null,null,null,"/",null,"/",{"$f":"RECAPITULATIF!D9","v":2019},null,null,null,null,null,null,null,null,{"$f":"'GRILLE CAT B CS'!B2","v":"Catégorie B              Classe Supérieure\n\nPréparateur en pharmacie Hospitalière,\nTechnicien de laboratoire médical,\nDiététicien"}]
[]
[]
[]
["Ce qui représente un gain mensuel de :",null,null,null,null,null,null,null,{"$f":"'GRILLE CAT B CS'!D15-'GRILLE CAT B CS'!D13","v":25},null,"points d'indice."]
[null,null,null,null,null,null,null,null,null,null,null,null,null,null,null,null,null,{"$f":"'GRILLE CAT B CS'!B7","v":"Echelon"},{"$f":"'GRILLE CAT B CS'!C7","v":"Durée\n(en mois)"},{"$f":"'GRILLE CAT B CS'!D7","v":"Indice Majoré"}]
[]
["Pour information, la valeur brute du point d'indice",null,null,null,null,null,null,null,null,null,null,null,null,null,null,null,null,{"$f":"'GRILLE CAT B CS'!B9","v":1},{"$f":"'GRILLE CAT B CS'!C9","v":12},{"$f":"'GRILLE CAT B CS'!D9","v":445}]
[]
[null,null,null,null,null,null,null,null,null,null,null,null,null,null,null,null,null,{"$f":"'GRILLE CAT B CS'!B11","v":2},{"$f":"'GRILLE CAT B CS'!C11","v":24},{"$f":"'GRILLE CAT B CS'!D11","v":461}]
["est de",null,{"$f":"RECAPITULATIF!D13","v":4.6859999999999999},null,"au",{"$f":"RECAPITULATIF!D15","v":"2019-01-01"}]
[null,null,null,null,null,null,null,null,null,null,null,null,null,null,null,null,null,{"$f":"'GRILLE CAT B CS'!B13","v":3},{"$f":"'GRILLE CAT B CS'!C13","v":36},{"$f":"'GRILLE CAT B CS'!D13","v":485}]
[]
["Soit un gain net mensuel de :",null,null,null,null,null,{"$f":"I40*C46*0.8315","v":97.410225000000011},null,null,null,null,null,null,null,null,null,null,{"$f":"'GRILLE CAT B CS'!B15","v":4},{"$f":"'GRILLE CAT B CS'!C15","v":36},{"$f":"'GRILLE CAT B CS'!D15","v":510}]
[]
[null,null,null,null,null,null,null,null,null,null,null,null,null,null,null,null,null,{"$f":"'GRILLE CAT B CS'!B17","v":5},{"$f":"'GRILLE CAT B CS'!C17","v":48},{"$f":"'GRILLE CAT B CS'!D17","v":534}]
[]
[null,null,null,null,null,null,null,null,null,null,null,null,null,null,null,null,null,{"$f":"'GRILLE CAT B CS'!B19","v":6},{"$f":"'GRILLE CAT B CS'!C19","v":48},{"$f":"'GRILLE CAT B CS'!D19","v":555}]
["Vos représentant-e-s SUD Santé Sociaux ",null,null,null,null,null,null,null,{"$f":"RECAPITULATIF!D21","v":35},null,"sont à votre disposition"]
["pour tous renseignements complémentaires au poste :",null,null,null,null,null,null,null,null,null,null,null,{"$f":"RECAPITULATIF!D17","v":2886},null,null,null,null,{"$f":"'GRILLE CAT B CS'!B21","v":7},{"$f":"'GRILLE CAT B CS'!C21","v":48},{"$f":"'GRILLE CAT B CS'!D21","v":569}]
[]
[null,null,null,null,null,null,null,null,null,null,null,null,null,null,null,null,null,{"$f":"'GRILLE CAT B CS'!B23","v":8},{"$f":"'GRILLE CAT B CS'!C23","v":0},{"$f":"'GRILLE CAT B CS'!D23","v":587}]
[]
[null,null,null,null,null,null,null,null,null,null,null,null,null,null,null,null,null,{"$f":"'GRILLE CAT B CS'!B25","v":0},{"$f":"'GRILLE CAT B CS'!C25","v":0},{"$f":"'GRILLE CAT B CS'!D25","v":0}]
["Recevez toutes nos salutations."]
[null,null,null,null,null,null,null,null,null,null,null,null,null,null,null,null,null,{"$f":"'GRILLE CAT B CS'!B27","v":0},{"$f":"'GRILLE CAT B CS'!C27","v":0},{"$f":"'GRILLE CAT B CS'!D27","v":0}]
[]
[{"$f":"RECAPITULATIF!B5","v":"Madame Françoise LAUTROU et Madame PERROT Anne"}]
[]
["SUD Santé Sociaux",null,null,null,{"$f":"RECAPITULATIF!D21","v":35}]
[]
[]
[]
[]
["Tél :",{"$f":"RECAPITULATIF!D19","v":299212886}]
["Mél :",null,{"$f":"RECAPITULATIF!C23","v":"sudsante@ch-stmalo.fr"}]
[{"$f":"RECAPITULATIF!B25","v":"Site Départemental Sud"},null,null,null,null,{"$f":"RECAPITULATIF!D25","v":"http://www.sudsantesociaux35.org"}]

{"sheet":"CAT B CS Echelon 5","index":33,"n_rows":72,"n_cols":20,"rows_kept":72,"cut":false,"hidden":false,"merged":[[15,0,15,14],[1,6,1,16],[2,6,2,11],[2,12,2,16],[8,12,9,14],[12,12,12,14],[17,0,17,16],[19,0,19,3],[21,0,21,14],[23,0,23,4],[23,5,23,8],[23,10,23,12],[23,13,23,16],[35,0,35,2],[35,8,35,9],[35,17,39,19],[39,0,39,7],[39,8,39,9],[39,10,39,13],[26,5,27,17],[32,0,32,4],[32,5,32,6],[32,7,32,10],[32,11,32,12],[40,17,41,17],[40,18,41,18],[40,19,41,19],[42,0,42,12],[42,17,43,17],[42,18,43,18],[42,19,43,19],[45,2,45,3],[45,5,45,7],[46,17,47,17],[46,18,47,18],[46,19,47,19],[50,17,51,17],[50,18,51,18],[50,19,51,19],[44,17,45,17],[44,18,45,18],[44,19,45,19],[48,0,48,5],[48,6,48,8],[48,17,49,17],[48,18,49,18],[48,19,49,19],[56,17,57,17],[56,18,57,18],[56,19,57,19],[57,0,57,16],[52,17,53,17],[52,18,53,18],[52,19,53,19],[53,0,53,7],[53,8,53,9],[53,10,53,14],[54,0,54,11],[54,12,54,13],[54,17,55,17],[54,18,55,18],[54,19,55,19],[71,0,71,4],[71,5,71,12],[59,0,59,16],[62,0,62,16],[64,0,64,3],[69,1,69,4],[70,0,70,1],[70,2,70,7]]}
[]
[null,null,null,null,null,null,"Commission Administrative"]
[null,null,null,null,null,null,"Paritaire",null,null,null,null,null,{"$f":"RECAPITULATIF!D7","v":"Locale"}]
[]
[]
[]
[]
[]
[null,null,null,null,null,null,null,null,null,null,null,null,"Mme, Mr :"]
[]
[null,null,null,null,null,null,null,null,null,null,null,null,"Grade :"]
[]
[null,null,null,null,null,null,null,null,null,null,null,null,"Service :"]
[]
[]
["Votre ou vos représentant-e-s du personnel"]
[]
[{"$f":"RECAPITULATIF!B5","v":"Madame Françoise LAUTROU et Madame PERROT Anne"}]
[]
["SUD Santé Sociaux",null,null,null,{"$f":"RECAPITULATIF!D21","v":35},"du:"]
[]
[{"$f":"RECAPITULATIF!B2","v":"Centre Hospitalier de Saint Malo"}]
[]
["siégeant auprès de la CAP",null,null,null,null,{"$f":"RECAPITULATIF!D7","v":"Locale"},null,null,null,"du :",{"$f":"RECAPITULATIF!D11","v":"2019-06-14"},null,null,"vous informe de votre :"]
[]
[]
[null,null,null,null,null,"AVANCEMENT D’ECHELON"]
[]
[]
[]
[]
[]
["Vous passez à l’échelon :",null,null,null,null,{"$f":"'GRILLE CAT B CS'!B17","v":5},null,"Indice Majoré :",null,null,null,{"$f":"'GRILLE CAT B CS'!D17","v":534}]
[]
[]
["Date d'effet :",null,null,null,null,"/",null,"/",{"$f":"RECAPITULATIF!D9","v":2019},null,null,null,null,null,null,null,null,{"$f":"'GRILLE CAT B CS'!B2","v":"Catégorie B              Classe Supérieure\n\nPréparateur en pharmacie Hospitalière,\nTechnicien de laboratoire médical,\nDiététicien"}]
[]
[]
[]
["Ce qui représente un gain mensuel de :",null,null,null,null,null,null,null,{"$f":"'GRILLE CAT B CS'!D17-'GRILLE CAT B CS'!D15","v":24},null,"points d'indice."]
[null,null,null,null,null,null,null,null,null,null,null,null,null,null,null,null,null,{"$f":"'GRILLE CAT B CS'!B7","v":"Echelon"},{"$f":"'GRILLE CAT B CS'!C7","v":"Durée\n(en mois)"},{"$f":"'GRILLE CAT B CS'!D7","v":"Indice Majoré"}]
[]
["Pour information, la valeur brute du point d'indice",null,null,null,null,null,null,null,null,null,null,null,null,null,null,null,null,{"$f":"'GRILLE CAT B CS'!B9","v":1},{"$f":"'GRILLE CAT B CS'!C9","v":12},{"$f":"'GRILLE CAT B CS'!D9","v":445}]
[]
[null,null,null,null,null,null,null,null,null,null,null,null,null,null,null,null,null,{"$f":"'GRILLE CAT B CS'!B11","v":2},{"$f":"'GRILLE CAT B CS'!C11","v":24},{"$f":"'GRILLE CAT B CS'!D11","v":461}]
["est de",null,{"$f":"RECAPITULATIF!D13","v":4.6859999999999999},null,"au",{"$f":"RECAPITULATIF!D15","v":"2019-01-01"}]
[null,null,null,null,null,null,null,null,null,null,null,null,null,null,null,null,null,{"$f":"'GRILLE CAT B CS'!B13","v":3},{"$f":"'GRILLE CAT B CS'!C13","v":36},{"$f":"'GRILLE CAT B CS'!D13","v":485}]
[]
["Soit un gain net mensuel de :",null,null,null,null,null,{"$f":"I40*C46*0.8315","v":93.513816000000006},null,null,null,null,null,null,null,null,null,null,{"$f":"'GRILLE CAT B CS'!B15","v":4},{"$f":"'GRILLE CAT B CS'!C15","v":36},{"$f":"'GRILLE CAT B CS'!D15","v":510}]
[]
[null,null,null,null,null,null,null,null,null,null,null,null,null,null,null,null,null,{"$f":"'GRILLE CAT B CS'!B17","v":5},{"$f":"'GRILLE CAT B CS'!C17","v":48},{"$f":"'GRILLE CAT B CS'!D17","v":534}]
[]
[null,null,null,null,null,null,null,null,null,null,null,null,null,null,null,null,null,{"$f":"'GRILLE CAT B CS'!B19","v":6},{"$f":"'GRILLE CAT B CS'!C19","v":48},{"$f":"'GRILLE CAT B CS'!D19","v":555}]
["Vos représentant-e-s SUD Santé Sociaux ",null,null,null,null,null,null,null,{"$f":"RECAPITULATIF!D21","v":35},null,"sont à votre disposition"]
["pour tous renseignements complémentaires au poste :",null,null,null,null,null,null,null,null,null,null,null,{"$f":"RECAPITULATIF!D17","v":2886},null,null,null,null,{"$f":"'GRILLE CAT B CS'!B21","v":7},{"$f":"'GRILLE CAT B CS'!C21","v":48},{"$f":"'GRILLE CAT B CS'!D21","v":569}]
[]
[null,null,null,null,null,null,null,null,null,null,null,null,null,null,null,null,null,{"$f":"'GRILLE CAT B CS'!B23","v":8},{"$f":"'GRILLE CAT B CS'!C23","v":0},{"$f":"'GRILLE CAT B CS'!D23","v":587}]
[]
[null,null,null,null,null,null,null,null,null,null,null,null,null,null,null,null,null,{"$f":"'GRILLE CAT B CS'!B25","v":0},{"$f":"'GRILLE CAT B CS'!C25","v":0},{"$f":"'GRILLE CAT B CS'!D25","v":0}]
["Recevez toutes nos salutations."]
[null,null,null,null,null,null,null,null,null,null,null,null,null,null,null,null,null,{"$f":"'GRILLE CAT B CS'!B27","v":0},{"$f":"'GRILLE CAT B CS'!C27","v":0},{"$f":"'GRILLE CAT B CS'!D27","v":0}]
[]
[{"$f":"RECAPITULATIF!B5","v":"Madame Françoise LAUTROU et Madame PERROT Anne"}]
[]
["SUD Santé Sociaux",null,null,null,{"$f":"RECAPITULATIF!D21","v":35}]
[]
[]
[]
[]
["Tél :",{"$f":"RECAPITULATIF!D19","v":299212886}]
["Mél :",null,{"$f":"RECAPITULATIF!C23","v":"sudsante@ch-stmalo.fr"}]
[{"$f":"RECAPITULATIF!B25","v":"Site Départemental Sud"},null,null,null,null,{"$f":"RECAPITULATIF!D25","v":"http://www.sudsantesociaux35.org"}]

{"sheet":"CAT B CS Echelon 6","index":34,"n_rows":72,"n_cols":20,"rows_kept":72,"cut":false,"hidden":false,"merged":[[15,0,15,14],[1,6,1,16],[2,6,2,11],[2,12,2,16],[8,12,9,14],[12,12,12,14],[17,0,17,16],[19,0,19,3],[21,0,21,14],[23,0,23,4],[23,5,23,8],[23,10,23,12],[23,13,23,16],[35,0,35,2],[35,8,35,9],[35,17,39,19],[39,0,39,7],[39,8,39,9],[39,10,39,13],[26,5,27,17],[32,0,32,4],[32,5,32,6],[32,7,32,10],[32,11,32,12],[40,17,41,17],[40,18,41,18],[40,19,41,19],[42,0,42,12],[42,17,43,17],[42,18,43,18],[42,19,43,19],[45,2,45,3],[45,5,45,7],[46,17,47,17],[46,18,47,18],[46,19,47,19],[50,17,51,17],[50,18,51,18],[50,19,51,19],[44,17,45,17],[44,18,45,18],[44,19,45,19],[48,0,48,5],[48,6,48,8],[48,17,49,17],[48,18,49,18],[48,19,49,19],[56,17,57,17],[56,18,57,18],[56,19,57,19],[57,0,57,16],[52,17,53,17],[52,18,53,18],[52,19,53,19],[53,0,53,7],[53,8,53,9],[53,10,53,14],[54,0,54,11],[54,12,54,13],[54,17,55,17],[54,18,55,18],[54,19,55,19],[71,0,71,4],[71,5,71,12],[59,0,59,16],[62,0,62,16],[64,0,64,3],[69,1,69,4],[70,0,70,1],[70,2,70,7]]}
[]
[null,null,null,null,null,null,"Commission Administrative"]
[null,null,null,null,null,null,"Paritaire",null,null,null,null,null,{"$f":"RECAPITULATIF!D7","v":"Locale"}]
[]
[]
[]
[]
[]
[null,null,null,null,null,null,null,null,null,null,null,null,"Mme, Mr :"]
[]
[null,null,null,null,null,null,null,null,null,null,null,null,"Grade :"]
[]
[null,null,null,null,null,null,null,null,null,null,null,null,"Service :"]
[]
[]
["Votre ou vos représentant-e-s du personnel"]
[]
[{"$f":"RECAPITULATIF!B5","v":"Madame Françoise LAUTROU et Madame PERROT Anne"}]
[]
["SUD Santé Sociaux",null,null,null,{"$f":"RECAPITULATIF!D21","v":35},"du:"]
[]
[{"$f":"RECAPITULATIF!B2","v":"Centre Hospitalier de Saint Malo"}]
[]
["siégeant auprès de la CAP",null,null,null,null,{"$f":"RECAPITULATIF!D7","v":"Locale"},null,null,null,"du :",{"$f":"RECAPITULATIF!D11","v":"2019-06-14"},null,null,"vous informe de votre :"]
[]
[]
[null,null,null,null,null,"AVANCEMENT D’ECHELON"]
[]
[]
[]
[]
[]
["Vous passez à l’échelon :",null,null,null,null,{"$f":"'GRILLE CAT B CS'!B19","v":6},null,"Indice Majoré :",null,null,null,{"$f":"'GRILLE CAT B CS'!D19","v":555}]
[]
[]
["Date d'effet :",null,null,null,null,"/",null,"/",{"$f":"RECAPITULATIF!D9","v":2019},null,null,null,null,null,null,null,null,{"$f":"'GRILLE CAT B CS'!B2","v":"Catégorie B              Classe Supérieure\n\nPréparateur en pharmacie Hospitalière,\nTechnicien de laboratoire médical,\nDiététicien"}]
[]
[]
[]
["Ce qui représente un gain mensuel de :",null,null,null,null,null,null,null,{"$f":"'GRILLE CAT B CS'!D19-'GRILLE CAT B CS'!D17","v":21},null,"points d'indice."]
[null,null,null,null,null,null,null,null,null,null,null,null,null,null,null,null,null,{"$f":"'GRILLE CAT B CS'!B7","v":"Echelon"},{"$f":"'GRILLE CAT B CS'!C7","v":"Durée\n(en mois)"},{"$f":"'GRILLE CAT B CS'!D7","v":"Indice Majoré"}]
[]
["Pour information, la valeur brute du point d'indice",null,null,null,null,null,null,null,null,null,null,null,null,null,null,null,null,{"$f":"'GRILLE CAT B CS'!B9","v":1},{"$f":"'GRILLE CAT B CS'!C9","v":12},{"$f":"'GRILLE CAT B CS'!D9","v":445}]
[]
[null,null,null,null,null,null,null,null,null,null,null,null,null,null,null,null,null,{"$f":"'GRILLE CAT B CS'!B11","v":2},{"$f":"'GRILLE CAT B CS'!C11","v":24},{"$f":"'GRILLE CAT B CS'!D11","v":461}]
["est de",null,{"$f":"RECAPITULATIF!D13","v":4.6859999999999999},null,"au",{"$f":"RECAPITULATIF!D15","v":"2019-01-01"}]
[null,null,null,null,null,null,null,null,null,null,null,null,null,null,null,null,null,{"$f":"'GRILLE CAT B CS'!B13","v":3},{"$f":"'GRILLE CAT B CS'!C13","v":36},{"$f":"'GRILLE CAT B CS'!D13","v":485}]
[]
["Soit un gain net mensuel de :",null,null,null,null,null,{"$f":"I40*C46*0.8315","v":81.824589000000003},null,null,null,null,null,null,null,null,null,null,{"$f":"'GRILLE CAT B CS'!B15","v":4},{"$f":"'GRILLE CAT B CS'!C15","v":36},{"$f":"'GRILLE CAT B CS'!D15","v":510}]
[]
[null,null,null,null,null,null,null,null,null,null,null,null,null,null,null,null,null,{"$f":"'GRILLE CAT B CS'!B17","v":5},{"$f":"'GRILLE CAT B CS'!C17","v":48},{"$f":"'GRILLE CAT B CS'!D17","v":534}]
[]
[null,null,null,null,null,null,null,null,null,null,null,null,null,null,null,null,null,{"$f":"'GRILLE CAT B CS'!B19","v":6},{"$f":"'GRILLE CAT B CS'!C19","v":48},{"$f":"'GRILLE CAT B CS'!D19","v":555}]
["Vos représentant-e-s SUD Santé Sociaux ",null,null,null,null,null,null,null,{"$f":"RECAPITULATIF!D21","v":35},null,"sont à votre disposition"]
["pour tous renseignements complémentaires au poste :",null,null,null,null,null,null,null,null,null,null,null,{"$f":"RECAPITULATIF!D17","v":2886},null,null,null,null,{"$f":"'GRILLE CAT B CS'!B21","v":7},{"$f":"'GRILLE CAT B CS'!C21","v":48},{"$f":"'GRILLE CAT B CS'!D21","v":569}]
[]
[null,null,null,null,null,null,null,null,null,null,null,null,null,null,null,null,null,{"$f":"'GRILLE CAT B CS'!B23","v":8},{"$f":"'GRILLE CAT B CS'!C23","v":0},{"$f":"'GRILLE CAT B CS'!D23","v":587}]
[]
[null,null,null,null,null,null,null,null,null,null,null,null,null,null,null,null,null,{"$f":"'GRILLE CAT B CS'!B25","v":0},{"$f":"'GRILLE CAT B CS'!C25","v":0},{"$f":"'GRILLE CAT B CS'!D25","v":0}]
["Recevez toutes nos salutations."]
[null,null,null,null,null,null,null,null,null,null,null,null,null,null,null,null,null,{"$f":"'GRILLE CAT B CS'!B27","v":0},{"$f":"'GRILLE CAT B CS'!C27","v":0},{"$f":"'GRILLE CAT B CS'!D27","v":0}]
[]
[{"$f":"RECAPITULATIF!B5","v":"Madame Françoise LAUTROU et Madame PERROT Anne"}]
[]
["SUD Santé Sociaux",null,null,null,{"$f":"RECAPITULATIF!D21","v":35}]
[]
[]
[]
[]
["Tél :",{"$f":"RECAPITULATIF!D19","v":299212886}]
["Mél :",null,{"$f":"RECAPITULATIF!C23","v":"sudsante@ch-stmalo.fr"}]
[{"$f":"RECAPITULATIF!B25","v":"Site Départemental Sud"},null,null,null,null,{"$f":"RECAPITULATIF!D25","v":"http://www.sudsantesociaux35.org"}]

{"sheet":"CAT B CS Echelon 7","index":35,"n_rows":72,"n_cols":20,"rows_kept":72,"cut":false,"hidden":false,"merged":[[15,0,15,14],[1,6,1,16],[2,6,2,11],[2,12,2,16],[8,12,9,14],[12,12,12,14],[17,0,17,16],[19,0,19,3],[21,0,21,14],[23,0,23,4],[23,5,23,8],[23,10,23,12],[23,13,23,16],[35,0,35,2],[35,8,35,9],[35,17,39,19],[39,0,39,7],[39,8,39,9],[39,10,39,13],[26,5,27,17],[32,0,32,4],[32,5,32,6],[32,7,32,10],[32,11,32,12],[40,17,41,17],[40,18,41,18],[40,19,41,19],[42,0,42,12],[42,17,43,17],[42,18,43,18],[42,19,43,19],[45,2,45,3],[45,5,45,7],[46,17,47,17],[46,18,47,18],[46,19,47,19],[50,17,51,17],[50,18,51,18],[50,19,51,19],[44,17,45,17],[44,18,45,18],[44,19,45,19],[48,0,48,5],[48,6,48,8],[48,17,49,17],[48,18,49,18],[48,19,49,19],[56,17,57,17],[56,18,57,18],[56,19,57,19],[57,0,57,16],[52,17,53,17],[52,18,53,18],[52,19,53,19],[53,0,53,7],[53,8,53,9],[53,10,53,14],[54,0,54,11],[54,12,54,13],[54,17,55,17],[54,18,55,18],[54,19,55,19],[71,0,71,4],[71,5,71,12],[59,0,59,16],[62,0,62,16],[64,0,64,3],[69,1,69,4],[70,0,70,1],[70,2,70,7]]}
[]
[null,null,null,null,null,null,"Commission Administrative"]
[null,null,null,null,null,null,"Paritaire",null,null,null,null,null,{"$f":"RECAPITULATIF!D7","v":"Locale"}]
[]
[]
[]
[]
[]
[null,null,null,null,null,null,null,null,null,null,null,null,"Mme, Mr :"]
[]
[null,null,null,null,null,null,null,null,null,null,null,null,"Grade :"]
[]
[null,null,null,null,null,null,null,null,null,null,null,null,"Service :"]
[]
[]
["Votre ou vos représentant-e-s du personnel"]
[]
[{"$f":"RECAPITULATIF!B5","v":"Madame Françoise LAUTROU et Madame PERROT Anne"}]
[]
["SUD Santé Sociaux",null,null,null,{"$f":"RECAPITULATIF!D21","v":35},"du:"]
[]
[{"$f":"RECAPITULATIF!B2","v":"Centre Hospitalier de Saint Malo"}]
[]
["siégeant auprès de la CAP",null,null,null,null,{"$f":"RECAPITULATIF!D7","v":"Locale"},null,null,null,"du :",{"$f":"RECAPITULATIF!D11","v":"2019-06-14"},null,null,"vous informe de votre :"]
[]
[]
[null,null,null,null,null,"AVANCEMENT D’ECHELON"]
[]
[]
[]
[]
[]
["Vous passez à l’échelon :",null,null,null,null,{"$f":"'GRILLE CAT B CS'!B21","v":7},null,"Indice Majoré :",null,null,null,{"$f":"'GRILLE CAT B CS'!D21","v":569}]
[]
[]
["Date d'effet :",null,null,null,null,"/",null,"/",{"$f":"RECAPITULATIF!D9","v":2019},null,null,null,null,null,null,null,null,{"$f":"'GRILLE CAT B CS'!B2","v":"Catégorie B              Classe Supérieure\n\nPréparateur en pharmacie Hospitalière,\nTechnicien de laboratoire médical,\nDiététicien"}]
[]
[]
[]
["Ce qui représente un gain mensuel de :",null,null,null,null,null,null,null,{"$f":"'GRILLE CAT B CS'!D21-'GRILLE CAT B CS'!D19","v":14},null,"points d'indice."]
[null,null,null,null,null,null,null,null,null,null,null,null,null,null,null,null,null,{"$f":"'GRILLE CAT B CS'!B7","v":"Echelon"},{"$f":"'GRILLE CAT B CS'!C7","v":"Durée\n(en mois)"},{"$f":"'GRILLE CAT B CS'!D7","v":"Indice Majoré"}]
[]
["Pour information, la valeur brute du point d'indice",null,null,null,null,null,null,null,null,null,null,null,null,null,null,null,null,{"$f":"'GRILLE CAT B CS'!B9","v":1},{"$f":"'GRILLE CAT B CS'!C9","v":12},{"$f":"'GRILLE CAT B CS'!D9","v":445}]
[]
[null,null,null,null,null,null,null,null,null,null,null,null,null,null,null,null,null,{"$f":"'GRILLE CAT B CS'!B11","v":2},{"$f":"'GRILLE CAT B CS'!C11","v":24},{"$f":"'GRILLE CAT B CS'!D11","v":461}]
["est de",null,{"$f":"RECAPITULATIF!D13","v":4.6859999999999999},null,"au",{"$f":"RECAPITULATIF!D15","v":"2019-01-01"}]
[null,null,null,null,null,null,null,null,null,null,null,null,null,null,null,null,null,{"$f":"'GRILLE CAT B CS'!B13","v":3},{"$f":"'GRILLE CAT B CS'!C13","v":36},{"$f":"'GRILLE CAT B CS'!D13","v":485}]
[]
["Soit un gain net mensuel de :",null,null,null,null,null,{"$f":"I40*C46*0.8315","v":54.549726},null,null,null,null,null,null,null,null,null,null,{"$f":"'GRILLE CAT B CS'!B15","v":4},{"$f":"'GRILLE CAT B CS'!C15","v":36},{"$f":"'GRILLE CAT B CS'!D15","v":510}]
[]
[null,null,null,null,null,null,null,null,null,null,null,null,null,null,null,null,null,{"$f":"'GRILLE CAT B CS'!B17","v":5},{"$f":"'GRILLE CAT B CS'!C17","v":48},{"$f":"'GRILLE CAT B CS'!D17","v":534}]
[]
[null,null,null,null,null,null,null,null,null,null,null,null,null,null,null,null,null,{"$f":"'GRILLE CAT B CS'!B19","v":6},{"$f":"'GRILLE CAT B CS'!C19","v":48},{"$f":"'GRILLE CAT B CS'!D19","v":555}]
["Vos représentant-e-s SUD Santé Sociaux ",null,null,null,null,null,null,null,{"$f":"RECAPITULATIF!D21","v":35},null,"sont à votre disposition"]
["pour tous renseignements complémentaires au poste :",null,null,null,null,null,null,null,null,null,null,null,{"$f":"RECAPITULATIF!D17","v":2886},null,null,null,null,{"$f":"'GRILLE CAT B CS'!B21","v":7},{"$f":"'GRILLE CAT B CS'!C21","v":48},{"$f":"'GRILLE CAT B CS'!D21","v":569}]
[]
[null,null,null,null,null,null,null,null,null,null,null,null,null,null,null,null,null,{"$f":"'GRILLE CAT B CS'!B23","v":8},{"$f":"'GRILLE CAT B CS'!C23","v":0},{"$f":"'GRILLE CAT B CS'!D23","v":587}]
[]
[null,null,null,null,null,null,null,null,null,null,null,null,null,null,null,null,null,{"$f":"'GRILLE CAT B CS'!B25","v":0},{"$f":"'GRILLE CAT B CS'!C25","v":0},{"$f":"'GRILLE CAT B CS'!D25","v":0}]
["Recevez toutes nos salutations."]
[null,null,null,null,null,null,null,null,null,null,null,null,null,null,null,null,null,{"$f":"'GRILLE CAT B CS'!B27","v":0},{"$f":"'GRILLE CAT B CS'!C27","v":0},{"$f":"'GRILLE CAT B CS'!D27","v":0}]
[]
[{"$f":"RECAPITULATIF!B5","v":"Madame Françoise LAUTROU et Madame PERROT Anne"}]
[]
["SUD Santé Sociaux",null,null,null,{"$f":"RECAPITULATIF!D21","v":35}]
[]
[]
[]
[]
["Tél :",{"$f":"RECAPITULATIF!D19","v":299212886}]
["Mél :",null,{"$f":"RECAPITULATIF!C23","v":"sudsante@ch-stmalo.fr"}]
[{"$f":"RECAPITULATIF!B25","v":"Site Départemental Sud"},null,null,null,null,{"$f":"RECAPITULATIF!D25","v":"http://www.sudsantesociaux35.org"}]

{"sheet":"CAT B CS Echelon 8","index":36,"n_rows":72,"n_cols":20,"rows_kept":72,"cut":false,"hidden":false,"merged":[[15,0,15,14],[1,6,1,16],[2,6,2,11],[2,12,2,16],[8,12,9,14],[12,12,12,14],[17,0,17,16],[19,0,19,3],[21,0,21,14],[23,0,23,4],[23,5,23,8],[23,10,23,12],[23,13,23,16],[35,0,35,2],[35,8,35,9],[35,17,39,19],[39,0,39,7],[39,8,39,9],[39,10,39,13],[26,5,27,17],[32,0,32,4],[32,5,32,6],[32,7,32,10],[32,11,32,12],[40,17,41,17],[40,18,41,18],[40,19,41,19],[42,0,42,12],[42,17,43,17],[42,18,43,18],[42,19,43,19],[45,2,45,3],[45,5,45,7],[46,17,47,17],[46,18,47,18],[46,19,47,19],[50,17,51,17],[50,18,51,18],[50,19,51,19],[44,17,45,17],[44,18,45,18],[44,19,45,19],[48,0,48,5],[48,6,48,8],[48,17,49,17],[48,18,49,18],[48,19,49,19],[56,17,57,17],[56,18,57,18],[56,19,57,19],[57,0,57,16],[52,17,53,17],[52,18,53,18],[52,19,53,19],[53,0,53,7],[53,8,53,9],[53,10,53,14],[54,0,54,11],[54,12,54,13],[54,17,55,17],[54,18,55,18],[54,19,55,19],[71,0,71,4],[71,5,71,12],[59,0,59,16],[62,0,62,16],[64,0,64,3],[69,1,69,4],[70,0,70,1],[70,2,70,7]]}
[]
[null,null,null,null,null,null,"Commission Administrative"]
[null,null,null,null,null,null,"Paritaire",null,null,null,null,null,{"$f":"RECAPITULATIF!D7","v":"Locale"}]
[]
[]
[]
[]
[]
[null,null,null,null,null,null,null,null,null,null,null,null,"Mme, Mr :"]
[]
[null,null,null,null,null,null,null,null,null,null,null,null,"Grade :"]
[]
[null,null,null,null,null,null,null,null,null,null,null,null,"Service :"]
[]
[]
["Votre ou vos représentant-e-s du personnel"]
[]
[{"$f":"RECAPITULATIF!B5","v":"Madame Françoise LAUTROU et Madame PERROT Anne"}]
[]
["SUD Santé Sociaux",null,null,null,{"$f":"RECAPITULATIF!D21","v":35},"du:"]
[]
[{"$f":"RECAPITULATIF!B2","v":"Centre Hospitalier de Saint Malo"}]
[]
["siégeant auprès de la CAP",null,null,null,null,{"$f":"RECAPITULATIF!D7","v":"Locale"},null,null,null,"du :",{"$f":"RECAPITULATIF!D11","v":"2019-06-14"},null,null,"vous informe de votre :"]
[]
[]
[null,null,null,null,null,"AVANCEMENT D’ECHELON"]
[]
[]
[]
[]
[]
["Vous passez à l’échelon :",null,null,null,null,{"$f":"'GRILLE CAT B CS'!B23","v":8},null,"Indice Majoré :",null,null,null,{"$f":"'GRILLE CAT B CS'!D23","v":587}]
[]
[]
["Date d'effet :",null,null,null,null,"/",null,"/",{"$f":"RECAPITULATIF!D9","v":2019},null,null,null,null,null,null,null,null,{"$f":"'GRILLE CAT B CS'!B2","v":"Catégorie B              Classe Supérieure\n\nPréparateur en pharmacie Hospitalière,\nTechnicien de laboratoire médical,\nDiététicien"}]
[]
[]
[]
["Ce qui représente un gain mensuel de :",null,null,null,null,null,null,null,{"$f":"'GRILLE CAT B CS'!D23-'GRILLE CAT B CS'!D21","v":18},null,"points d'indice."]
[null,null,null,null,null,null,null,null,null,null,null,null,null,null,null,null,null,{"$f":"'GRILLE CAT B CS'!B7","v":"Echelon"},{"$f":"'GRILLE CAT B CS'!C7","v":"Durée\n(en mois)"},{"$f":"'GRILLE CAT B CS'!D7","v":"Indice Majoré"}]
[]
["Pour information, la valeur brute du point d'indice",null,null,null,null,null,null,null,null,null,null,null,null,null,null,null,null,{"$f":"'GRILLE CAT B CS'!B9","v":1},{"$f":"'GRILLE CAT B CS'!C9","v":12},{"$f":"'GRILLE CAT B CS'!D9","v":445}]
[]
[null,null,null,null,null,null,null,null,null,null,null,null,null,null,null,null,null,{"$f":"'GRILLE CAT B CS'!B11","v":2},{"$f":"'GRILLE CAT B CS'!C11","v":24},{"$f":"'GRILLE CAT B CS'!D11","v":461}]
["est de",null,{"$f":"RECAPITULATIF!D13","v":4.6859999999999999},null,"au",{"$f":"RECAPITULATIF!D15","v":"2019-01-01"}]
[null,null,null,null,null,null,null,null,null,null,null,null,null,null,null,null,null,{"$f":"'GRILLE CAT B CS'!B13","v":3},{"$f":"'GRILLE CAT B CS'!C13","v":36},{"$f":"'GRILLE CAT B CS'!D13","v":485}]
[]
["Soit un gain net mensuel de :",null,null,null,null,null,{"$f":"I40*C46*0.8315","v":70.135362000000001},null,null,null,null,null,null,null,null,null,null,{"$f":"'GRILLE CAT B CS'!B15","v":4},{"$f":"'GRILLE CAT B CS'!C15","v":36},{"$f":"'GRILLE CAT B CS'!D15","v":510}]
[]
[null,null,null,null,null,null,null,null,null,null,null,null,null,null,null,null,null,{"$f":"'GRILLE CAT B CS'!B17","v":5},{"$f":"'GRILLE CAT B CS'!C17","v":48},{"$f":"'GRILLE CAT B CS'!D17","v":534}]
[]
[null,null,null,null,null,null,null,null,null,null,null,null,null,null,null,null,null,{"$f":"'GRILLE CAT B CS'!B19","v":6},{"$f":"'GRILLE CAT B CS'!C19","v":48},{"$f":"'GRILLE CAT B CS'!D19","v":555}]
["Vos représentant-e-s SUD Santé Sociaux ",null,null,null,null,null,null,null,{"$f":"RECAPITULATIF!D21","v":35},null,"sont à votre disposition"]
["pour tous renseignements complémentaires au poste :",null,null,null,null,null,null,null,null,null,null,null,{"$f":"RECAPITULATIF!D17","v":2886},null,null,null,null,{"$f":"'GRILLE CAT B CS'!B21","v":7},{"$f":"'GRILLE CAT B CS'!C21","v":48},{"$f":"'GRILLE CAT B CS'!D21","v":569}]
[]
[null,null,null,null,null,null,null,null,null,null,null,null,null,null,null,null,null,{"$f":"'GRILLE CAT B CS'!B23","v":8},{"$f":"'GRILLE CAT B CS'!C23","v":0},{"$f":"'GRILLE CAT B CS'!D23","v":587}]
[]
[null,null,null,null,null,null,null,null,null,null,null,null,null,null,null,null,null,{"$f":"'GRILLE CAT B CS'!B25","v":0},{"$f":"'GRILLE CAT B CS'!C25","v":0},{"$f":"'GRILLE CAT B CS'!D25","v":0}]
["Recevez toutes nos salutations."]
[null,null,null,null,null,null,null,null,null,null,null,null,null,null,null,null,null,{"$f":"'GRILLE CAT B CS'!B27","v":0},{"$f":"'GRILLE CAT B CS'!C27","v":0},{"$f":"'GRILLE CAT B CS'!D27","v":0}]
[]
[{"$f":"RECAPITULATIF!B5","v":"Madame Françoise LAUTROU et Madame PERROT Anne"}]
[]
["SUD Santé Sociaux",null,null,null,{"$f":"RECAPITULATIF!D21","v":35}]
[]
[]
[]
[]
["Tél :",{"$f":"RECAPITULATIF!D19","v":299212886}]
["Mél :",null,{"$f":"RECAPITULATIF!C23","v":"sudsante@ch-stmalo.fr"}]
[{"$f":"RECAPITULATIF!B25","v":"Site Départemental Sud"},null,null,null,null,{"$f":"RECAPITULATIF!D25","v":"http://www.sudsantesociaux35.org"}]

{"sheet":"GRILLE Cat B CN EXT","index":37,"n_rows":23,"n_cols":4,"rows_kept":23,"cut":false,"hidden":false,"merged":[[1,1,5,3],[6,1,7,1],[6,2,7,2],[6,3,7,3],[8,1,9,1],[8,2,9,2],[8,3,9,3],[10,1,11,1],[10,2,11,2],[10,3,11,3],[12,1,13,1],[12,2,13,2],[12,3,13,3],[14,1,15,1],[14,2,15,2],[14,3,15,3],[16,1,17,1],[16,2,17,2],[16,3,17,3],[22,1,23,1],[22,2,23,2],[22,3,23,3],[18,1,19,1],[18,2,19,2],[18,3,19,3],[20,1,21,1],[20,2,21,2],[20,3,21,3]]}
[]
[null,"Catégorie B  Classe Normale    Extinction\nInfirmier-ère D.E., Manipulateur d'Electroradiologie Médicale, \nMasseur-Kinésithérapeute,\nErgothérapeute, Psychomotricien, Orthophoniste, Pédicure-Podologue"]
[]
[]
[]
[]
[null,"Echelon","Durée\n(en mois)","Indice Majoré"]
[]
[null,1,24,356]
[]
[null,2,36,371]
[]
[null,3,36,389]
[]
[null,4,48,409]
[]
[null,5,48,429]
[]
[null,6,48,462]
[]
[null,7,48,495]
[]
[null,8,null,534]

{"sheet":"IMP GRILLE Cat B CN EXT","index":38,"n_rows":6,"n_cols":2,"rows_kept":6,"cut":false,"hidden":false,"merged":[[1,1,1,9],[3,1,3,9],[5,1,5,9]]}
[]
[null,"1) Imprimez autant de feuilles que d'agents concernés."]
[]
[null,"2) Pliez en 3 au niveau du repère, deux petits traits noirs."]
[]
[null,"3) Inserrez ce courrier dans une enveloppe 110 X 220 à fenêtre."]

{"sheet":"Cat B CN EXT Echelon 2","index":39,"n_rows":72,"n_cols":20,"rows_kept":72,"cut":false,"hidden":false,"merged":[[15,0,15,14],[1,6,1,16],[2,6,2,11],[2,12,2,16],[8,12,9,14],[12,12,12,14],[17,0,17,16],[19,0,19,3],[21,0,21,14],[23,0,23,4],[23,5,23,8],[23,10,23,12],[23,13,23,16],[35,0,35,2],[35,8,35,9],[35,17,39,19],[39,0,39,7],[39,8,39,9],[39,10,39,13],[26,5,27,17],[32,0,32,4],[32,5,32,6],[32,7,32,10],[32,11,32,12],[40,17,41,17],[40,18,41,18],[40,19,41,19],[42,0,42,12],[42,17,43,17],[42,18,43,18],[42,19,43,19],[45,2,45,3],[45,5,45,7],[46,17,47,17],[46,18,47,18],[46,19,47,19],[50,17,51,17],[50,18,51,18],[50,19,51,19],[44,17,45,17],[44,18,45,18],[44,19,45,19],[48,0,48,5],[48,6,48,8],[48,17,49,17],[48,18,49,18],[48,19,49,19],[56,17,57,17],[56,18,57,18],[56,19,57,19],[57,0,57,16],[52,17,53,17],[52,18,53,18],[52,19,53,19],[53,0,53,7],[53,8,53,9],[53,10,53,14],[54,0,54,11],[54,12,54,13],[54,17,55,17],[54,18,55,18],[54,19,55,19],[71,0,71,4],[71,5,71,12],[59,0,59,16],[62,0,62,16],[64,0,64,3],[69,1,69,4],[70,0,70,1],[70,2,70,7]]}
[]
[null,null,null,null,null,null,"Commission Administrative"]
[null,null,null,null,null,null,"Paritaire",null,null,null,null,null,{"$f":"RECAPITULATIF!D7","v":"Locale"}]
[]
[]
[]
[]
[]
[null,null,null,null,null,null,null,null,null,null,null,null,"Mme, Mr :"]
[]
[null,null,null,null,null,null,null,null,null,null,null,null,"Grade :"]
[]
[null,null,null,null,null,null,null,null,null,null,null,null,"Service :"]
[]
[]
["Votre ou vos représentant-e-s du personnel"]
[]
[{"$f":"RECAPITULATIF!B5","v":"Madame Françoise LAUTROU et Madame PERROT Anne"}]
[]
["SUD Santé Sociaux",null,null,null,{"$f":"RECAPITULATIF!D21","v":35},"du:"]
[]
[{"$f":"RECAPITULATIF!B2","v":"Centre Hospitalier de Saint Malo"}]
[]
["siégeant auprès de la CAP",null,null,null,null,{"$f":"RECAPITULATIF!D7","v":"Locale"},null,null,null,"du :",{"$f":"RECAPITULATIF!D11","v":"2019-06-14"},null,null,"vous informe de votre :"]
[]
[]
[null,null,null,null,null,"AVANCEMENT D’ECHELON"]
[]
[]
[]
[]
[]
["Vous passez à l’échelon :",null,null,null,null,{"$f":"'GRILLE Cat B CN EXT'!B11","v":2},null,"Indice Majoré :",null,null,null,{"$f":"'GRILLE Cat B CN EXT'!D11","v":371}]
[]
[]
["Date d'effet :",null,null,null,null,"/",null,"/",{"$f":"RECAPITULATIF!D9","v":2019},null,null,null,null,null,null,null,null,{"$f":"'GRILLE Cat B CN EXT'!B2","v":"Catégorie B  Classe Normale    Extinction\nInfirmier-ère D.E., Manipulateur d'Electroradiologie Médicale, \nMasseur-Kinésithérapeute,\nErgothérapeute, Psychomotricien, Orthophoniste, Pédicure-Podologue"}]
[]
[]
[]
["Ce qui représente un gain mensuel de :",null,null,null,null,null,null,null,{"$f":"'GRILLE Cat B CN EXT'!D11-'GRILLE Cat B CN EXT'!D9","v":15},null,"points d'indice."]
[null,null,null,null,null,null,null,null,null,null,null,null,null,null,null,null,null,{"$f":"'GRILLE Cat B CN EXT'!B7","v":"Echelon"},{"$f":"'GRILLE Cat B CN EXT'!C7","v":"Durée\n(en mois)"},{"$f":"'GRILLE Cat B CN EXT'!D7","v":"Indice Majoré"}]
[]
["Pour information, la valeur brute du point d'indice",null,null,null,null,null,null,null,null,null,null,null,null,null,null,null,null,{"$f":"'GRILLE Cat B CN EXT'!B9","v":1},{"$f":"'GRILLE Cat B CN EXT'!C9","v":24},{"$f":"'GRILLE Cat B CN EXT'!D9","v":356}]
[]
[null,null,null,null,null,null,null,null,null,null,null,null,null,null,null,null,null,{"$f":"'GRILLE Cat B CN EXT'!B11","v":2},{"$f":"'GRILLE Cat B CN EXT'!C11","v":36},{"$f":"'GRILLE Cat B CN EXT'!D11","v":371}]
["est de",null,{"$f":"RECAPITULATIF!D13","v":4.6859999999999999},null,"au",{"$f":"RECAPITULATIF!D15","v":"2019-01-01"}]
[null,null,null,null,null,null,null,null,null,null,null,null,null,null,null,null,null,{"$f":"'GRILLE Cat B CN EXT'!B13","v":3},{"$f":"'GRILLE Cat B CN EXT'!C13","v":36},{"$f":"'GRILLE Cat B CN EXT'!D13","v":389}]
[]
["Soit un gain net mensuel de :",null,null,null,null,null,{"$f":"I40*C46*0.8315","v":58.446134999999991},null,null,null,null,null,null,null,null,null,null,{"$f":"'GRILLE Cat B CN EXT'!B15","v":4},{"$f":"'GRILLE Cat B CN EXT'!C15","v":48},{"$f":"'GRILLE Cat B CN EXT'!D15","v":409}]
[]
[null,null,null,null,null,null,null,null,null,null,null,null,null,null,null,null,null,{"$f":"'GRILLE Cat B CN EXT'!B17","v":5},{"$f":"'GRILLE Cat B CN EXT'!C17","v":48},{"$f":"'GRILLE Cat B CN EXT'!D17","v":429}]
[]
[null,null,null,null,null,null,null,null,null,null,null,null,null,null,null,null,null,{"$f":"'GRILLE Cat B CN EXT'!B19","v":6},{"$f":"'GRILLE Cat B CN EXT'!C19","v":48},{"$f":"'GRILLE Cat B CN EXT'!D19","v":462}]
["Vos représentant-e-s SUD Santé Sociaux ",null,null,null,null,null,null,null,{"$f":"RECAPITULATIF!D21","v":35},null,"sont à votre disposition"]
["pour tous renseignements complémentaires au poste :",null,null,null,null,null,null,null,null,null,null,null,{"$f":"RECAPITULATIF!D17","v":2886},null,null,null,null,{"$f":"'GRILLE Cat B CN EXT'!B21","v":7},{"$f":"'GRILLE Cat B CN EXT'!C21","v":48},{"$f":"'GRILLE Cat B CN EXT'!D21","v":495}]
[]
[null,null,null,null,null,null,null,null,null,null,null,null,null,null,null,null,null,{"$f":"'GRILLE Cat B CN EXT'!B23","v":8},{"$f":"'GRILLE Cat B CN EXT'!C23","v":0},{"$f":"'GRILLE Cat B CN EXT'!D23","v":534}]
[]
[null,null,null,null,null,null,null,null,null,null,null,null,null,null,null,null,null,{"$f":"'GRILLE Cat B CN EXT'!B25","v":0},{"$f":"'GRILLE Cat B CN EXT'!C25","v":0},{"$f":"'GRILLE Cat B CN EXT'!D25","v":0}]
["Recevez toutes nos salutations."]
[null,null,null,null,null,null,null,null,null,null,null,null,null,null,null,null,null,{"$f":"'GRILLE Cat B CN EXT'!B27","v":0},{"$f":"'GRILLE Cat B CN EXT'!C27","v":0},{"$f":"'GRILLE Cat B CN EXT'!D27","v":0}]
[]
[{"$f":"RECAPITULATIF!B5","v":"Madame Françoise LAUTROU et Madame PERROT Anne"}]
[]
["SUD Santé Sociaux",null,null,null,{"$f":"RECAPITULATIF!D21","v":35}]
[]
[]
[]
[]
["Tél :",{"$f":"RECAPITULATIF!D19","v":299212886}]
["Mél :",null,{"$f":"RECAPITULATIF!C23","v":"sudsante@ch-stmalo.fr"}]
[{"$f":"RECAPITULATIF!B25","v":"Site Départemental Sud"},null,null,null,null,{"$f":"RECAPITULATIF!D25","v":"http://www.sudsantesociaux35.org"}]

{"sheet":"Cat B CN EXT Echelon 3","index":40,"n_rows":72,"n_cols":20,"rows_kept":72,"cut":false,"hidden":false,"merged":[[15,0,15,14],[1,6,1,16],[2,6,2,11],[2,12,2,16],[8,12,9,14],[12,12,12,14],[17,0,17,16],[19,0,19,3],[21,0,21,14],[23,0,23,4],[23,5,23,8],[23,10,23,12],[23,13,23,16],[35,0,35,2],[35,8,35,9],[35,17,39,19],[39,0,39,7],[39,8,39,9],[39,10,39,13],[26,5,27,17],[32,0,32,4],[32,5,32,6],[32,7,32,10],[32,11,32,12],[40,17,41,17],[40,18,41,18],[40,19,41,19],[42,0,42,12],[42,17,43,17],[42,18,43,18],[42,19,43,19],[45,2,45,3],[45,5,45,7],[46,17,47,17],[46,18,47,18],[46,19,47,19],[50,17,51,17],[50,18,51,18],[50,19,51,19],[44,17,45,17],[44,18,45,18],[44,19,45,19],[48,0,48,5],[48,6,48,8],[48,17,49,17],[48,18,49,18],[48,19,49,19],[56,17,57,17],[56,18,57,18],[56,19,57,19],[57,0,57,16],[52,17,53,17],[52,18,53,18],[52,19,53,19],[53,0,53,7],[53,8,53,9],[53,10,53,14],[54,0,54,11],[54,12,54,13],[54,17,55,17],[54,18,55,18],[54,19,55,19],[71,0,71,4],[71,5,71,12],[59,0,59,16],[62,0,62,16],[64,0,64,3],[69,1,69,4],[70,0,70,1],[70,2,70,7]]}
[]
[null,null,null,null,null,null,"Commission Administrative"]
[null,null,null,null,null,null,"Paritaire",null,null,null,null,null,{"$f":"RECAPITULATIF!D7","v":"Locale"}]
[]
[]
[]
[]
[]
[null,null,null,null,null,null,null,null,null,null,null,null,"Mme, Mr :"]
[]
[null,null,null,null,null,null,null,null,null,null,null,null,"Grade :"]
[]
[null,null,null,null,null,null,null,null,null,null,null,null,"Service :"]
[]
[]
["Votre ou vos représentant-e-s du personnel"]
[]
[{"$f":"RECAPITULATIF!B5","v":"Madame Françoise LAUTROU et Madame PERROT Anne"}]
[]
["SUD Santé Sociaux",null,null,null,{"$f":"RECAPITULATIF!D21","v":35},"du:"]
[]
[{"$f":"RECAPITULATIF!B2","v":"Centre Hospitalier de Saint Malo"}]
[]
["siégeant auprès de la CAP",null,null,null,null,{"$f":"RECAPITULATIF!D7","v":"Locale"},null,null,null,"du :",{"$f":"RECAPITULATIF!D11","v":"2019-06-14"},null,null,"vous informe de votre :"]
[]
[]
[null,null,null,null,null,"AVANCEMENT D’ECHELON"]
[]
[]
[]
[]
[]
["Vous passez à l’échelon :",null,null,null,null,{"$f":"'GRILLE Cat B CN EXT'!B13","v":3},null,"Indice Majoré :",null,null,null,{"$f":"'GRILLE Cat B CN EXT'!D13","v":389}]
[]
[]
["Date d'effet :",null,null,null,null,"/",null,"/",{"$f":"RECAPITULATIF!D9","v":2019},null,null,null,null,null,null,null,null,{"$f":"'GRILLE Cat B CN EXT'!B2","v":"Catégorie B  Classe Normale    Extinction\nInfirmier-ère D.E., Manipulateur d'Electroradiologie Médicale, \nMasseur-Kinésithérapeute,\nErgothérapeute, Psychomotricien, Orthophoniste, Pédicure-Podologue"}]
[]
[]
[]
["Ce qui représente un gain mensuel de :",null,null,null,null,null,null,null,{"$f":"'GRILLE Cat B CN EXT'!D13-'GRILLE Cat B CN EXT'!D11","v":18},null,"points d'indice."]
[null,null,null,null,null,null,null,null,null,null,null,null,null,null,null,null,null,{"$f":"'GRILLE Cat B CN EXT'!B7","v":"Echelon"},{"$f":"'GRILLE Cat B CN EXT'!C7","v":"Durée\n(en mois)"},{"$f":"'GRILLE Cat B CN EXT'!D7","v":"Indice Majoré"}]
[]
["Pour information, la valeur brute du point d'indice",null,null,null,null,null,null,null,null,null,null,null,null,null,null,null,null,{"$f":"'GRILLE Cat B CN EXT'!B9","v":1},{"$f":"'GRILLE Cat B CN EXT'!C9","v":24},{"$f":"'GRILLE Cat B CN EXT'!D9","v":356}]
[]
[null,null,null,null,null,null,null,null,null,null,null,null,null,null,null,null,null,{"$f":"'GRILLE Cat B CN EXT'!B11","v":2},{"$f":"'GRILLE Cat B CN EXT'!C11","v":36},{"$f":"'GRILLE Cat B CN EXT'!D11","v":371}]
["est de",null,{"$f":"RECAPITULATIF!D13","v":4.6859999999999999},null,"au",{"$f":"RECAPITULATIF!D15","v":"2019-01-01"}]
[null,null,null,null,null,null,null,null,null,null,null,null,null,null,null,null,null,{"$f":"'GRILLE Cat B CN EXT'!B13","v":3},{"$f":"'GRILLE Cat B CN EXT'!C13","v":36},{"$f":"'GRILLE Cat B CN EXT'!D13","v":389}]
[]
["Soit un gain net mensuel de :",null,null,null,null,null,{"$f":"I40*C46*0.8315","v":70.135362000000001},null,null,null,null,null,null,null,null,null,null,{"$f":"'GRILLE Cat B CN EXT'!B15","v":4},{"$f":"'GRILLE Cat B CN EXT'!C15","v":48},{"$f":"'GRILLE Cat B CN EXT'!D15","v":409}]
[]
[null,null,null,null,null,null,null,null,null,null,null,null,null,null,null,null,null,{"$f":"'GRILLE Cat B CN EXT'!B17","v":5},{"$f":"'GRILLE Cat B CN EXT'!C17","v":48},{"$f":"'GRILLE Cat B CN EXT'!D17","v":429}]
[]
[null,null,null,null,null,null,null,null,null,null,null,null,null,null,null,null,null,{"$f":"'GRILLE Cat B CN EXT'!B19","v":6},{"$f":"'GRILLE Cat B CN EXT'!C19","v":48},{"$f":"'GRILLE Cat B CN EXT'!D19","v":462}]
["Vos représentant-e-s SUD Santé Sociaux ",null,null,null,null,null,null,null,{"$f":"RECAPITULATIF!D21","v":35},null,"sont à votre disposition"]
["pour tous renseignements complémentaires au poste :",null,null,null,null,null,null,null,null,null,null,null,{"$f":"RECAPITULATIF!D17","v":2886},null,null,null,null,{"$f":"'GRILLE Cat B CN EXT'!B21","v":7},{"$f":"'GRILLE Cat B CN EXT'!C21","v":48},{"$f":"'GRILLE Cat B CN EXT'!D21","v":495}]
[]
[null,null,null,null,null,null,null,null,null,null,null,null,null,null,null,null,null,{"$f":"'GRILLE Cat B CN EXT'!B23","v":8},{"$f":"'GRILLE Cat B CN EXT'!C23","v":0},{"$f":"'GRILLE Cat B CN EXT'!D23","v":534}]
[]
[null,null,null,null,null,null,null,null,null,null,null,null,null,null,null,null,null,{"$f":"'GRILLE Cat B CN EXT'!B25","v":0},{"$f":"'GRILLE Cat B CN EXT'!C25","v":0},{"$f":"'GRILLE Cat B CN EXT'!D25","v":0}]
["Recevez toutes nos salutations."]
[null,null,null,null,null,null,null,null,null,null,null,null,null,null,null,null,null,{"$f":"'GRILLE Cat B CN EXT'!B27","v":0},{"$f":"'GRILLE Cat B CN EXT'!C27","v":0},{"$f":"'GRILLE Cat B CN EXT'!D27","v":0}]
[]
[{"$f":"RECAPITULATIF!B5","v":"Madame Françoise LAUTROU et Madame PERROT Anne"}]
[]
["SUD Santé Sociaux",null,null,null,{"$f":"RECAPITULATIF!D21","v":35}]
[]
[]
[]
[]
["Tél :",{"$f":"RECAPITULATIF!D19","v":299212886}]
["Mél :",null,{"$f":"RECAPITULATIF!C23","v":"sudsante@ch-stmalo.fr"}]
[{"$f":"RECAPITULATIF!B25","v":"Site Départemental Sud"},null,null,null,null,{"$f":"RECAPITULATIF!D25","v":"http://www.sudsantesociaux35.org"}]

{"sheet":"Cat B CN EXT Echelon 4","index":41,"n_rows":72,"n_cols":20,"rows_kept":72,"cut":false,"hidden":false,"merged":[[15,0,15,14],[1,6,1,16],[2,6,2,11],[2,12,2,16],[8,12,9,14],[12,12,12,14],[17,0,17,16],[19,0,19,3],[21,0,21,14],[23,0,23,4],[23,5,23,8],[23,10,23,12],[23,13,23,16],[35,0,35,2],[35,8,35,9],[35,17,39,19],[39,0,39,7],[39,8,39,9],[39,10,39,13],[26,5,27,17],[32,0,32,4],[32,5,32,6],[32,7,32,10],[32,11,32,12],[40,17,41,17],[40,18,41,18],[40,19,41,19],[42,0,42,12],[42,17,43,17],[42,18,43,18],[42,19,43,19],[45,2,45,3],[45,5,45,7],[46,17,47,17],[46,18,47,18],[46,19,47,19],[50,17,51,17],[50,18,51,18],[50,19,51,19],[44,17,45,17],[44,18,45,18],[44,19,45,19],[48,0,48,5],[48,6,48,8],[48,17,49,17],[48,18,49,18],[48,19,49,19],[56,17,57,17],[56,18,57,18],[56,19,57,19],[57,0,57,16],[52,17,53,17],[52,18,53,18],[52,19,53,19],[53,0,53,7],[53,8,53,9],[53,10,53,14],[54,0,54,11],[54,12,54,13],[54,17,55,17],[54,18,55,18],[54,19,55,19],[71,0,71,4],[71,5,71,12],[59,0,59,16],[62,0,62,16],[64,0,64,3],[69,1,69,4],[70,0,70,1],[70,2,70,7]]}
[]
[null,null,null,null,null,null,"Commission Administrative"]
[null,null,null,null,null,null,"Paritaire",null,null,null,null,null,{"$f":"RECAPITULATIF!D7","v":"Locale"}]
[]
[]
[]
[]
[]
[null,null,null,null,null,null,null,null,null,null,null,null,"Mme, Mr :"]
[]
[null,null,null,null,null,null,null,null,null,null,null,null,"Grade :"]
[]
[null,null,null,null,null,null,null,null,null,null,null,null,"Service :"]
[]
[]
["Votre ou vos représentant-e-s du personnel"]
[]
[{"$f":"RECAPITULATIF!B5","v":"Madame Françoise LAUTROU et Madame PERROT Anne"}]
[]
["SUD Santé Sociaux",null,null,null,{"$f":"RECAPITULATIF!D21","v":35},"du:"]
[]
[{"$f":"RECAPITULATIF!B2","v":"Centre Hospitalier de Saint Malo"}]
[]
["siégeant auprès de la CAP",null,null,null,null,{"$f":"RECAPITULATIF!D7","v":"Locale"},null,null,null,"du :",{"$f":"RECAPITULATIF!D11","v":"2019-06-14"},null,null,"vous informe de votre :"]
[]
[]
[null,null,null,null,null,"AVANCEMENT D’ECHELON"]
[]
[]
[]
[]
[]
["Vous passez à l’échelon :",null,null,null,null,{"$f":"'GRILLE Cat B CN EXT'!B15","v":4},null,"Indice Majoré :",null,null,null,{"$f":"'GRILLE Cat B CN EXT'!D15","v":409}]
[]
[]
["Date d'effet :",null,null,null,null,"/",null,"/",{"$f":"RECAPITULATIF!D9","v":2019},null,null,null,null,null,null,null,null,{"$f":"'GRILLE Cat B CN EXT'!B2","v":"Catégorie B  Classe Normale    Extinction\nInfirmier-ère D.E., Manipulateur d'Electroradiologie Médicale, \nMasseur-Kinésithérapeute,\nErgothérapeute, Psychomotricien, Orthophoniste, Pédicure-Podologue"}]
[]
[]
[]
["Ce qui représente un gain mensuel de :",null,null,null,null,null,null,null,{"$f":"'GRILLE Cat B CN EXT'!D15-'GRILLE Cat B CN EXT'!D13","v":20},null,"points d'indice."]
[null,null,null,null,null,null,null,null,null,null,null,null,null,null,null,null,null,{"$f":"'GRILLE Cat B CN EXT'!B7","v":"Echelon"},{"$f":"'GRILLE Cat B CN EXT'!C7","v":"Durée\n(en mois)"},{"$f":"'GRILLE Cat B CN EXT'!D7","v":"Indice Majoré"}]
[]
["Pour information, la valeur brute du point d'indice",null,null,null,null,null,null,null,null,null,null,null,null,null,null,null,null,{"$f":"'GRILLE Cat B CN EXT'!B9","v":1},{"$f":"'GRILLE Cat B CN EXT'!C9","v":24},{"$f":"'GRILLE Cat B CN EXT'!D9","v":356}]
[]
[null,null,null,null,null,null,null,null,null,null,null,null,null,null,null,null,null,{"$f":"'GRILLE Cat B CN EXT'!B11","v":2},{"$f":"'GRILLE Cat B CN EXT'!C11","v":36},{"$f":"'GRILLE Cat B CN EXT'!D11","v":371}]
["est de",null,{"$f":"RECAPITULATIF!D13","v":4.6859999999999999},null,"au",{"$f":"RECAPITULATIF!D15","v":"2019-01-01"}]
[null,null,null,null,null,null,null,null,null,null,null,null,null,null,null,null,null,{"$f":"'GRILLE Cat B CN EXT'!B13","v":3},{"$f":"'GRILLE Cat B CN EXT'!C13","v":36},{"$f":"'GRILLE Cat B CN EXT'!D13","v":389}]
[]
["Soit un gain net mensuel de :",null,null,null,null,null,{"$f":"I40*C46*0.8315","v":77.928179999999998},null,null,null,null,null,null,null,null,null,null,{"$f":"'GRILLE Cat B CN EXT'!B15","v":4},{"$f":"'GRILLE Cat B CN EXT'!C15","v":48},{"$f":"'GRILLE Cat B CN EXT'!D15","v":409}]
[]
[null,null,null,null,null,null,null,null,null,null,null,null,null,null,null,null,null,{"$f":"'GRILLE Cat B CN EXT'!B17","v":5},{"$f":"'GRILLE Cat B CN EXT'!C17","v":48},{"$f":"'GRILLE Cat B CN EXT'!D17","v":429}]
[]
[null,null,null,null,null,null,null,null,null,null,null,null,null,null,null,null,null,{"$f":"'GRILLE Cat B CN EXT'!B19","v":6},{"$f":"'GRILLE Cat B CN EXT'!C19","v":48},{"$f":"'GRILLE Cat B CN EXT'!D19","v":462}]
["Vos représentant-e-s SUD Santé Sociaux ",null,null,null,null,null,null,null,{"$f":"RECAPITULATIF!D21","v":35},null,"sont à votre disposition"]
["pour tous renseignements complémentaires au poste :",null,null,null,null,null,null,null,null,null,null,null,{"$f":"RECAPITULATIF!D17","v":2886},null,null,null,null,{"$f":"'GRILLE Cat B CN EXT'!B21","v":7},{"$f":"'GRILLE Cat B CN EXT'!C21","v":48},{"$f":"'GRILLE Cat B CN EXT'!D21","v":495}]
[]
[null,null,null,null,null,null,null,null,null,null,null,null,null,null,null,null,null,{"$f":"'GRILLE Cat B CN EXT'!B23","v":8},{"$f":"'GRILLE Cat B CN EXT'!C23","v":0},{"$f":"'GRILLE Cat B CN EXT'!D23","v":534}]
[]
[null,null,null,null,null,null,null,null,null,null,null,null,null,null,null,null,null,{"$f":"'GRILLE Cat B CN EXT'!B25","v":0},{"$f":"'GRILLE Cat B CN EXT'!C25","v":0},{"$f":"'GRILLE Cat B CN EXT'!D25","v":0}]
["Recevez toutes nos salutations."]
[null,null,null,null,null,null,null,null,null,null,null,null,null,null,null,null,null,{"$f":"'GRILLE Cat B CN EXT'!B27","v":0},{"$f":"'GRILLE Cat B CN EXT'!C27","v":0},{"$f":"'GRILLE Cat B CN EXT'!D27","v":0}]
[]
[{"$f":"RECAPITULATIF!B5","v":"Madame Françoise LAUTROU et Madame PERROT Anne"}]
[]
["SUD Santé Sociaux",null,null,null,{"$f":"RECAPITULATIF!D21","v":35}]
[]
[]
[]
[]
["Tél :",{"$f":"RECAPITULATIF!D19","v":299212886}]
["Mél :",null,{"$f":"RECAPITULATIF!C23","v":"sudsante@ch-stmalo.fr"}]
[{"$f":"RECAPITULATIF!B25","v":"Site Départemental Sud"},null,null,null,null,{"$f":"RECAPITULATIF!D25","v":"http://www.sudsantesociaux35.org"}]

{"sheet":"Cat B CN EXT Echelon 5","index":42,"n_rows":72,"n_cols":20,"rows_kept":72,"cut":false,"hidden":false,"merged":[[15,0,15,14],[1,6,1,16],[2,6,2,11],[2,12,2,16],[8,12,9,14],[12,12,12,14],[17,0,17,16],[19,0,19,3],[21,0,21,14],[23,0,23,4],[23,5,23,8],[23,10,23,12],[23,13,23,16],[35,0,35,2],[35,8,35,9],[35,17,39,19],[39,0,39,7],[39,8,39,9],[39,10,39,13],[26,5,27,17],[32,0,32,4],[32,5,32,6],[32,7,32,10],[32,11,32,12],[40,17,41,17],[40,18,41,18],[40,19,41,19],[42,0,42,12],[42,17,43,17],[42,18,43,18],[42,19,43,19],[45,2,45,3],[45,5,45,7],[46,17,47,17],[46,18,47,18],[46,19,47,19],[50,17,51,17],[50,18,51,18],[50,19,51,19],[44,17,45,17],[44,18,45,18],[44,19,45,19],[48,0,48,5],[48,6,48,8],[48,17,49,17],[48,18,49,18],[48,19,49,19],[56,17,57,17],[56,18,57,18],[56,19,57,19],[57,0,57,16],[52,17,53,17],[52,18,53,18],[52,19,53,19],[53,0,53,7],[53,8,53,9],[53,10,53,14],[54,0,54,11],[54,12,54,13],[54,17,55,17],[54,18,55,18],[54,19,55,19],[71,0,71,4],[71,5,71,12],[59,0,59,16],[62,0,62,16],[64,0,64,3],[69,1,69,4],[70,0,70,1],[70,2,70,7]]}
[]
[null,null,null,null,null,null,"Commission Administrative"]
[null,null,null,null,null,null,"Paritaire",null,null,null,null,null,{"$f":"RECAPITULATIF!D7","v":"Locale"}]
[]
[]
[]
[]
[]
[null,null,null,null,null,null,null,null,null,null,null,null,"Mme, Mr :"]
[]
[null,null,null,null,null,null,null,null,null,null,null,null,"Grade :"]
[]
[null,null,null,null,null,null,null,null,null,null,null,null,"Service :"]
[]
[]
["Votre ou vos représentant-e-s du personnel"]
[]
[{"$f":"RECAPITULATIF!B5","v":"Madame Françoise LAUTROU et Madame PERROT Anne"}]
[]
["SUD Santé Sociaux",null,null,null,{"$f":"RECAPITULATIF!D21","v":35},"du:"]
[]
[{"$f":"RECAPITULATIF!B2","v":"Centre Hospitalier de Saint Malo"}]
[]
["siégeant auprès de la CAP",null,null,null,null,{"$f":"RECAPITULATIF!D7","v":"Locale"},null,null,null,"du :",{"$f":"RECAPITULATIF!D11","v":"2019-06-14"},null,null,"vous informe de votre :"]
[]
[]
[null,null,null,null,null,"AVANCEMENT D’ECHELON"]
[]
[]
[]
[]
[]
["Vous passez à l’échelon :",null,null,null,null,{"$f":"'GRILLE Cat B CN EXT'!B17","v":5},null,"Indice Majoré :",null,null,null,{"$f":"'GRILLE Cat B CN EXT'!D17","v":429}]
[]
[]
["Date d'effet :",null,null,null,null,"/",null,"/",{"$f":"RECAPITULATIF!D9","v":2019},null,null,null,null,null,null,null,null,{"$f":"'GRILLE Cat B CN EXT'!B2","v":"Catégorie B  Classe Normale    Extinction\nInfirmier-ère D.E., Manipulateur d'Electroradiologie Médicale, \nMasseur-Kinésithérapeute,\nErgothérapeute, Psychomotricien, Orthophoniste, Pédicure-Podologue"}]
[]
[]
[]
["Ce qui représente un gain mensuel de :",null,null,null,null,null,null,null,{"$f":"'GRILLE Cat B CN EXT'!D17-'GRILLE Cat B CN EXT'!D15","v":20},null,"points d'indice."]
[null,null,null,null,null,null,null,null,null,null,null,null,null,null,null,null,null,{"$f":"'GRILLE Cat B CN EXT'!B7","v":"Echelon"},{"$f":"'GRILLE Cat B CN EXT'!C7","v":"Durée\n(en mois)"},{"$f":"'GRILLE Cat B CN EXT'!D7","v":"Indice Majoré"}]
[]
["Pour information, la valeur brute du point d'indice",null,null,null,null,null,null,null,null,null,null,null,null,null,null,null,null,{"$f":"'GRILLE Cat B CN EXT'!B9","v":1},{"$f":"'GRILLE Cat B CN EXT'!C9","v":24},{"$f":"'GRILLE Cat B CN EXT'!D9","v":356}]
[]
[null,null,null,null,null,null,null,null,null,null,null,null,null,null,null,null,null,{"$f":"'GRILLE Cat B CN EXT'!B11","v":2},{"$f":"'GRILLE Cat B CN EXT'!C11","v":36},{"$f":"'GRILLE Cat B CN EXT'!D11","v":371}]
["est de",null,{"$f":"RECAPITULATIF!D13","v":4.6859999999999999},null,"au",{"$f":"RECAPITULATIF!D15","v":"2019-01-01"}]
[null,null,null,null,null,null,null,null,null,null,null,null,null,null,null,null,null,{"$f":"'GRILLE Cat B CN EXT'!B13","v":3},{"$f":"'GRILLE Cat B CN EXT'!C13","v":36},{"$f":"'GRILLE Cat B CN EXT'!D13","v":389}]
[]
["Soit un gain net mensuel de :",null,null,null,null,null,{"$f":"I40*C46*0.8315","v":77.928179999999998},null,null,null,null,null,null,null,null,null,null,{"$f":"'GRILLE Cat B CN EXT'!B15","v":4},{"$f":"'GRILLE Cat B CN EXT'!C15","v":48},{"$f":"'GRILLE Cat B CN EXT'!D15","v":409}]
[]
[null,null,null,null,null,null,null,null,null,null,null,null,null,null,null,null,null,{"$f":"'GRILLE Cat B CN EXT'!B17","v":5},{"$f":"'GRILLE Cat B CN EXT'!C17","v":48},{"$f":"'GRILLE Cat B CN EXT'!D17","v":429}]
[]
[null,null,null,null,null,null,null,null,null,null,null,null,null,null,null,null,null,{"$f":"'GRILLE Cat B CN EXT'!B19","v":6},{"$f":"'GRILLE Cat B CN EXT'!C19","v":48},{"$f":"'GRILLE Cat B CN EXT'!D19","v":462}]
["Vos représentant-e-s SUD Santé Sociaux ",null,null,null,null,null,null,null,{"$f":"RECAPITULATIF!D21","v":35},null,"sont à votre disposition"]
["pour tous renseignements complémentaires au poste :",null,null,null,null,null,null,null,null,null,null,null,{"$f":"RECAPITULATIF!D17","v":2886},null,null,null,null,{"$f":"'GRILLE Cat B CN EXT'!B21","v":7},{"$f":"'GRILLE Cat B CN EXT'!C21","v":48},{"$f":"'GRILLE Cat B CN EXT'!D21","v":495}]
[]
[null,null,null,null,null,null,null,null,null,null,null,null,null,null,null,null,null,{"$f":"'GRILLE Cat B CN EXT'!B23","v":8},{"$f":"'GRILLE Cat B CN EXT'!C23","v":0},{"$f":"'GRILLE Cat B CN EXT'!D23","v":534}]
[]
[null,null,null,null,null,null,null,null,null,null,null,null,null,null,null,null,null,{"$f":"'GRILLE Cat B CN EXT'!B25","v":0},{"$f":"'GRILLE Cat B CN EXT'!C25","v":0},{"$f":"'GRILLE Cat B CN EXT'!D25","v":0}]
["Recevez toutes nos salutations."]
[null,null,null,null,null,null,null,null,null,null,null,null,null,null,null,null,null,{"$f":"'GRILLE Cat B CN EXT'!B27","v":0},{"$f":"'GRILLE Cat B CN EXT'!C27","v":0},{"$f":"'GRILLE Cat B CN EXT'!D27","v":0}]
[]
[{"$f":"RECAPITULATIF!B5","v":"Madame Françoise LAUTROU et Madame PERROT Anne"}]
[]
["SUD Santé Sociaux",null,null,null,{"$f":"RECAPITULATIF!D21","v":35}]
[]
[]
[]
[]
["Tél :",{"$f":"RECAPITULATIF!D19","v":299212886}]
["Mél :",null,{"$f":"RECAPITULATIF!C23","v":"sudsante@ch-stmalo.fr"}]
[{"$f":"RECAPITULATIF!B25","v":"Site Départemental Sud"},null,null,null,null,{"$f":"RECAPITULATIF!D25","v":"http://www.sudsantesociaux35.org"}]

{"sheet":"Cat B CN EXT Echelon 6","index":43,"n_rows":72,"n_cols":20,"rows_kept":72,"cut":false,"hidden":false,"merged":[[15,0,15,14],[1,6,1,16],[2,6,2,11],[2,12,2,16],[8,12,9,14],[12,12,12,14],[17,0,17,16],[19,0,19,3],[21,0,21,14],[23,0,23,4],[23,5,23,8],[23,10,23,12],[23,13,23,16],[35,0,35,2],[35,8,35,9],[35,17,39,19],[39,0,39,7],[39,8,39,9],[39,10,39,13],[26,5,27,17],[32,0,32,4],[32,5,32,6],[32,7,32,10],[32,11,32,12],[40,17,41,17],[40,18,41,18],[40,19,41,19],[42,0,42,12],[42,17,43,17],[42,18,43,18],[42,19,43,19],[45,2,45,3],[45,5,45,7],[46,17,47,17],[46,18,47,18],[46,19,47,19],[50,17,51,17],[50,18,51,18],[50,19,51,19],[44,17,45,17],[44,18,45,18],[44,19,45,19],[48,0,48,5],[48,6,48,8],[48,17,49,17],[48,18,49,18],[48,19,49,19],[56,17,57,17],[56,18,57,18],[56,19,57,19],[57,0,57,16],[52,17,53,17],[52,18,53,18],[52,19,53,19],[53,0,53,7],[53,8,53,9],[53,10,53,14],[54,0,54,11],[54,12,54,13],[54,17,55,17],[54,18,55,18],[54,19,55,19],[71,0,71,4],[71,5,71,12],[59,0,59,16],[62,0,62,16],[64,0,64,3],[69,1,69,4],[70,0,70,1],[70,2,70,7]]}
[]
[null,null,null,null,null,null,"Commission Administrative"]
[null,null,null,null,null,null,"Paritaire",null,null,null,null,null,{"$f":"RECAPITULATIF!D7","v":"Locale"}]
[]
[]
[]
[]
[]
[null,null,null,null,null,null,null,null,null,null,null,null,"Mme, Mr :"]
[]
[null,null,null,null,null,null,null,null,null,null,null,null,"Grade :"]
[]
[null,null,null,null,null,null,null,null,null,null,null,null,"Service :"]
[]
[]
["Votre ou vos représentant-e-s du personnel"]
[]
[{"$f":"RECAPITULATIF!B5","v":"Madame Françoise LAUTROU et Madame PERROT Anne"}]
[]
["SUD Santé Sociaux",null,null,null,{"$f":"RECAPITULATIF!D21","v":35},"du:"]
[]
[{"$f":"RECAPITULATIF!B2","v":"Centre Hospitalier de Saint Malo"}]
[]
["siégeant auprès de la CAP",null,null,null,null,{"$f":"RECAPITULATIF!D7","v":"Locale"},null,null,null,"du :",{"$f":"RECAPITULATIF!D11","v":"2019-06-14"},null,null,"vous informe de votre :"]
[]
[]
[null,null,null,null,null,"AVANCEMENT D’ECHELON"]
[]
[]
[]
[]
[]
["Vous passez à l’échelon :",null,null,null,null,{"$f":"'GRILLE Cat B CN EXT'!B19","v":6},null,"Indice Majoré :",null,null,null,{"$f":"'GRILLE Cat B CN EXT'!D19","v":462}]
[]
[]
["Date d'effet :",null,null,null,null,"/",null,"/",{"$f":"RECAPITULATIF!D9","v":2019},null,null,null,null,null,null,null,null,{"$f":"'GRILLE Cat B CN EXT'!B2","v":"Catégorie B  Classe Normale    Extinction\nInfirmier-ère D.E., Manipulateur d'Electroradiologie Médicale, \nMasseur-Kinésithérapeute,\nErgothérapeute, Psychomotricien, Orthophoniste, Pédicure-Podologue"}]
[]
[]
[]
["Ce qui représente un gain mensuel de :",null,null,null,null,null,null,null,{"$f":"'GRILLE Cat B CN EXT'!D19-'GRILLE Cat B CN EXT'!D17","v":33},null,"points d'indice."]
[null,null,null,null,null,null,null,null,null,null,null,null,null,null,null,null,null,{"$f":"'GRILLE Cat B CN EXT'!B7","v":"Echelon"},{"$f":"'GRILLE Cat B CN EXT'!C7","v":"Durée\n(en mois)"},{"$f":"'GRILLE Cat B CN EXT'!D7","v":"Indice Majoré"}]
[]
["Pour information, la valeur brute du point d'indice",null,null,null,null,null,null,null,null,null,null,null,null,null,null,null,null,{"$f":"'GRILLE Cat B CN EXT'!B9","v":1},{"$f":"'GRILLE Cat B CN EXT'!C9","v":24},{"$f":"'GRILLE Cat B CN EXT'!D9","v":356}]
[]
[null,null,null,null,null,null,null,null,null,null,null,null,null,null,null,null,null,{"$f":"'GRILLE Cat B CN EXT'!B11","v":2},{"$f":"'GRILLE Cat B CN EXT'!C11","v":36},{"$f":"'GRILLE Cat B CN EXT'!D11","v":371}]
["est de",null,{"$f":"RECAPITULATIF!D13","v":4.6859999999999999},null,"au",{"$f":"RECAPITULATIF!D15","v":"2019-01-01"}]
[null,null,null,null,null,null,null,null,null,null,null,null,null,null,null,null,null,{"$f":"'GRILLE Cat B CN EXT'!B13","v":3},{"$f":"'GRILLE Cat B CN EXT'!C13","v":36},{"$f":"'GRILLE Cat B CN EXT'!D13","v":389}]
[]
["Soit un gain net mensuel de :",null,null,null,null,null,{"$f":"I40*C46*0.8315","v":128.58149700000001},null,null,null,null,null,null,null,null,null,null,{"$f":"'GRILLE Cat B CN EXT'!B15","v":4},{"$f":"'GRILLE Cat B CN EXT'!C15","v":48},{"$f":"'GRILLE Cat B CN EXT'!D15","v":409}]
[]
[null,null,null,null,null,null,null,null,null,null,null,null,null,null,null,null,null,{"$f":"'GRILLE Cat B CN EXT'!B17","v":5},{"$f":"'GRILLE Cat B CN EXT'!C17","v":48},{"$f":"'GRILLE Cat B CN EXT'!D17","v":429}]
[]
[null,null,null,null,null,null,null,null,null,null,null,null,null,null,null,null,null,{"$f":"'GRILLE Cat B CN EXT'!B19","v":6},{"$f":"'GRILLE Cat B CN EXT'!C19","v":48},{"$f":"'GRILLE Cat B CN EXT'!D19","v":462}]
["Vos représentant-e-s SUD Santé Sociaux ",null,null,null,null,null,null,null,{"$f":"RECAPITULATIF!D21","v":35},null,"sont à votre disposition"]
["pour tous renseignements complémentaires au poste :",null,null,null,null,null,null,null,null,null,null,null,{"$f":"RECAPITULATIF!D17","v":2886},null,null,null,null,{"$f":"'GRILLE Cat B CN EXT'!B21","v":7},{"$f":"'GRILLE Cat B CN EXT'!C21","v":48},{"$f":"'GRILLE Cat B CN EXT'!D21","v":495}]
[]
[null,null,null,null,null,null,null,null,null,null,null,null,null,null,null,null,null,{"$f":"'GRILLE Cat B CN EXT'!B23","v":8},{"$f":"'GRILLE Cat B CN EXT'!C23","v":0},{"$f":"'GRILLE Cat B CN EXT'!D23","v":534}]
[]
[null,null,null,null,null,null,null,null,null,null,null,null,null,null,null,null,null,{"$f":"'GRILLE Cat B CN EXT'!B25","v":0},{"$f":"'GRILLE Cat B CN EXT'!C25","v":0},{"$f":"'GRILLE Cat B CN EXT'!D25","v":0}]
["Recevez toutes nos salutations."]
[null,null,null,null,null,null,null,null,null,null,null,null,null,null,null,null,null,{"$f":"'GRILLE Cat B CN EXT'!B27","v":0},{"$f":"'GRILLE Cat B CN EXT'!C27","v":0},{"$f":"'GRILLE Cat B CN EXT'!D27","v":0}]
[]
[{"$f":"RECAPITULATIF!B5","v":"Madame Françoise LAUTROU et Madame PERROT Anne"}]
[]
["SUD Santé Sociaux",null,null,null,{"$f":"RECAPITULATIF!D21","v":35}]
[]
[]
[]
[]
["Tél :",{"$f":"RECAPITULATIF!D19","v":299212886}]
["Mél :",null,{"$f":"RECAPITULATIF!C23","v":"sudsante@ch-stmalo.fr"}]
[{"$f":"RECAPITULATIF!B25","v":"Site Départemental Sud"},null,null,null,null,{"$f":"RECAPITULATIF!D25","v":"http://www.sudsantesociaux35.org"}]

{"sheet":"Cat B CN EXT Echelon 7","index":44,"n_rows":72,"n_cols":20,"rows_kept":72,"cut":false,"hidden":false,"merged":[[15,0,15,14],[1,6,1,16],[2,6,2,11],[2,12,2,16],[8,12,9,14],[12,12,12,14],[17,0,17,16],[19,0,19,3],[21,0,21,14],[23,0,23,4],[23,5,23,8],[23,10,23,12],[23,13,23,16],[35,0,35,2],[35,8,35,9],[35,17,39,19],[39,0,39,7],[39,8,39,9],[39,10,39,13],[26,5,27,17],[32,0,32,4],[32,5,32,6],[32,7,32,10],[32,11,32,12],[40,17,41,17],[40,18,41,18],[40,19,41,19],[42,0,42,12],[42,17,43,17],[42,18,43,18],[42,19,43,19],[45,2,45,3],[45,5,45,7],[46,17,47,17],[46,18,47,18],[46,19,47,19],[50,17,51,17],[50,18,51,18],[50,19,51,19],[44,17,45,17],[44,18,45,18],[44,19,45,19],[48,0,48,5],[48,6,48,8],[48,17,49,17],[48,18,49,18],[48,19,49,19],[56,17,57,17],[56,18,57,18],[56,19,57,19],[57,0,57,16],[52,17,53,17],[52,18,53,18],[52,19,53,19],[53,0,53,7],[53,8,53,9],[53,10,53,14],[54,0,54,11],[54,12,54,13],[54,17,55,17],[54,18,55,18],[54,19,55,19],[71,0,71,4],[71,5,71,12],[59,0,59,16],[62,0,62,16],[64,0,64,3],[69,1,69,4],[70,0,70,1],[70,2,70,7]]}
[]
[null,null,null,null,null,null,"Commission Administrative"]
[null,null,null,null,null,null,"Paritaire",null,null,null,null,null,{"$f":"RECAPITULATIF!D7","v":"Locale"}]
[]
[]
[]
[]
[]
[null,null,null,null,null,null,null,null,null,null,null,null,"Mme, Mr :"]
[]
[null,null,null,null,null,null,null,null,null,null,null,null,"Grade :"]
[]
[null,null,null,null,null,null,null,null,null,null,null,null,"Service :"]
[]
[]
["Votre ou vos représentant-e-s du personnel"]
[]
[{"$f":"RECAPITULATIF!B5","v":"Madame Françoise LAUTROU et Madame PERROT Anne"}]
[]
["SUD Santé Sociaux",null,null,null,{"$f":"RECAPITULATIF!D21","v":35},"du:"]
[]
[{"$f":"RECAPITULATIF!B2","v":"Centre Hospitalier de Saint Malo"}]
[]
["siégeant auprès de la CAP",null,null,null,null,{"$f":"RECAPITULATIF!D7","v":"Locale"},null,null,null,"du :",{"$f":"RECAPITULATIF!D11","v":"2019-06-14"},null,null,"vous informe de votre :"]
[]
[]
[null,null,null,null,null,"AVANCEMENT D’ECHELON"]
[]
[]
[]
[]
[]
["Vous passez à l’échelon :",null,null,null,null,{"$f":"'GRILLE Cat B CN EXT'!B21","v":7},null,"Indice Majoré :",null,null,null,{"$f":"'GRILLE Cat B CN EXT'!D21","v":495}]
[]
[]
["Date d'effet :",null,null,null,null,"/",null,"/",{"$f":"RECAPITULATIF!D9","v":2019},null,null,null,null,null,null,null,null,{"$f":"'GRILLE Cat B CN EXT'!B2","v":"Catégorie B  Classe Normale    Extinction\nInfirmier-ère D.E., Manipulateur d'Electroradiologie Médicale, \nMasseur-Kinésithérapeute,\nErgothérapeute, Psychomotricien, Orthophoniste, Pédicure-Podologue"}]
[]
[]
[]
["Ce qui représente un gain mensuel de :",null,null,null,null,null,null,null,{"$f":"'GRILLE Cat B CN EXT'!D21-'GRILLE Cat B CN EXT'!D19","v":33},null,"points d'indice."]
[null,null,null,null,null,null,null,null,null,null,null,null,null,null,null,null,null,{"$f":"'GRILLE Cat B CN EXT'!B7","v":"Echelon"},{"$f":"'GRILLE Cat B CN EXT'!C7","v":"Durée\n(en mois)"},{"$f":"'GRILLE Cat B CN EXT'!D7","v":"Indice Majoré"}]
[]
["Pour information, la valeur brute du point d'indice",null,null,null,null,null,null,null,null,null,null,null,null,null,null,null,null,{"$f":"'GRILLE Cat B CN EXT'!B9","v":1},{"$f":"'GRILLE Cat B CN EXT'!C9","v":24},{"$f":"'GRILLE Cat B CN EXT'!D9","v":356}]
[]
[null,null,null,null,null,null,null,null,null,null,null,null,null,null,null,null,null,{"$f":"'GRILLE Cat B CN EXT'!B11","v":2},{"$f":"'GRILLE Cat B CN EXT'!C11","v":36},{"$f":"'GRILLE Cat B CN EXT'!D11","v":371}]
["est de",null,{"$f":"RECAPITULATIF!D13","v":4.6859999999999999},null,"au",{"$f":"RECAPITULATIF!D15","v":"2019-01-01"}]
[null,null,null,null,null,null,null,null,null,null,null,null,null,null,null,null,null,{"$f":"'GRILLE Cat B CN EXT'!B13","v":3},{"$f":"'GRILLE Cat B CN EXT'!C13","v":36},{"$f":"'GRILLE Cat B CN EXT'!D13","v":389}]
[]
["Soit un gain net mensuel de :",null,null,null,null,null,{"$f":"I40*C46*0.8315","v":128.58149700000001},null,null,null,null,null,null,null,null,null,null,{"$f":"'GRILLE Cat B CN EXT'!B15","v":4},{"$f":"'GRILLE Cat B CN EXT'!C15","v":48},{"$f":"'GRILLE Cat B CN EXT'!D15","v":409}]
[]
[null,null,null,null,null,null,null,null,null,null,null,null,null,null,null,null,null,{"$f":"'GRILLE Cat B CN EXT'!B17","v":5},{"$f":"'GRILLE Cat B CN EXT'!C17","v":48},{"$f":"'GRILLE Cat B CN EXT'!D17","v":429}]
[]
[null,null,null,null,null,null,null,null,null,null,null,null,null,null,null,null,null,{"$f":"'GRILLE Cat B CN EXT'!B19","v":6},{"$f":"'GRILLE Cat B CN EXT'!C19","v":48},{"$f":"'GRILLE Cat B CN EXT'!D19","v":462}]
["Vos représentant-e-s SUD Santé Sociaux ",null,null,null,null,null,null,null,{"$f":"RECAPITULATIF!D21","v":35},null,"sont à votre disposition"]
["pour tous renseignements complémentaires au poste :",null,null,null,null,null,null,null,null,null,null,null,{"$f":"RECAPITULATIF!D17","v":2886},null,null,null,null,{"$f":"'GRILLE Cat B CN EXT'!B21","v":7},{"$f":"'GRILLE Cat B CN EXT'!C21","v":48},{"$f":"'GRILLE Cat B CN EXT'!D21","v":495}]
[]
[null,null,null,null,null,null,null,null,null,null,null,null,null,null,null,null,null,{"$f":"'GRILLE Cat B CN EXT'!B23","v":8},{"$f":"'GRILLE Cat B CN EXT'!C23","v":0},{"$f":"'GRILLE Cat B CN EXT'!D23","v":534}]
[]
[null,null,null,null,null,null,null,null,null,null,null,null,null,null,null,null,null,{"$f":"'GRILLE Cat B CN EXT'!B25","v":0},{"$f":"'GRILLE Cat B CN EXT'!C25","v":0},{"$f":"'GRILLE Cat B CN EXT'!D25","v":0}]
["Recevez toutes nos salutations."]
[null,null,null,null,null,null,null,null,null,null,null,null,null,null,null,null,null,{"$f":"'GRILLE Cat B CN EXT'!B27","v":0},{"$f":"'GRILLE Cat B CN EXT'!C27","v":0},{"$f":"'GRILLE Cat B CN EXT'!D27","v":0}]
[]
[{"$f":"RECAPITULATIF!B5","v":"Madame Françoise LAUTROU et Madame PERROT Anne"}]
[]
["SUD Santé Sociaux",null,null,null,{"$f":"RECAPITULATIF!D21","v":35}]
[]
[]
[]
[]
["Tél :",{"$f":"RECAPITULATIF!D19","v":299212886}]
["Mél :",null,{"$f":"RECAPITULATIF!C23","v":"sudsante@ch-stmalo.fr"}]
[{"$f":"RECAPITULATIF!B25","v":"Site Départemental Sud"},null,null,null,null,{"$f":"RECAPITULATIF!D25","v":"http://www.sudsantesociaux35.org"}]

{"sheet":"Cat B CN EXT Echelon 8","index":45,"n_rows":72,"n_cols":20,"rows_kept":72,"cut":false,"hidden":false,"merged":[[15,0,15,14],[1,6,1,16],[2,6,2,11],[2,12,2,16],[8,12,9,14],[12,12,12,14],[17,0,17,16],[19,0,19,3],[21,0,21,14],[23,0,23,4],[23,5,23,8],[23,10,23,12],[23,13,23,16],[35,0,35,2],[35,8,35,9],[35,17,39,19],[39,0,39,7],[39,8,39,9],[39,10,39,13],[26,5,27,17],[32,0,32,4],[32,5,32,6],[32,7,32,10],[32,11,32,12],[40,17,41,17],[40,18,41,18],[40,19,41,19],[42,0,42,12],[42,17,43,17],[42,18,43,18],[42,19,43,19],[45,2,45,3],[45,5,45,7],[46,17,47,17],[46,18,47,18],[46,19,47,19],[50,17,51,17],[50,18,51,18],[50,19,51,19],[44,17,45,17],[44,18,45,18],[44,19,45,19],[48,0,48,5],[48,6,48,8],[48,17,49,17],[48,18,49,18],[48,19,49,19],[56,17,57,17],[56,18,57,18],[56,19,57,19],[57,0,57,16],[52,17,53,17],[52,18,53,18],[52,19,53,19],[53,0,53,7],[53,8,53,9],[53,10,53,14],[54,0,54,11],[54,12,54,13],[54,17,55,17],[54,18,55,18],[54,19,55,19],[71,0,71,4],[71,5,71,12],[59,0,59,16],[62,0,62,16],[64,0,64,3],[69,1,69,4],[70,0,70,1],[70,2,70,7]]}
[]
[null,null,null,null,null,null,"Commission Administrative"]
[null,null,null,null,null,null,"Paritaire",null,null,null,null,null,{"$f":"RECAPITULATIF!D7","v":"Locale"}]
[]
[]
[]
[]
[]
[null,null,null,null,null,null,null,null,null,null,null,null,"Mme, Mr :"]
[]
[null,null,null,null,null,null,null,null,null,null,null,null,"Grade :"]
[]
[null,null,null,null,null,null,null,null,null,null,null,null,"Service :"]
[]
[]
["Votre ou vos représentant-e-s du personnel"]
[]
[{"$f":"RECAPITULATIF!B5","v":"Madame Françoise LAUTROU et Madame PERROT Anne"}]
[]
["SUD Santé Sociaux",null,null,null,{"$f":"RECAPITULATIF!D21","v":35},"du:"]
[]
[{"$f":"RECAPITULATIF!B2","v":"Centre Hospitalier de Saint Malo"}]
[]
["siégeant auprès de la CAP",null,null,null,null,{"$f":"RECAPITULATIF!D7","v":"Locale"},null,null,null,"du :",{"$f":"RECAPITULATIF!D11","v":"2019-06-14"},null,null,"vous informe de votre :"]
[]
[]
[null,null,null,null,null,"AVANCEMENT D’ECHELON"]
[]
[]
[]
[]
[]
["Vous passez à l’échelon :",null,null,null,null,{"$f":"'GRILLE Cat B CN EXT'!B23","v":8},null,"Indice Majoré :",null,null,null,{"$f":"'GRILLE Cat B CN EXT'!D23","v":534}]
[]
[]
["Date d'effet :",null,null,null,null,"/",null,"/",{"$f":"RECAPITULATIF!D9","v":2019},null,null,null,null,null,null,null,null,{"$f":"'GRILLE Cat B CN EXT'!B2","v":"Catégorie B  Classe Normale    Extinction\nInfirmier-ère D.E., Manipulateur d'Electroradiologie Médicale, \nMasseur-Kinésithérapeute,\nErgothérapeute, Psychomotricien, Orthophoniste, Pédicure-Podologue"}]
[]
[]
[]
["Ce qui représente un gain mensuel de :",null,null,null,null,null,null,null,{"$f":"'GRILLE Cat B CN EXT'!D23-'GRILLE Cat B CN EXT'!D21","v":39},null,"points d'indice."]
[null,null,null,null,null,null,null,null,null,null,null,null,null,null,null,null,null,{"$f":"'GRILLE Cat B CN EXT'!B7","v":"Echelon"},{"$f":"'GRILLE Cat B CN EXT'!C7","v":"Durée\n(en mois)"},{"$f":"'GRILLE Cat B CN EXT'!D7","v":"Indice Majoré"}]
[]
["Pour information, la valeur brute du point d'indice",null,null,null,null,null,null,null,null,null,null,null,null,null,null,null,null,{"$f":"'GRILLE Cat B CN EXT'!B9","v":1},{"$f":"'GRILLE Cat B CN EXT'!C9","v":24},{"$f":"'GRILLE Cat B CN EXT'!D9","v":356}]
[]
[null,null,null,null,null,null,null,null,null,null,null,null,null,null,null,null,null,{"$f":"'GRILLE Cat B CN EXT'!B11","v":2},{"$f":"'GRILLE Cat B CN EXT'!C11","v":36},{"$f":"'GRILLE Cat B CN EXT'!D11","v":371}]
["est de",null,{"$f":"RECAPITULATIF!D13","v":4.6859999999999999},null,"au",{"$f":"RECAPITULATIF!D15","v":"2019-01-01"}]
[null,null,null,null,null,null,null,null,null,null,null,null,null,null,null,null,null,{"$f":"'GRILLE Cat B CN EXT'!B13","v":3},{"$f":"'GRILLE Cat B CN EXT'!C13","v":36},{"$f":"'GRILLE Cat B CN EXT'!D13","v":389}]
[]
["Soit un gain net mensuel de :",null,null,null,null,null,{"$f":"I40*C46*0.8315","v":151.95995099999999},null,null,null,null,null,null,null,null,null,null,{"$f":"'GRILLE Cat B CN EXT'!B15","v":4},{"$f":"'GRILLE Cat B CN EXT'!C15","v":48},{"$f":"'GRILLE Cat B CN EXT'!D15","v":409}]
[]
[null,null,null,null,null,null,null,null,null,null,null,null,null,null,null,null,null,{"$f":"'GRILLE Cat B CN EXT'!B17","v":5},{"$f":"'GRILLE Cat B CN EXT'!C17","v":48},{"$f":"'GRILLE Cat B CN EXT'!D17","v":429}]
[]
[null,null,null,null,null,null,null,null,null,null,null,null,null,null,null,null,null,{"$f":"'GRILLE Cat B CN EXT'!B19","v":6},{"$f":"'GRILLE Cat B CN EXT'!C19","v":48},{"$f":"'GRILLE Cat B CN EXT'!D19","v":462}]
["Vos représentant-e-s SUD Santé Sociaux ",null,null,null,null,null,null,null,{"$f":"RECAPITULATIF!D21","v":35},null,"sont à votre disposition"]
["pour tous renseignements complémentaires au poste :",null,null,null,null,null,null,null,null,null,null,null,{"$f":"RECAPITULATIF!D17","v":2886},null,null,null,null,{"$f":"'GRILLE Cat B CN EXT'!B21","v":7},{"$f":"'GRILLE Cat B CN EXT'!C21","v":48},{"$f":"'GRILLE Cat B CN EXT'!D21","v":495}]
[]
[null,null,null,null,null,null,null,null,null,null,null,null,null,null,null,null,null,{"$f":"'GRILLE Cat B CN EXT'!B23","v":8},{"$f":"'GRILLE Cat B CN EXT'!C23","v":0},{"$f":"'GRILLE Cat B CN EXT'!D23","v":534}]
[]
[null,null,null,null,null,null,null,null,null,null,null,null,null,null,null,null,null,{"$f":"'GRILLE Cat B CN EXT'!B25","v":0},{"$f":"'GRILLE Cat B CN EXT'!C25","v":0},{"$f":"'GRILLE Cat B CN EXT'!D25","v":0}]
["Recevez toutes nos salutations."]
[null,null,null,null,null,null,null,null,null,null,null,null,null,null,null,null,null,{"$f":"'GRILLE Cat B CN EXT'!B27","v":0},{"$f":"'GRILLE Cat B CN EXT'!C27","v":0},{"$f":"'GRILLE Cat B CN EXT'!D27","v":0}]
[]
[{"$f":"RECAPITULATIF!B5","v":"Madame Françoise LAUTROU et Madame PERROT Anne"}]
[]
["SUD Santé Sociaux",null,null,null,{"$f":"RECAPITULATIF!D21","v":35}]
[]
[]
[]
[]
["Tél :",{"$f":"RECAPITULATIF!D19","v":299212886}]
["Mél :",null,{"$f":"RECAPITULATIF!C23","v":"sudsante@ch-stmalo.fr"}]
[{"$f":"RECAPITULATIF!B25","v":"Site Départemental Sud"},null,null,null,null,{"$f":"RECAPITULATIF!D25","v":"http://www.sudsantesociaux35.org"}]

{"sheet":"GRILLE Cat B CS EXT","index":46,"n_rows":23,"n_cols":4,"rows_kept":23,"cut":false,"hidden":false,"merged":[[1,1,5,3],[6,1,7,1],[6,2,7,2],[6,3,7,3],[8,1,9,1],[8,2,9,2],[8,3,9,3],[10,1,11,1],[10,2,11,2],[10,3,11,3],[12,1,13,1],[12,2,13,2],[12,3,13,3],[18,1,19,1],[18,2,19,2],[18,3,19,3],[14,1,15,1],[14,2,15,2],[14,3,15,3],[16,1,17,1],[16,2,17,2],[16,3,17,3],[20,1,21,1],[20,2,21,2],[20,3,21,3],[22,1,23,1],[22,2,23,2],[22,3,23,3]]}
[]
[null,"Catégorie B Classe Supérieure  Extinction\nInfirmier-ère D.E., Manipulateur d'Electroradiologie Médicale, \nMasseur-Kinésithérapeute,\nErgothérapeute, Psychomotricien, Orthophoniste, Pédicure-Podologue"]
[]
[]
[]
[]
[null,"Echelon","Durée\n(en mois)","Indice Majoré"]
[]
[null,1,12,445]
[]
[null,2,24,461]
[]
[null,3,36,485]
[]
[null,4,36,510]
[]
[null,5,48,534]
[]
[null,6,36,555]
[]
[null,7,48,569]
[]
[null,8,null,587]

{"sheet":"IMP GRILLE Cat B CS EXT","index":47,"n_rows":6,"n_cols":2,"rows_kept":6,"cut":false,"hidden":false,"merged":[[1,1,1,9],[3,1,3,9],[5,1,5,9]]}
[]
[null,"1) Imprimez autant de feuilles que d'agents concernés."]
[]
[null,"2) Pliez en 3 au niveau du repère, deux petits traits noirs."]
[]
[null,"3) Inserrez ce courrier dans une enveloppe 110 X 220 à fenêtre."]

{"sheet":"Cat B CS EXT Echelon 2","index":48,"n_rows":72,"n_cols":20,"rows_kept":72,"cut":false,"hidden":false,"merged":[[15,0,15,14],[1,6,1,16],[2,6,2,11],[2,12,2,16],[8,12,9,14],[12,12,12,14],[17,0,17,16],[19,0,19,3],[21,0,21,14],[23,0,23,4],[23,5,23,8],[23,10,23,12],[23,13,23,16],[35,0,35,2],[35,8,35,9],[35,17,39,19],[39,0,39,7],[39,8,39,9],[39,10,39,13],[26,5,27,17],[32,0,32,4],[32,5,32,6],[32,7,32,10],[32,11,32,12],[40,17,41,17],[40,18,41,18],[40,19,41,19],[42,0,42,12],[42,17,43,17],[42,18,43,18],[42,19,43,19],[45,2,45,3],[45,5,45,7],[46,17,47,17],[46,18,47,18],[46,19,47,19],[50,17,51,17],[50,18,51,18],[50,19,51,19],[44,17,45,17],[44,18,45,18],[44,19,45,19],[48,0,48,5],[48,6,48,8],[48,17,49,17],[48,18,49,18],[48,19,49,19],[52,17,53,17],[52,18,53,18],[52,19,53,19],[53,0,53,7],[53,8,53,9],[53,10,53,14],[71,0,71,4],[71,5,71,12],[59,0,59,16],[54,0,54,11],[54,12,54,13],[57,0,57,16],[62,0,62,16],[64,0,64,3],[69,1,69,4],[70,0,70,1],[70,2,70,7],[54,17,55,17],[54,18,55,18],[54,19,55,19],[56,17,57,17],[56,18,57,18],[56,19,57,19]]}
[]
[null,null,null,null,null,null,"Commission Administrative"]
[null,null,null,null,null,null,"Paritaire",null,null,null,null,null,{"$f":"RECAPITULATIF!D7","v":"Locale"}]
[]
[]
[]
[]
[]
[null,null,null,null,null,null,null,null,null,null,null,null,"Mme, Mr :"]
[]
[null,null,null,null,null,null,null,null,null,null,null,null,"Grade :"]
[]
[null,null,null,null,null,null,null,null,null,null,null,null,"Service :"]
[]
[]
["Votre ou vos représentant-e-s du personnel"]
[]
[{"$f":"RECAPITULATIF!B5","v":"Madame Françoise LAUTROU et Madame PERROT Anne"}]
[]
["SUD Santé Sociaux",null,null,null,{"$f":"RECAPITULATIF!D21","v":35},"du:"]
[]
[{"$f":"RECAPITULATIF!B2","v":"Centre Hospitalier de Saint Malo"}]
[]
["siégeant auprès de la CAP",null,null,null,null,{"$f":"RECAPITULATIF!D7","v":"Locale"},null,null,null,"du :",{"$f":"RECAPITULATIF!D11","v":"2019-06-14"},null,null,"vous informe de votre :"]
[]
[]
[null,null,null,null,null,"AVANCEMENT D’ECHELON"]
[]
[]
[]
[]
[]
["Vous passez à l’échelon :",null,null,null,null,{"$f":"'GRILLE Cat B CS EXT'!B11","v":2},null,"Indice Majoré :",null,null,null,{"$f":"'GRILLE Cat B CS EXT'!D11","v":461}]
[]
[]
["Date d'effet :",null,null,null,null,"/",null,"/",{"$f":"RECAPITULATIF!D9","v":2019},null,null,null,null,null,null,null,null,{"$f":"'GRILLE Cat B CS EXT'!B2","v":"Catégorie B Classe Supérieure  Extinction\nInfirmier-ère D.E., Manipulateur d'Electroradiologie Médicale, \nMasseur-Kinésithérapeute,\nErgothérapeute, Psychomotricien, Orthophoniste, Pédicure-Podologue"}]
[]
[]
[]
["Ce qui représente un gain mensuel de :",null,null,null,null,null,null,null,{"$f":"'GRILLE Cat B CS EXT'!D11-'GRILLE Cat B CS EXT'!D9","v":16},null,"points d'indice."]
[null,null,null,null,null,null,null,null,null,null,null,null,null,null,null,null,null,{"$f":"'GRILLE Cat B CS EXT'!B7","v":"Echelon"},{"$f":"'GRILLE Cat B CS EXT'!C7","v":"Durée\n(en mois)"},{"$f":"'GRILLE Cat B CS EXT'!D7","v":"Indice Majoré"}]
[]
["Pour information, la valeur brute du point d'indice",null,null,null,null,null,null,null,null,null,null,null,null,null,null,null,null,{"$f":"'GRILLE Cat B CS EXT'!B9","v":1},{"$f":"'GRILLE Cat B CS EXT'!C9","v":12},{"$f":"'GRILLE Cat B CS EXT'!D9","v":445}]
[]
[null,null,null,null,null,null,null,null,null,null,null,null,null,null,null,null,null,{"$f":"'GRILLE Cat B CS EXT'!B11","v":2},{"$f":"'GRILLE Cat B CS EXT'!C11","v":24},{"$f":"'GRILLE Cat B CS EXT'!D11","v":461}]
["est de",null,{"$f":"RECAPITULATIF!D13","v":4.6859999999999999},null,"au",{"$f":"RECAPITULATIF!D15","v":"2019-01-01"}]
[null,null,null,null,null,null,null,null,null,null,null,null,null,null,null,null,null,{"$f":"'GRILLE Cat B CS EXT'!B13","v":3},{"$f":"'GRILLE Cat B CS EXT'!C13","v":36},{"$f":"'GRILLE Cat B CS EXT'!D13","v":485}]
[]
["Soit un gain net mensuel de :",null,null,null,null,null,{"$f":"I40*C46*0.8315","v":62.342544000000004},null,null,null,null,null,null,null,null,null,null,{"$f":"'GRILLE Cat B CS EXT'!B15","v":4},{"$f":"'GRILLE Cat B CS EXT'!C15","v":36},{"$f":"'GRILLE Cat B CS EXT'!D15","v":510}]
[]
[null,null,null,null,null,null,null,null,null,null,null,null,null,null,null,null,null,{"$f":"'GRILLE Cat B CS EXT'!B17","v":5},{"$f":"'GRILLE Cat B CS EXT'!C17","v":48},{"$f":"'GRILLE Cat B CS EXT'!D17","v":534}]
[]
[null,null,null,null,null,null,null,null,null,null,null,null,null,null,null,null,null,{"$f":"'GRILLE Cat B CS EXT'!B19","v":6},{"$f":"'GRILLE Cat B CS EXT'!C19","v":36},{"$f":"'GRILLE Cat B CS EXT'!D19","v":555}]
["Vos représentant-e-s SUD Santé Sociaux ",null,null,null,null,null,null,null,{"$f":"RECAPITULATIF!D21","v":35},null,"sont à votre disposition"]
["pour tous renseignements complémentaires au poste :",null,null,null,null,null,null,null,null,null,null,null,{"$f":"RECAPITULATIF!D17","v":2886},null,null,null,null,{"$f":"'GRILLE Cat B CS EXT'!B21","v":7},{"$f":"'GRILLE Cat B CS EXT'!C21","v":48},{"$f":"'GRILLE Cat B CS EXT'!D21","v":569}]
[]
[null,null,null,null,null,null,null,null,null,null,null,null,null,null,null,null,null,{"$f":"'GRILLE Cat B CS EXT'!B23","v":8},{"$f":"'GRILLE Cat B CS EXT'!C23","v":0},{"$f":"'GRILLE Cat B CS EXT'!D23","v":587}]
[]
[]
["Recevez toutes nos salutations."]
[]
[]
[{"$f":"RECAPITULATIF!B5","v":"Madame Françoise LAUTROU et Madame PERROT Anne"}]
[]
["SUD Santé Sociaux",null,null,null,{"$f":"RECAPITULATIF!D21","v":35}]
[]
[]
[]
[]
["Tél :",{"$f":"RECAPITULATIF!D19","v":299212886}]
["Mél :",null,{"$f":"RECAPITULATIF!C23","v":"sudsante@ch-stmalo.fr"}]
[{"$f":"RECAPITULATIF!B25","v":"Site Départemental Sud"},null,null,null,null,{"$f":"RECAPITULATIF!D25","v":"http://www.sudsantesociaux35.org"}]

{"sheet":"Cat B CS EXT Echelon 3","index":49,"n_rows":72,"n_cols":20,"rows_kept":72,"cut":false,"hidden":false,"merged":[[15,0,15,14],[1,6,1,16],[2,6,2,11],[2,12,2,16],[8,12,9,14],[12,12,12,14],[17,0,17,16],[19,0,19,3],[21,0,21,14],[23,0,23,4],[23,5,23,8],[23,10,23,12],[23,13,23,16],[35,0,35,2],[35,8,35,9],[35,17,39,19],[39,0,39,7],[39,8,39,9],[39,10,39,13],[26,5,27,17],[32,0,32,4],[32,5,32,6],[32,7,32,10],[32,11,32,12],[40,17,41,17],[40,18,41,18],[40,19,41,19],[42,0,42,12],[42,17,43,17],[42,18,43,18],[42,19,43,19],[45,2,45,3],[45,5,45,7],[46,17,47,17],[46,18,47,18],[46,19,47,19],[50,17,51,17],[50,18,51,18],[50,19,51,19],[44,17,45,17],[44,18,45,18],[44,19,45,19],[48,0,48,5],[48,6,48,8],[48,17,49,17],[48,18,49,18],[48,19,49,19],[52,17,53,17],[52,18,53,18],[52,19,53,19],[53,0,53,7],[53,8,53,9],[53,10,53,14],[71,0,71,4],[71,5,71,12],[59,0,59,16],[54,0,54,11],[54,12,54,13],[62,0,62,16],[64,0,64,3],[69,1,69,4],[70,0,70,1],[70,2,70,7],[54,17,55,17],[54,18,55,18],[54,19,55,19],[56,17,57,17],[56,18,57,18],[56,19,57,19]]}
[]
[null,null,null,null,null,null,"Commission Administrative"]
[null,null,null,null,null,null,"Paritaire",null,null,null,null,null,{"$f":"RECAPITULATIF!D7","v":"Locale"}]
[]
[]
[]
[]
[]
[null,null,null,null,null,null,null,null,null,null,null,null,"Mme, Mr :"]
[]
[null,null,null,null,null,null,null,null,null,null,null,null,"Grade :"]
[]
[null,null,null,null,null,null,null,null,null,null,null,null,"Service :"]
[]
[]
["Votre ou vos représentant-e-s du personnel"]
[]
[{"$f":"RECAPITULATIF!B5","v":"Madame Françoise LAUTROU et Madame PERROT Anne"}]
[]
["SUD Santé Sociaux",null,null,null,{"$f":"RECAPITULATIF!D21","v":35},"du:"]
[]
[{"$f":"RECAPITULATIF!B2","v":"Centre Hospitalier de Saint Malo"}]
[]
["siégeant auprès de la CAP",null,null,null,null,{"$f":"RECAPITULATIF!D7","v":"Locale"},null,null,null,"du :",{"$f":"RECAPITULATIF!D11","v":"2019-06-14"},null,null,"vous informe de votre :"]
[]
[]
[null,null,null,null,null,"AVANCEMENT D’ECHELON"]
[]
[]
[]
[]
[]
["Vous passez à l’échelon :",null,null,null,null,{"$f":"'GRILLE Cat B CS EXT'!B13","v":3},null,"Indice Majoré :",null,null,null,{"$f":"'GRILLE Cat B CS EXT'!D13","v":485}]
[]
[]
["Date d'effet :",null,null,null,null,"/",null,"/",{"$f":"RECAPITULATIF!D9","v":2019},null,null,null,null,null,null,null,null,{"$f":"'GRILLE Cat B CS EXT'!B2","v":"Catégorie B Classe Supérieure  Extinction\nInfirmier-ère D.E., Manipulateur d'Electroradiologie Médicale, \nMasseur-Kinésithérapeute,\nErgothérapeute, Psychomotricien, Orthophoniste, Pédicure-Podologue"}]
[]
[]
[]
["Ce qui représente un gain mensuel de :",null,null,null,null,null,null,null,{"$f":"'GRILLE Cat B CS EXT'!D13-'GRILLE Cat B CS EXT'!D11","v":24},null,"points d'indice."]
[null,null,null,null,null,null,null,null,null,null,null,null,null,null,null,null,null,{"$f":"'GRILLE Cat B CS EXT'!B7","v":"Echelon"},{"$f":"'GRILLE Cat B CS EXT'!C7","v":"Durée\n(en mois)"},{"$f":"'GRILLE Cat B CS EXT'!D7","v":"Indice Majoré"}]
[]
["Pour information, la valeur brute du point d'indice",null,null,null,null,null,null,null,null,null,null,null,null,null,null,null,null,{"$f":"'GRILLE Cat B CS EXT'!B9","v":1},{"$f":"'GRILLE Cat B CS EXT'!C9","v":12},{"$f":"'GRILLE Cat B CS EXT'!D9","v":445}]
[]
[null,null,null,null,null,null,null,null,null,null,null,null,null,null,null,null,null,{"$f":"'GRILLE Cat B CS EXT'!B11","v":2},{"$f":"'GRILLE Cat B CS EXT'!C11","v":24},{"$f":"'GRILLE Cat B CS EXT'!D11","v":461}]
["est de",null,{"$f":"RECAPITULATIF!D13","v":4.6859999999999999},null,"au",{"$f":"RECAPITULATIF!D15","v":"2019-01-01"}]
[null,null,null,null,null,null,null,null,null,null,null,null,null,null,null,null,null,{"$f":"'GRILLE Cat B CS EXT'!B13","v":3},{"$f":"'GRILLE Cat B CS EXT'!C13","v":36},{"$f":"'GRILLE Cat B CS EXT'!D13","v":485}]
[]
["Soit un gain net mensuel de :",null,null,null,null,null,{"$f":"I40*C46*0.8315","v":93.513816000000006},null,null,null,null,null,null,null,null,null,null,{"$f":"'GRILLE Cat B CS EXT'!B15","v":4},{"$f":"'GRILLE Cat B CS EXT'!C15","v":36},{"$f":"'GRILLE Cat B CS EXT'!D15","v":510}]
[]
[null,null,null,null,null,null,null,null,null,null,null,null,null,null,null,null,null,{"$f":"'GRILLE Cat B CS EXT'!B17","v":5},{"$f":"'GRILLE Cat B CS EXT'!C17","v":48},{"$f":"'GRILLE Cat B CS EXT'!D17","v":534}]
[]
[null,null,null,null,null,null,null,null,null,null,null,null,null,null,null,null,null,{"$f":"'GRILLE Cat B CS EXT'!B19","v":6},{"$f":"'GRILLE Cat B CS EXT'!C19","v":36},{"$f":"'GRILLE Cat B CS EXT'!D19","v":555}]
["Vos représentant-e-s SUD Santé Sociaux ",null,null,null,null,null,null,null,{"$f":"RECAPITULATIF!D21","v":35},null,"sont à votre disposition"]
["pour tous renseignements complémentaires au poste :",null,null,null,null,null,null,null,null,null,null,null,{"$f":"RECAPITULATIF!D17","v":2886},null,null,null,null,{"$f":"'GRILLE Cat B CS EXT'!B21","v":7},{"$f":"'GRILLE Cat B CS EXT'!C21","v":48},{"$f":"'GRILLE Cat B CS EXT'!D21","v":569}]
[]
[null,null,null,null,null,null,null,null,null,null,null,null,null,null,null,null,null,{"$f":"'GRILLE Cat B CS EXT'!B23","v":8},{"$f":"'GRILLE Cat B CS EXT'!C23","v":0},{"$f":"'GRILLE Cat B CS EXT'!D23","v":587}]
[]
[]
["Recevez toutes nos salutations."]
[]
[]
[{"$f":"RECAPITULATIF!B5","v":"Madame Françoise LAUTROU et Madame PERROT Anne"}]
[]
["SUD Santé Sociaux",null,null,null,{"$f":"RECAPITULATIF!D21","v":35}]
[]
[]
[]
[]
["Tél :",{"$f":"RECAPITULATIF!D19","v":299212886}]
["Mél :",null,{"$f":"RECAPITULATIF!C23","v":"sudsante@ch-stmalo.fr"}]
[{"$f":"RECAPITULATIF!B25","v":"Site Départemental Sud"},null,null,null,null,{"$f":"RECAPITULATIF!D25","v":"http://www.sudsantesociaux35.org"}]

{"sheet":"Cat B CS EXT Echelon 4","index":50,"n_rows":72,"n_cols":20,"rows_kept":72,"cut":false,"hidden":false,"merged":[[15,0,15,14],[1,6,1,16],[2,6,2,11],[2,12,2,16],[8,12,9,14],[12,12,12,14],[17,0,17,16],[19,0,19,3],[21,0,21,14],[23,0,23,4],[23,5,23,8],[23,10,23,12],[23,13,23,16],[35,0,35,2],[35,8,35,9],[35,17,39,19],[39,0,39,7],[39,8,39,9],[39,10,39,13],[26,5,27,17],[32,0,32,4],[32,5,32,6],[32,7,32,10],[32,11,32,12],[40,17,41,17],[40,18,41,18],[40,19,41,19],[42,0,42,12],[42,17,43,17],[42,18,43,18],[42,19,43,19],[45,2,45,3],[45,5,45,7],[46,17,47,17],[46,18,47,18],[46,19,47,19],[50,17,51,17],[50,18,51,18],[50,19,51,19],[44,17,45,17],[44,18,45,18],[44,19,45,19],[48,0,48,5],[48,6,48,8],[48,17,49,17],[48,18,49,18],[48,19,49,19],[52,17,53,17],[52,18,53,18],[52,19,53,19],[53,0,53,7],[53,8,53,9],[53,10,53,14],[71,0,71,4],[71,5,71,12],[59,0,59,16],[54,0,54,11],[54,12,54,13],[57,0,57,16],[62,0,62,16],[64,0,64,3],[69,1,69,4],[70,0,70,1],[70,2,70,7],[54,17,55,17],[54,18,55,18],[54,19,55,19],[56,17,57,17],[56,18,57,18],[56,19,57,19]]}
[]
[null,null,null,null,null,null,"Commission Administrative"]
[null,null,null,null,null,null,"Paritaire",null,null,null,null,null,{"$f":"RECAPITULATIF!D7","v":"Locale"}]
[]
[]
[]
[]
[]
[null,null,null,null,null,null,null,null,null,null,null,null,"Mme, Mr :"]
[]
[null,null,null,null,null,null,null,null,null,null,null,null,"Grade :"]
[]
[null,null,null,null,null,null,null,null,null,null,null,null,"Service :"]
[]
[]
["Votre ou vos représentant-e-s du personnel"]
[]
[{"$f":"RECAPITULATIF!B5","v":"Madame Françoise LAUTROU et Madame PERROT Anne"}]
[]
["SUD Santé Sociaux",null,null,null,{"$f":"RECAPITULATIF!D21","v":35},"du:"]
[]
[{"$f":"RECAPITULATIF!B2","v":"Centre Hospitalier de Saint Malo"}]
[]
["siégeant auprès de la CAP",null,null,null,null,{"$f":"RECAPITULATIF!D7","v":"Locale"},null,null,null,"du :",{"$f":"RECAPITULATIF!D11","v":"2019-06-14"},null,null,"vous informe de votre :"]
[]
[]
[null,null,null,null,null,"AVANCEMENT D’ECHELON"]
[]
[]
[]
[]
[]
["Vous passez à l’échelon :",null,null,null,null,{"$f":"'GRILLE Cat B CS EXT'!B15","v":4},null,"Indice Majoré :",null,null,null,{"$f":"'GRILLE Cat B CS EXT'!D15","v":510}]
[]
[]
["Date d'effet :",null,null,null,null,"/",null,"/",{"$f":"RECAPITULATIF!D9","v":2019},null,null,null,null,null,null,null,null,{"$f":"'GRILLE Cat B CS EXT'!B2","v":"Catégorie B Classe Supérieure  Extinction\nInfirmier-ère D.E., Manipulateur d'Electroradiologie Médicale, \nMasseur-Kinésithérapeute,\nErgothérapeute, Psychomotricien, Orthophoniste, Pédicure-Podologue"}]
[]
[]
[]
["Ce qui représente un gain mensuel de :",null,null,null,null,null,null,null,{"$f":"'GRILLE Cat B CS EXT'!D15-'GRILLE Cat B CS EXT'!D13","v":25},null,"points d'indice."]
[null,null,null,null,null,null,null,null,null,null,null,null,null,null,null,null,null,{"$f":"'GRILLE Cat B CS EXT'!B7","v":"Echelon"},{"$f":"'GRILLE Cat B CS EXT'!C7","v":"Durée\n(en mois)"},{"$f":"'GRILLE Cat B CS EXT'!D7","v":"Indice Majoré"}]
[]
["Pour information, la valeur brute du point d'indice",null,null,null,null,null,null,null,null,null,null,null,null,null,null,null,null,{"$f":"'GRILLE Cat B CS EXT'!B9","v":1},{"$f":"'GRILLE Cat B CS EXT'!C9","v":12},{"$f":"'GRILLE Cat B CS EXT'!D9","v":445}]
[]
[null,null,null,null,null,null,null,null,null,null,null,null,null,null,null,null,null,{"$f":"'GRILLE Cat B CS EXT'!B11","v":2},{"$f":"'GRILLE Cat B CS EXT'!C11","v":24},{"$f":"'GRILLE Cat B CS EXT'!D11","v":461}]
["est de",null,{"$f":"RECAPITULATIF!D13","v":4.6859999999999999},null,"au",{"$f":"RECAPITULATIF!D15","v":"2019-01-01"}]
[null,null,null,null,null,null,null,null,null,null,null,null,null,null,null,null,null,{"$f":"'GRILLE Cat B CS EXT'!B13","v":3},{"$f":"'GRILLE Cat B CS EXT'!C13","v":36},{"$f":"'GRILLE Cat B CS EXT'!D13","v":485}]
[]
["Soit un gain net mensuel de :",null,null,null,null,null,{"$f":"I40*C46*0.8315","v":97.410225000000011},null,null,null,null,null,null,null,null,null,null,{"$f":"'GRILLE Cat B CS EXT'!B15","v":4},{"$f":"'GRILLE Cat B CS EXT'!C15","v":36},{"$f":"'GRILLE Cat B CS EXT'!D15","v":510}]
[]
[null,null,null,null,null,null,null,null,null,null,null,null,null,null,null,null,null,{"$f":"'GRILLE Cat B CS EXT'!B17","v":5},{"$f":"'GRILLE Cat B CS EXT'!C17","v":48},{"$f":"'GRILLE Cat B CS EXT'!D17","v":534}]
[]
[null,null,null,null,null,null,null,null,null,null,null,null,null,null,null,null,null,{"$f":"'GRILLE Cat B CS EXT'!B19","v":6},{"$f":"'GRILLE Cat B CS EXT'!C19","v":36},{"$f":"'GRILLE Cat B CS EXT'!D19","v":555}]
["Vos représentant-e-s SUD Santé Sociaux ",null,null,null,null,null,null,null,{"$f":"RECAPITULATIF!D21","v":35},null,"sont à votre disposition"]
["pour tous renseignements complémentaires au poste :",null,null,null,null,null,null,null,null,null,null,null,{"$f":"RECAPITULATIF!D17","v":2886},null,null,null,null,{"$f":"'GRILLE Cat B CS EXT'!B21","v":7},{"$f":"'GRILLE Cat B CS EXT'!C21","v":48},{"$f":"'GRILLE Cat B CS EXT'!D21","v":569}]
[]
[null,null,null,null,null,null,null,null,null,null,null,null,null,null,null,null,null,{"$f":"'GRILLE Cat B CS EXT'!B23","v":8},{"$f":"'GRILLE Cat B CS EXT'!C23","v":0},{"$f":"'GRILLE Cat B CS EXT'!D23","v":587}]
[]
[]
["Recevez toutes nos salutations."]
[]
[]
[{"$f":"RECAPITULATIF!B5","v":"Madame Françoise LAUTROU et Madame PERROT Anne"}]
[]
["SUD Santé Sociaux",null,null,null,{"$f":"RECAPITULATIF!D21","v":35}]
[]
[]
[]
[]
["Tél :",{"$f":"RECAPITULATIF!D19","v":299212886}]
["Mél :",null,{"$f":"RECAPITULATIF!C23","v":"sudsante@ch-stmalo.fr"}]
[{"$f":"RECAPITULATIF!B25","v":"Site Départemental Sud"},null,null,null,null,{"$f":"RECAPITULATIF!D25","v":"http://www.sudsantesociaux35.org"}]

{"sheet":"Cat B CS EXT Echelon 5","index":51,"n_rows":72,"n_cols":20,"rows_kept":72,"cut":false,"hidden":false,"merged":[[15,0,15,14],[1,6,1,16],[2,6,2,11],[2,12,2,16],[8,12,9,14],[12,12,12,14],[17,0,17,16],[19,0,19,3],[21,0,21,14],[23,0,23,4],[23,5,23,8],[23,10,23,12],[23,13,23,16],[35,0,35,2],[35,8,35,9],[35,17,39,19],[39,0,39,7],[39,8,39,9],[39,10,39,13],[26,5,27,17],[32,0,32,4],[32,5,32,6],[32,7,32,10],[32,11,32,12],[40,17,41,17],[40,18,41,18],[40,19,41,19],[42,0,42,12],[42,17,43,17],[42,18,43,18],[42,19,43,19],[45,2,45,3],[45,5,45,7],[46,17,47,17],[46,18,47,18],[46,19,47,19],[50,17,51,17],[50,18,51,18],[50,19,51,19],[44,17,45,17],[44,18,45,18],[44,19,45,19],[48,0,48,5],[48,6,48,8],[48,17,49,17],[48,18,49,18],[48,19,49,19],[52,17,53,17],[52,18,53,18],[52,19,53,19],[53,0,53,7],[53,8,53,9],[53,10,53,14],[71,0,71,4],[71,5,71,12],[59,0,59,16],[54,0,54,11],[54,12,54,13],[57,0,57,16],[62,0,62,16],[64,0,64,3],[69,1,69,4],[70,0,70,1],[70,2,70,7],[54,17,55,17],[54,18,55,18],[54,19,55,19],[56,17,57,17],[56,18,57,18],[56,19,57,19]]}
[]
[null,null,null,null,null,null,"Commission Administrative"]
[null,null,null,null,null,null,"Paritaire",null,null,null,null,null,{"$f":"RECAPITULATIF!D7","v":"Locale"}]
[]
[]
[]
[]
[]
[null,null,null,null,null,null,null,null,null,null,null,null,"Mme, Mr :"]
[]
[null,null,null,null,null,null,null,null,null,null,null,null,"Grade :"]
[]
[null,null,null,null,null,null,null,null,null,null,null,null,"Service :"]
[]
[]
["Votre ou vos représentant-e-s du personnel"]
[]
[{"$f":"RECAPITULATIF!B5","v":"Madame Françoise LAUTROU et Madame PERROT Anne"}]
[]
["SUD Santé Sociaux",null,null,null,{"$f":"RECAPITULATIF!D21","v":35},"du:"]
[]
[{"$f":"RECAPITULATIF!B2","v":"Centre Hospitalier de Saint Malo"}]
[]
["siégeant auprès de la CAP",null,null,null,null,{"$f":"RECAPITULATIF!D7","v":"Locale"},null,null,null,"du :",{"$f":"RECAPITULATIF!D11","v":"2019-06-14"},null,null,"vous informe de votre :"]
[]
[]
[null,null,null,null,null,"AVANCEMENT D’ECHELON"]
[]
[]
[]
[]
[]
["Vous passez à l’échelon :",null,null,null,null,{"$f":"'GRILLE Cat B CS EXT'!B17","v":5},null,"Indice Majoré :",null,null,null,{"$f":"'GRILLE Cat B CS EXT'!D17","v":534}]
[]
[]
["Date d'effet :",null,null,null,null,"/",null,"/",{"$f":"RECAPITULATIF!D9","v":2019},null,null,null,null,null,null,null,null,{"$f":"'GRILLE Cat B CS EXT'!B2","v":"Catégorie B Classe Supérieure  Extinction\nInfirmier-ère D.E., Manipulateur d'Electroradiologie Médicale, \nMasseur-Kinésithérapeute,\nErgothérapeute, Psychomotricien, Orthophoniste, Pédicure-Podologue"}]
[]
[]
[]
["Ce qui représente un gain mensuel de :",null,null,null,null,null,null,null,{"$f":"'GRILLE Cat B CS EXT'!D17-'GRILLE Cat B CS EXT'!D15","v":24},null,"points d'indice."]
[null,null,null,null,null,null,null,null,null,null,null,null,null,null,null,null,null,{"$f":"'GRILLE Cat B CS EXT'!B7","v":"Echelon"},{"$f":"'GRILLE Cat B CS EXT'!C7","v":"Durée\n(en mois)"},{"$f":"'GRILLE Cat B CS EXT'!D7","v":"Indice Majoré"}]
[]
["Pour information, la valeur brute du point d'indice",null,null,null,null,null,null,null,null,null,null,null,null,null,null,null,null,{"$f":"'GRILLE Cat B CS EXT'!B9","v":1},{"$f":"'GRILLE Cat B CS EXT'!C9","v":12},{"$f":"'GRILLE Cat B CS EXT'!D9","v":445}]
[]
[null,null,null,null,null,null,null,null,null,null,null,null,null,null,null,null,null,{"$f":"'GRILLE Cat B CS EXT'!B11","v":2},{"$f":"'GRILLE Cat B CS EXT'!C11","v":24},{"$f":"'GRILLE Cat B CS EXT'!D11","v":461}]
["est de",null,{"$f":"RECAPITULATIF!D13","v":4.6859999999999999},null,"au",{"$f":"RECAPITULATIF!D15","v":"2019-01-01"}]
[null,null,null,null,null,null,null,null,null,null,null,null,null,null,null,null,null,{"$f":"'GRILLE Cat B CS EXT'!B13","v":3},{"$f":"'GRILLE Cat B CS EXT'!C13","v":36},{"$f":"'GRILLE Cat B CS EXT'!D13","v":485}]
[]
["Soit un gain net mensuel de :",null,null,null,null,null,{"$f":"I40*C46*0.8315","v":93.513816000000006},null,null,null,null,null,null,null,null,null,null,{"$f":"'GRILLE Cat B CS EXT'!B15","v":4},{"$f":"'GRILLE Cat B CS EXT'!C15","v":36},{"$f":"'GRILLE Cat B CS EXT'!D15","v":510}]
[]
[null,null,null,null,null,null,null,null,null,null,null,null,null,null,null,null,null,{"$f":"'GRILLE Cat B CS EXT'!B17","v":5},{"$f":"'GRILLE Cat B CS EXT'!C17","v":48},{"$f":"'GRILLE Cat B CS EXT'!D17","v":534}]
[]
[null,null,null,null,null,null,null,null,null,null,null,null,null,null,null,null,null,{"$f":"'GRILLE Cat B CS EXT'!B19","v":6},{"$f":"'GRILLE Cat B CS EXT'!C19","v":36},{"$f":"'GRILLE Cat B CS EXT'!D19","v":555}]
["Vos représentant-e-s SUD Santé Sociaux ",null,null,null,null,null,null,null,{"$f":"RECAPITULATIF!D21","v":35},null,"sont à votre disposition"]
["pour tous renseignements complémentaires au poste :",null,null,null,null,null,null,null,null,null,null,null,{"$f":"RECAPITULATIF!D17","v":2886},null,null,null,null,{"$f":"'GRILLE Cat B CS EXT'!B21","v":7},{"$f":"'GRILLE Cat B CS EXT'!C21","v":48},{"$f":"'GRILLE Cat B CS EXT'!D21","v":569}]
[]
[null,null,null,null,null,null,null,null,null,null,null,null,null,null,null,null,null,{"$f":"'GRILLE Cat B CS EXT'!B23","v":8},{"$f":"'GRILLE Cat B CS EXT'!C23","v":0},{"$f":"'GRILLE Cat B CS EXT'!D23","v":587}]
[]
[]
["Recevez toutes nos salutations."]
[]
[]
[{"$f":"RECAPITULATIF!B5","v":"Madame Françoise LAUTROU et Madame PERROT Anne"}]
[]
["SUD Santé Sociaux",null,null,null,{"$f":"RECAPITULATIF!D21","v":35}]
[]
[]
[]
[]
["Tél :",{"$f":"RECAPITULATIF!D19","v":299212886}]
["Mél :",null,{"$f":"RECAPITULATIF!C23","v":"sudsante@ch-stmalo.fr"}]
[{"$f":"RECAPITULATIF!B25","v":"Site Départemental Sud"},null,null,null,null,{"$f":"RECAPITULATIF!D25","v":"http://www.sudsantesociaux35.org"}]

{"sheet":"Cat B CS EXT Echelon 6","index":52,"n_rows":72,"n_cols":20,"rows_kept":72,"cut":false,"hidden":false,"merged":[[15,0,15,14],[1,6,1,16],[2,6,2,11],[2,12,2,16],[8,12,9,14],[12,12,12,14],[17,0,17,16],[19,0,19,3],[21,0,21,14],[23,0,23,4],[23,5,23,8],[23,10,23,12],[23,13,23,16],[35,0,35,2],[35,8,35,9],[35,17,39,19],[39,0,39,7],[39,8,39,9],[39,10,39,13],[26,5,27,17],[32,0,32,4],[32,5,32,6],[32,7,32,10],[32,11,32,12],[40,17,41,17],[40,18,41,18],[40,19,41,19],[42,0,42,12],[42,17,43,17],[42,18,43,18],[42,19,43,19],[45,2,45,3],[45,5,45,7],[46,17,47,17],[46,18,47,18],[46,19,47,19],[50,17,51,17],[50,18,51,18],[50,19,51,19],[44,17,45,17],[44,18,45,18],[44,19,45,19],[48,0,48,5],[48,6,48,8],[48,17,49,17],[48,18,49,18],[48,19,49,19],[56,17,57,17],[56,18,57,18],[56,19,57,19],[57,0,57,16],[52,17,53,17],[52,18,53,18],[52,19,53,19],[53,0,53,7],[53,8,53,9],[53,10,53,14],[54,0,54,11],[54,12,54,13],[54,17,55,17],[54,18,55,18],[54,19,55,19],[71,0,71,4],[71,5,71,12],[59,0,59,16],[62,0,62,16],[64,0,64,3],[69,1,69,4],[70,0,70,1],[70,2,70,7]]}
[]
[null,null,null,null,null,null,"Commission Administrative"]
[null,null,null,null,null,null,"Paritaire",null,null,null,null,null,{"$f":"RECAPITULATIF!D7","v":"Locale"}]
[]
[]
[]
[]
[]
[null,null,null,null,null,null,null,null,null,null,null,null,"Mme, Mr :"]
[]
[null,null,null,null,null,null,null,null,null,null,null,null,"Grade :"]
[]
[null,null,null,null,null,null,null,null,null,null,null,null,"Service :"]
[]
[]
["Votre ou vos représentant-e-s du personnel"]
[]
[{"$f":"RECAPITULATIF!B5","v":"Madame Françoise LAUTROU et Madame PERROT Anne"}]
[]
["SUD Santé Sociaux",null,null,null,{"$f":"RECAPITULATIF!D21","v":35},"du:"]
[]
[{"$f":"RECAPITULATIF!B2","v":"Centre Hospitalier de Saint Malo"}]
[]
["siégeant auprès de la CAP",null,null,null,null,{"$f":"RECAPITULATIF!D7","v":"Locale"},null,null,null,"du :",{"$f":"RECAPITULATIF!D11","v":"2019-06-14"},null,null,"vous informe de votre :"]
[]
[]
[null,null,null,null,null,"AVANCEMENT D’ECHELON"]
[]
[]
[]
[]
[]
["Vous passez à l’échelon :",null,null,null,null,{"$f":"'GRILLE Cat B CN EXT'!B19","v":6},null,"Indice Majoré :",null,null,null,{"$f":"'GRILLE Cat B CN EXT'!D19","v":462}]
[]
[]
["Date d'effet :",null,null,null,null,"/",null,"/",{"$f":"RECAPITULATIF!D9","v":2019},null,null,null,null,null,null,null,null,{"$f":"'GRILLE Cat B CS EXT'!B2","v":"Catégorie B Classe Supérieure  Extinction\nInfirmier-ère D.E., Manipulateur d'Electroradiologie Médicale, \nMasseur-Kinésithérapeute,\nErgothérapeute, Psychomotricien, Orthophoniste, Pédicure-Podologue"}]
[]
[]
[]
["Ce qui représente un gain mensuel de :",null,null,null,null,null,null,null,{"$f":"'GRILLE Cat B CN EXT'!D19-'GRILLE Cat B CN EXT'!D17","v":33},null,"points d'indice."]
[null,null,null,null,null,null,null,null,null,null,null,null,null,null,null,null,null,{"$f":"'GRILLE Cat B CS EXT'!B7","v":"Echelon"},{"$f":"'GRILLE Cat B CS EXT'!C7","v":"Durée\n(en mois)"},{"$f":"'GRILLE Cat B CS EXT'!D7","v":"Indice Majoré"}]
[]
["Pour information, la valeur brute du point d'indice",null,null,null,null,null,null,null,null,null,null,null,null,null,null,null,null,{"$f":"'GRILLE Cat B CS EXT'!B9","v":1},{"$f":"'GRILLE Cat B CS EXT'!C9","v":12},{"$f":"'GRILLE Cat B CS EXT'!D9","v":445}]
[]
[null,null,null,null,null,null,null,null,null,null,null,null,null,null,null,null,null,{"$f":"'GRILLE Cat B CS EXT'!B11","v":2},{"$f":"'GRILLE Cat B CS EXT'!C11","v":24},{"$f":"'GRILLE Cat B CS EXT'!D11","v":461}]
["est de",null,{"$f":"RECAPITULATIF!D13","v":4.6859999999999999},null,"au",{"$f":"RECAPITULATIF!D15","v":"2019-01-01"}]
[null,null,null,null,null,null,null,null,null,null,null,null,null,null,null,null,null,{"$f":"'GRILLE Cat B CS EXT'!B13","v":3},{"$f":"'GRILLE Cat B CS EXT'!C13","v":36},{"$f":"'GRILLE Cat B CS EXT'!D13","v":485}]
[]
["Soit un gain net mensuel de :",null,null,null,null,null,{"$f":"I40*C46*0.8315","v":128.58149700000001},null,null,null,null,null,null,null,null,null,null,{"$f":"'GRILLE Cat B CS EXT'!B15","v":4},{"$f":"'GRILLE Cat B CS EXT'!C15","v":36},{"$f":"'GRILLE Cat B CS EXT'!D15","v":510}]
[]
[null,null,null,null,null,null,null,null,null,null,null,null,null,null,null,null,null,{"$f":"'GRILLE Cat B CS EXT'!B17","v":5},{"$f":"'GRILLE Cat B CS EXT'!C17","v":48},{"$f":"'GRILLE Cat B CS EXT'!D17","v":534}]
[]
[null,null,null,null,null,null,null,null,null,null,null,null,null,null,null,null,null,{"$f":"'GRILLE Cat B CS EXT'!B19","v":6},{"$f":"'GRILLE Cat B CS EXT'!C19","v":36},{"$f":"'GRILLE Cat B CS EXT'!D19","v":555}]
["Vos représentant-e-s SUD Santé Sociaux ",null,null,null,null,null,null,null,{"$f":"RECAPITULATIF!D21","v":35},null,"sont à votre disposition"]
["pour tous renseignements complémentaires au poste :",null,null,null,null,null,null,null,null,null,null,null,{"$f":"RECAPITULATIF!D17","v":2886},null,null,null,null,{"$f":"'GRILLE Cat B CS EXT'!B21","v":7},{"$f":"'GRILLE Cat B CS EXT'!C21","v":48},{"$f":"'GRILLE Cat B CS EXT'!D21","v":569}]
[]
[null,null,null,null,null,null,null,null,null,null,null,null,null,null,null,null,null,{"$f":"'GRILLE Cat B CS EXT'!B23","v":8},{"$f":"'GRILLE Cat B CS EXT'!C23","v":0},{"$f":"'GRILLE Cat B CS EXT'!D23","v":587}]
[]
[null,null,null,null,null,null,null,null,null,null,null,null,null,null,null,null,null,{"$f":"'GRILLE Cat B CN EXT'!B25","v":0},{"$f":"'GRILLE Cat B CN EXT'!C25","v":0},{"$f":"'GRILLE Cat B CN EXT'!D25","v":0}]
["Recevez toutes nos salutations."]
[null,null,null,null,null,null,null,null,null,null,null,null,null,null,null,null,null,{"$f":"'GRILLE Cat B CN EXT'!B27","v":0},{"$f":"'GRILLE Cat B CN EXT'!C27","v":0},{"$f":"'GRILLE Cat B CN EXT'!D27","v":0}]
[]
[{"$f":"RECAPITULATIF!B5","v":"Madame Françoise LAUTROU et Madame PERROT Anne"}]
[]
["SUD Santé Sociaux",null,null,null,{"$f":"RECAPITULATIF!D21","v":35}]
[]
[]
[]
[]
["Tél :",{"$f":"RECAPITULATIF!D19","v":299212886}]
["Mél :",null,{"$f":"RECAPITULATIF!C23","v":"sudsante@ch-stmalo.fr"}]
[{"$f":"RECAPITULATIF!B25","v":"Site Départemental Sud"},null,null,null,null,{"$f":"RECAPITULATIF!D25","v":"http://www.sudsantesociaux35.org"}]

{"sheet":"Cat B CS EXT Echelon 7","index":53,"n_rows":72,"n_cols":20,"rows_kept":72,"cut":false,"hidden":false,"merged":[[71,0,71,4],[71,5,71,12],[59,0,59,16],[62,0,62,16],[64,0,64,3],[69,1,69,4],[70,0,70,1],[70,2,70,7],[56,17,57,17],[56,18,57,18],[56,19,57,19],[57,0,57,16],[52,17,53,17],[52,18,53,18],[52,19,53,19],[53,0,53,7],[53,8,53,9],[53,10,53,14],[54,0,54,11],[54,12,54,13],[54,17,55,17],[54,18,55,18],[54,19,55,19],[48,0,48,5],[48,6,48,8],[48,17,49,17],[48,18,49,18],[48,19,49,19],[50,17,51,17],[50,18,51,18],[50,19,51,19],[44,17,45,17],[44,18,45,18],[44,19,45,19],[45,2,45,3],[45,5,45,7],[46,17,47,17],[46,18,47,18],[46,19,47,19],[40,17,41,17],[40,18,41,18],[40,19,41,19],[42,0,42,12],[42,17,43,17],[42,18,43,18],[42,19,43,19],[26,5,27,17],[32,0,32,4],[32,5,32,6],[32,7,32,10],[32,11,32,12],[35,0,35,2],[35,8,35,9],[35,17,39,19],[39,0,39,7],[39,8,39,9],[39,10,39,13],[17,0,17,16],[19,0,19,3],[21,0,21,14],[23,0,23,4],[23,5,23,8],[23,10,23,12],[23,13,23,16],[15,0,15,14],[1,6,1,16],[2,6,2,11],[2,12,2,16],[8,12,9,14],[12,12,12,14]]}
[]
[null,null,null,null,null,null,"Commission Administrative"]
[null,null,null,null,null,null,"Paritaire",null,null,null,null,null,{"$f":"RECAPITULATIF!D7","v":"Locale"}]
[]
[]
[]
[]
[]
[null,null,null,null,null,null,null,null,null,null,null,null,"Mme, Mr :"]
[]
[null,null,null,null,null,null,null,null,null,null,null,null,"Grade :"]
[]
[null,null,null,null,null,null,null,null,null,null,null,null,"Service :"]
[]
[]
["Votre ou vos représentant-e-s du personnel"]
[]
[{"$f":"RECAPITULATIF!B5","v":"Madame Françoise LAUTROU et Madame PERROT Anne"}]
[]
["SUD Santé Sociaux",null,null,null,{"$f":"RECAPITULATIF!D21","v":35},"du:"]
[]
[{"$f":"RECAPITULATIF!B2","v":"Centre Hospitalier de Saint Malo"}]
[]
["siégeant auprès de la CAP",null,null,null,null,{"$f":"RECAPITULATIF!D7","v":"Locale"},null,null,null,"du :",{"$f":"RECAPITULATIF!D11","v":"2019-06-14"},null,null,"vous informe de votre :"]
[]
[]
[null,null,null,null,null,"AVANCEMENT D’ECHELON"]
[]
[]
[]
[]
[]
["Vous passez à l’échelon :",null,null,null,null,{"$f":"'GRILLE Cat B CN EXT'!B21","v":7},null,"Indice Majoré :",null,null,null,{"$f":"'GRILLE Cat B CN EXT'!D21","v":495}]
[]
[]
["Date d'effet :",null,null,null,null,"/",null,"/",{"$f":"RECAPITULATIF!D9","v":2019},null,null,null,null,null,null,null,null,{"$f":"'GRILLE Cat B CS EXT'!B2","v":"Catégorie B Classe Supérieure  Extinction\nInfirmier-ère D.E., Manipulateur d'Electroradiologie Médicale, \nMasseur-Kinésithérapeute,\nErgothérapeute, Psychomotricien, Orthophoniste, Pédicure-Podologue"}]
[]
[]
[]
["Ce qui représente un gain mensuel de :",null,null,null,null,null,null,null,{"$f":"'GRILLE Cat B CN EXT'!D21-'GRILLE Cat B CN EXT'!D19","v":33},null,"points d'indice."]
[null,null,null,null,null,null,null,null,null,null,null,null,null,null,null,null,null,{"$f":"'GRILLE Cat B CS EXT'!B7","v":"Echelon"},{"$f":"'GRILLE Cat B CS EXT'!C7","v":"Durée\n(en mois)"},{"$f":"'GRILLE Cat B CS EXT'!D7","v":"Indice Majoré"}]
[]
["Pour information, la valeur brute du point d'indice",null,null,null,null,null,null,null,null,null,null,null,null,null,null,null,null,{"$f":"'GRILLE Cat B CS EXT'!B9","v":1},{"$f":"'GRILLE Cat B CS EXT'!C9","v":12},{"$f":"'GRILLE Cat B CS EXT'!D9","v":445}]
[]
[null,null,null,null,null,null,null,null,null,null,null,null,null,null,null,null,null,{"$f":"'GRILLE Cat B CS EXT'!B11","v":2},{"$f":"'GRILLE Cat B CS EXT'!C11","v":24},{"$f":"'GRILLE Cat B CS EXT'!D11","v":461}]
["est de",null,{"$f":"RECAPITULATIF!D13","v":4.6859999999999999},null,"au",{"$f":"RECAPITULATIF!D15","v":"2019-01-01"}]
[null,null,null,null,null,null,null,null,null,null,null,null,null,null,null,null,null,{"$f":"'GRILLE Cat B CS EXT'!B13","v":3},{"$f":"'GRILLE Cat B CS EXT'!C13","v":36},{"$f":"'GRILLE Cat B CS EXT'!D13","v":485}]
[]
["Soit un gain net mensuel de :",null,null,null,null,null,{"$f":"I40*C46*0.8315","v":128.58149700000001},null,null,null,null,null,null,null,null,null,null,{"$f":"'GRILLE Cat B CS EXT'!B15","v":4},{"$f":"'GRILLE Cat B CS EXT'!C15","v":36},{"$f":"'GRILLE Cat B CS EXT'!D15","v":510}]
[]
[null,null,null,null,null,null,null,null,null,null,null,null,null,null,null,null,null,{"$f":"'GRILLE Cat B CS EXT'!B17","v":5},{"$f":"'GRILLE Cat B CS EXT'!C17","v":48},{"$f":"'GRILLE Cat B CS EXT'!D17","v":534}]
[]
[null,null,null,null,null,null,null,null,null,null,null,null,null,null,null,null,null,{"$f":"'GRILLE Cat B CS EXT'!B19","v":6},{"$f":"'GRILLE Cat B CS EXT'!C19","v":36},{"$f":"'GRILLE Cat B CS EXT'!D19","v":555}]
["Vos représentant-e-s SUD Santé Sociaux ",null,null,null,null,null,null,null,{"$f":"RECAPITULATIF!D21","v":35},null,"sont à votre disposition"]
["pour tous renseignements complémentaires au poste :",null,null,null,null,null,null,null,null,null,null,null,{"$f":"RECAPITULATIF!D17","v":2886},null,null,null,null,{"$f":"'GRILLE Cat B CS EXT'!B21","v":7},{"$f":"'GRILLE Cat B CS EXT'!C21","v":48},{"$f":"'GRILLE Cat B CS EXT'!D21","v":569}]
[]
[null,null,null,null,null,null,null,null,null,null,null,null,null,null,null,null,null,{"$f":"'GRILLE Cat B CS EXT'!B23","v":8},{"$f":"'GRILLE Cat B CS EXT'!C23","v":0},{"$f":"'GRILLE Cat B CS EXT'!D23","v":587}]
[]
[null,null,null,null,null,null,null,null,null,null,null,null,null,null,null,null,null,{"$f":"'GRILLE Cat B CN EXT'!B25","v":0},{"$f":"'GRILLE Cat B CN EXT'!C25","v":0},{"$f":"'GRILLE Cat B CN EXT'!D25","v":0}]
["Recevez toutes nos salutations."]
[null,null,null,null,null,null,null,null,null,null,null,null,null,null,null,null,null,{"$f":"'GRILLE Cat B CN EXT'!B27","v":0},{"$f":"'GRILLE Cat B CN EXT'!C27","v":0},{"$f":"'GRILLE Cat B CN EXT'!D27","v":0}]
[]
[{"$f":"RECAPITULATIF!B5","v":"Madame Françoise LAUTROU et Madame PERROT Anne"}]
[]
["SUD Santé Sociaux",null,null,null,{"$f":"RECAPITULATIF!D21","v":35}]
[]
[]
[]
[]
["Tél :",{"$f":"RECAPITULATIF!D19","v":299212886}]
["Mél :",null,{"$f":"RECAPITULATIF!C23","v":"sudsante@ch-stmalo.fr"}]
[{"$f":"RECAPITULATIF!B25","v":"Site Départemental Sud"},null,null,null,null,{"$f":"RECAPITULATIF!D25","v":"http://www.sudsantesociaux35.org"}]

{"sheet":"Cat B CS EXT Echelon 8","index":54,"n_rows":72,"n_cols":20,"rows_kept":72,"cut":false,"hidden":false,"merged":[[71,0,71,4],[71,5,71,12],[59,0,59,16],[62,0,62,16],[64,0,64,3],[69,1,69,4],[70,0,70,1],[70,2,70,7],[56,17,57,17],[56,18,57,18],[56,19,57,19],[57,0,57,16],[52,17,53,17],[52,18,53,18],[52,19,53,19],[53,0,53,7],[53,8,53,9],[53,10,53,14],[54,0,54,11],[54,12,54,13],[54,17,55,17],[54,18,55,18],[54,19,55,19],[48,0,48,5],[48,6,48,8],[48,17,49,17],[48,18,49,18],[48,19,49,19],[50,17,51,17],[50,18,51,18],[50,19,51,19],[44,17,45,17],[44,18,45,18],[44,19,45,19],[45,2,45,3],[45,5,45,7],[46,17,47,17],[46,18,47,18],[46,19,47,19],[40,17,41,17],[40,18,41,18],[40,19,41,19],[42,0,42,12],[42,17,43,17],[42,18,43,18],[42,19,43,19],[26,5,27,17],[32,0,32,4],[32,5,32,6],[32,7,32,10],[32,11,32,12],[35,0,35,2],[35,8,35,9],[35,17,39,19],[39,0,39,7],[39,8,39,9],[39,10,39,13],[17,0,17,16],[19,0,19,3],[21,0,21,14],[23,0,23,4],[23,5,23,8],[23,10,23,12],[23,13,23,16],[15,0,15,14],[1,6,1,16],[2,6,2,11],[2,12,2,16],[8,12,9,14],[12,12,12,14]]}
[]
[null,null,null,null,null,null,"Commission Administrative"]
[null,null,null,null,null,null,"Paritaire",null,null,null,null,null,{"$f":"RECAPITULATIF!D7","v":"Locale"}]
[]
[]
[]
[]
[]
[null,null,null,null,null,null,null,null,null,null,null,null,"Mme, Mr :"]
[]
[null,null,null,null,null,null,null,null,null,null,null,null,"Grade :"]
[]
[null,null,null,null,null,null,null,null,null,null,null,null,"Service :"]
[]
[]
["Votre ou vos représentant-e-s du personnel"]
[]
[{"$f":"RECAPITULATIF!B5","v":"Madame Françoise LAUTROU et Madame PERROT Anne"}]
[]
["SUD Santé Sociaux",null,null,null,{"$f":"RECAPITULATIF!D21","v":35},"du:"]
[]
[{"$f":"RECAPITULATIF!B2","v":"Centre Hospitalier de Saint Malo"}]
[]
["siégeant auprès de la CAP",null,null,null,null,{"$f":"RECAPITULATIF!D7","v":"Locale"},null,null,null,"du :",{"$f":"RECAPITULATIF!D11","v":"2019-06-14"},null,null,"vous informe de votre :"]
[]
[]
[null,null,null,null,null,"AVANCEMENT D’ECHELON"]
[]
[]
[]
[]
[]
["Vous passez à l’échelon :",null,null,null,null,{"$f":"'GRILLE Cat B CN EXT'!B23","v":8},null,"Indice Majoré :",null,null,null,{"$f":"'GRILLE Cat B CN EXT'!D23","v":534}]
[]
[]
["Date d'effet :",null,null,null,null,"/",null,"/",{"$f":"RECAPITULATIF!D9","v":2019},null,null,null,null,null,null,null,null,{"$f":"'GRILLE Cat B CS EXT'!B2","v":"Catégorie B Classe Supérieure  Extinction\nInfirmier-ère D.E., Manipulateur d'Electroradiologie Médicale, \nMasseur-Kinésithérapeute,\nErgothérapeute, Psychomotricien, Orthophoniste, Pédicure-Podologue"}]
[]
[]
[]
["Ce qui représente un gain mensuel de :",null,null,null,null,null,null,null,{"$f":"'GRILLE Cat B CN EXT'!D23-'GRILLE Cat B CN EXT'!D21","v":39},null,"points d'indice."]
[null,null,null,null,null,null,null,null,null,null,null,null,null,null,null,null,null,{"$f":"'GRILLE Cat B CS EXT'!B7","v":"Echelon"},{"$f":"'GRILLE Cat B CS EXT'!C7","v":"Durée\n(en mois)"},{"$f":"'GRILLE Cat B CS EXT'!D7","v":"Indice Majoré"}]
[]
["Pour information, la valeur brute du point d'indice",null,null,null,null,null,null,null,null,null,null,null,null,null,null,null,null,{"$f":"'GRILLE Cat B CS EXT'!B9","v":1},{"$f":"'GRILLE Cat B CS EXT'!C9","v":12},{"$f":"'GRILLE Cat B CS EXT'!D9","v":445}]
[]
[null,null,null,null,null,null,null,null,null,null,null,null,null,null,null,null,null,{"$f":"'GRILLE Cat B CS EXT'!B11","v":2},{"$f":"'GRILLE Cat B CS EXT'!C11","v":24},{"$f":"'GRILLE Cat B CS EXT'!D11","v":461}]
["est de",null,{"$f":"RECAPITULATIF!D13","v":4.6859999999999999},null,"au",{"$f":"RECAPITULATIF!D15","v":"2019-01-01"}]
[null,null,null,null,null,null,null,null,null,null,null,null,null,null,null,null,null,{"$f":"'GRILLE Cat B CS EXT'!B13","v":3},{"$f":"'GRILLE Cat B CS EXT'!C13","v":36},{"$f":"'GRILLE Cat B CS EXT'!D13","v":485}]
[]
["Soit un gain net mensuel de :",null,null,null,null,null,{"$f":"I40*C46*0.8315","v":151.95995099999999},null,null,null,null,null,null,null,null,null,null,{"$f":"'GRILLE Cat B CS EXT'!B15","v":4},{"$f":"'GRILLE Cat B CS EXT'!C15","v":36},{"$f":"'GRILLE Cat B CS EXT'!D15","v":510}]
[]
[null,null,null,null,null,null,null,null,null,null,null,null,null,null,null,null,null,{"$f":"'GRILLE Cat B CS EXT'!B17","v":5},{"$f":"'GRILLE Cat B CS EXT'!C17","v":48},{"$f":"'GRILLE Cat B CS EXT'!D17","v":534}]
[]
[null,null,null,null,null,null,null,null,null,null,null,null,null,null,null,null,null,{"$f":"'GRILLE Cat B CS EXT'!B19","v":6},{"$f":"'GRILLE Cat B CS EXT'!C19","v":36},{"$f":"'GRILLE Cat B CS EXT'!D19","v":555}]
["Vos représentant-e-s SUD Santé Sociaux ",null,null,null,null,null,null,null,{"$f":"RECAPITULATIF!D21","v":35},null,"sont à votre disposition"]
["pour tous renseignements complémentaires au poste :",null,null,null,null,null,null,null,null,null,null,null,{"$f":"RECAPITULATIF!D17","v":2886},null,null,null,null,{"$f":"'GRILLE Cat B CS EXT'!B21","v":7},{"$f":"'GRILLE Cat B CS EXT'!C21","v":48},{"$f":"'GRILLE Cat B CS EXT'!D21","v":569}]
[]
[null,null,null,null,null,null,null,null,null,null,null,null,null,null,null,null,null,{"$f":"'GRILLE Cat B CS EXT'!B23","v":8},{"$f":"'GRILLE Cat B CS EXT'!C23","v":0},{"$f":"'GRILLE Cat B CS EXT'!D23","v":587}]
[]
[null,null,null,null,null,null,null,null,null,null,null,null,null,null,null,null,null,{"$f":"'GRILLE Cat B CN EXT'!B25","v":0},{"$f":"'GRILLE Cat B CN EXT'!C25","v":0},{"$f":"'GRILLE Cat B CN EXT'!D25","v":0}]
["Recevez toutes nos salutations."]
[null,null,null,null,null,null,null,null,null,null,null,null,null,null,null,null,null,{"$f":"'GRILLE Cat B CN EXT'!B27","v":0},{"$f":"'GRILLE Cat B CN EXT'!C27","v":0},{"$f":"'GRILLE Cat B CN EXT'!D27","v":0}]
[]
[{"$f":"RECAPITULATIF!B5","v":"Madame Françoise LAUTROU et Madame PERROT Anne"}]
[]
["SUD Santé Sociaux",null,null,null,{"$f":"RECAPITULATIF!D21","v":35}]
[]
[]
[]
[]
["Tél :",{"$f":"RECAPITULATIF!D19","v":299212886}]
["Mél :",null,{"$f":"RECAPITULATIF!C23","v":"sudsante@ch-stmalo.fr"}]
[{"$f":"RECAPITULATIF!B25","v":"Site Départemental Sud"},null,null,null,null,{"$f":"RECAPITULATIF!D25","v":"http://www.sudsantesociaux35.org"}]

{"sheet":"CAT B SE","index":55,"n_rows":2,"n_cols":2,"rows_kept":2,"cut":false,"hidden":false,"merged":[[1,1,1,10]]}
[]
[null,"Selectionnez le Grade concerné par l'avancement d'échelon"]

{"sheet":"GRILLE Cat B SE1","index":56,"n_rows":33,"n_cols":4,"rows_kept":33,"cut":false,"hidden":false,"merged":[[1,1,5,3],[6,1,7,1],[6,2,7,2],[6,3,7,3],[8,1,9,1],[8,2,9,2],[8,3,9,3],[10,1,11,1],[10,2,11,2],[10,3,11,3],[12,1,13,1],[12,2,13,2],[12,3,13,3],[14,1,15,1],[14,2,15,2],[14,3,15,3],[16,1,17,1],[16,2,17,2],[16,3,17,3],[18,1,19,1],[18,2,19,2],[18,3,19,3],[20,1,21,1],[20,2,21,2],[20,3,21,3],[22,1,23,1],[22,2,23,2],[22,3,23,3],[24,1,25,1],[24,2,25,2],[24,3,25,3],[26,1,27,1],[26,2,27,2],[26,3,27,3],[28,1,29,1],[28,2,29,2],[28,3,29,3],[30,1,31,1],[30,2,31,2],[30,3,31,3],[32,1,33,1],[32,2,33,2],[32,3,33,3]]}
[]
[null,"Cat B Socio-Éducative\n\nMoniteur-Éducateur\nAnimateur Hospitalier"]
[]
[]
[]
[]
[null,"Echelon","Durée\n(en mois)","Indice\nMajoré"]
[]
[null,1,24,339]
[]
[null,2,24,344]
[]
[null,3,24,349]
[]
[null,4,24,356]
[]
[null,5,24,366]
[]
[null,6,24,379]
[]
[null,7,24,394]
[]
[null,8,36,413]
[]
[null,9,36,429]
[]
[null,10,36,440]
[]
[null,11,36,453]
[]
[null,12,48,474]
[]
[null,13,null,498]

{"sheet":"GRILLE Cat B SE2","index":57,"n_rows":33,"n_cols":4,"rows_kept":33,"cut":false,"hidden":false,"merged":[[1,1,5,3],[6,1,7,1],[6,2,7,2],[6,3,7,3],[8,1,9,1],[8,2,9,2],[8,3,9,3],[10,1,11,1],[10,2,11,2],[10,3,11,3],[12,1,13,1],[12,2,13,2],[12,3,13,3],[14,1,15,1],[14,2,15,2],[14,3,15,3],[16,1,17,1],[16,2,17,2],[16,3,17,3],[18,1,19,1],[18,2,19,2],[18,3,19,3],[20,1,21,1],[20,2,21,2],[20,3,21,3],[22,1,23,1],[22,2,23,2],[22,3,23,3],[24,1,25,1],[24,2,25,2],[24,3,25,3],[26,1,27,1],[26,2,27,2],[26,3,27,3],[28,1,29,1],[28,2,29,2],[28,3,29,3],[30,1,31,1],[30,2,31,2],[30,3,31,3],[32,1,33,1],[32,2,33,2],[32,3,33,3]]}
[]
[null,"Cat B Socio-Éducative\n\nMoniteur-Éducateur Principal \nAnimateur Hospitalier\n2ème Classe"]
[]
[]
[]
[]
[null,"Echelon","Durée\n(en mois)","Indice\nMajoré"]
[]
[null,1,24,356]
[]
[null,2,24,362]
[]
[null,3,24,369]
[]
[null,4,24,379]
[]
[null,5,24,390]
[]
[null,6,24,401]
[]
[null,7,24,416]
[]
[null,8,36,436]
[]
[null,9,36,452]
[]
[null,10,36,461]
[]
[null,11,36,480]
[]
[null,12,48,504]
[]
[null,13,null,534]